Workbook

Sheet Summary
A1: Model Title | B1: Updated Baseline Cost Model for Hydropower (2025)
A2: Keywords | B2: Hydropower costs, Baseline costs, Hydropower cost modeling
A3: Originator | B3: Oak Ridge National Laboratory
A4: Creator | B4: Gbadebo A. Oladosu (oladosuga@ornl.gov)
A5: Publication Date | B5: January/31/2026
A6: Updated
A7: Online Linkage
A8: DOI
A9: Dataset ID
A10: Description | B10: The "Updated Baseline Cost Model (BCM) for Hydropower (2025)" is an empirical model for estimating the costs of US hydropower projects in six categories (Non-Powered Dam (NPD), New Stream Development (NSD), Canal/Conduit, Pumped Storage Hydro (PSH), Capacity Expansion, Generator Rewind). This update includes an equation for estimating operation and maintenance (O&M) costs, as well as confidence interval calculations for the estimates. The model equations have been estimated with data on existing or planned projects obtained from various sources.
A11: Purpose | B11: Provide the model to hydropower industry stakeholders for use in evaluating the potential baseline total costs of hydropower projects.
A12: Coverage | B12: Conterminous United States, Alaska, and Hawaii.
A13: Coordinate System | B13: None
A14: Exclusions | B14: The model reflects available data from various sources, and so does not capture the universe of potential hydropower project sites in the US. As with any econometric model, results of the model are generally valid for inputs that are not too far out of the range of the underlying data.
A15: Maintenance_and_Update_Frequency | B15: None
A16: Type | B16: Spreadsheet
A17: Format | B17: Microsoft Excel
A18: Version | B18: 2025
A19: Contact Instructions | B19: https://hydrosource.ornl.gov/contact
A20: Citation | B20: Oladosu, G. A. (2025). Updated Baseline Costs Model for Hydropower (BCMH). Oak Ridge National Laboratory.
A21: Use Constraints | B21: The distributor shall not be held liable for improper or incorrect use of this data, based on the description of appropriate/inappropriate uses described in this metadata document. It is strongly recommended that this data is directly acquired from the distributor and not indirectly through other sources which may have changed the data in some way. ORNL should be acknowledged using the citation above as the data source in products derived from these data.
A22: Dataset Credit | B22: Funding and support were provided by the U.S. Department of Energy (DOE) Energy Efficiency and Renewable Energy, Water Power Technologies Office through Oak Ridge National Laboratory, which is managed by UT-Battelle, LLC, for the DOE under contract DE-AC05-00OR22725.
A25: Update Notes (1/15/2026) | B25: Fixed bugs in calculation of dummies for Head Categories:
B26: >= 60 ft category was bounded below by 10 ft instead of 30 ft
B27: >=100 ft categroy was using "Capacity" instead of "Head" data
B28: New Updates
B29: O&M Model: Re-specified and estimated O&M equation now added to this updated model
B30: Confidence interval calculations for the model estimates are now available

Sheet Read_Me
A1: Author: Gbadebo Oladosu (2025) (see ACKNOWLEDGMENTS below)
A2: Read the Instructions below before exercising this version of the BCMH model
A3: NOTE: Do not change contents of tables or table headers unless explicitly instructed below
A4: INSTRUCTIONS | G4: List of Model Tables
A5: STATUS: As of 1/15/2026 the BCM has been re-estimated with data compiled in 2022, merging data available from the 2015 model version with newer data. The revised model uses a more comprehensive specfication that allows available data for each project type to be considered in a single regression, thus mitigating degree of freedom issues from estimating models with different partitions of the data. This update includes a new equation for estimating operation and maintenance (O&M) costs, and calculations of confidence intervals on model estimates. | G5: TABLE 1: INPUTS AND RESULTS ("InputsandResults" Sheet) TABLE 2: LIST OF AVAILABLE EQUATIONS ("Read_Me" Sheet) TABLE 3: PROJECT EQUATIONS ("Coeff" Sheet) TABLE 4: COEFFICIENTS TABLE ("Coeff" Sheet)
A6: MODEL APPLICATION NOTES: This workbook provides updates to the 2023 version of the ORNL Baseline Cost Model for Hydropower (BCMH), building on the 2023 update and the original 2015 (O'Connor et al., 2015) version. In addition to slight updates to the equations in the 2023 version, this version includes a new equation for estimating O&M costs and calculations of confidence intervals around the cost estimates. The underlying cost data are for existing or planned projects. Therefore the cost estimates from the model should be applied to projects not too far out of the underlying data range.
A7: MODEL USE STEPS
A8: 1. INPUT PROJECT DATA: a) Specify the number of projects (limited to 100) to be evaluated in the "InputsandResults" sheet. This will expand or contract the number of rows in Table 1 to the specified number by hiding or showing rows up to the limit of 100. b) Input the data for your projects under the "USER INPUTS" columns of Table 1. Required project inputs are: 1) Project Name = Enter unique project name; 2) Project Type (Click on the Cell to Select); 3) Capacity: set project capacity (MW) at completion; 4) Added_Capcity (MW): set additional capacity due to project - this is the same for most project types, except for "Capacity Expansion" projects; 5) Head: set project head (feet); 5) Project Stage (Click on the Cell to Select from "Construction", "Engineering" or "Planning").
A9: 2. EVALUATE RESULTS: Results are displayed under the "RESULTS" columns of Table 1: 1) Total CapEx Estimates; 2) Per kW CapEx Estimates; 3) Total Annual O&M Estimates; 4) Per kW Annual O&M Estimates. Illustrative charts of results in the first 10 rows of Table 1 are shown in the "ResultsCharts" sheet.
A10: 3. OPTIONAL: The default econometric models used for each project category is judged to perform best among the four options available. A description of alternative model equations for each project type can be found in Table 2 (below) of this sheet ("Read_Me"). Calculations using the alternative models can be explored by selecting different model versions in the "Model Equations" column of Table 3 in the "Coeff" sheet. Click the "Restore Default Models" button at the top of Table 3 to change all project types to their default model versions.
A11: REFERENCES: 1. Oladosu G.A. and Ma Y. (2026). Baseline Cost Model for Hydropower: Documentation (2025). ORNL/TM-2025/3733, Oak Ridge National Laboratory, Oak Ridge, TN. 2. O’Connor, P. W., Zhang, Q. F., DeNeale, S. T., Chalise, D. R., Centurion, E., & Centurion, E. E. (2015). Hydropower Baseline Cost Modeling. ORNL/TM-2015/14, Oak Ridge National Laboratory, Oak Ridge, TN.
A12: COPYRIGHT: This software has been authored by UT-Battelle, LLC under Contract No. DE-AC05-00OR22725 with the U.S. Department of Energy. The United States Government retains and the user, by using the software, acknowledges that the United States Government retains a non-exclusive, paid-up, irrevocable, world-wide license to publish software, or allow others to do so, for United States Government purposes.
A13: ACKNOWLEDGMENTS: We acknowledge Colin Sasthav’s valuable contribution for his work on data collation and processing in support of this effort while a member of the ORNL Water Power Program. We also acknowledge and are indebted to Patrick W. O’Connor, Qin Fen (Katherine) Zhang, Scott T. DeNeale, Dol Raj Chalise, Emma Centurion, and Abigail Maloof who developed previous versions of the hydropower baseline cost model in 2015.
A17: TABLE 2: LIST OF AVAILABLE EQUATIONS
A18: Full Set of Models (NOTE: For Canal, PSH, Capacity Expansion and Generator Rewind projects all (most) models are the same)
A19: ProjectType | B19: Equations | C19: Model Overview
A20: Non-Powered Dam (NPD) | B20: NPD1 | C20: NPD Model estimated with all valid data
A21: Non-Powered Dam (NPD) | B21: NPD2 | C21: NPD Model estimated with valid data for year 2000 and above
A22: Non-Powered Dam (NPD) | B22: NPD3 | C22: NPD Model estimated with all valid data with per KW <= $15K
A23: Non-Powered Dam (NPD) | B23: NPD4 | C23: NPD Model estimated with all valid data with per KW <= $10K
A24: New Stream Development (NSD) | B24: NSD1 | C24: NSD Model estimated with all valid data
A25: New Stream Development (NSD) | B25: NSD2 | C25: NSD Model estimated with valid data for year 2000 and above
A26: New Stream Development (NSD) | B26: NSD3 | C26: NSD Model estimated with all valid data with per KW <= $15K
A27: New Stream Development (NSD) | B27: NSD4 | C27: NSD Model estimated with all valid data with per KW <= $10K
A28: Canal/Conduit | B28: Canal1 | C28: Canal Model estimated with all valid data
A29: Canal/Conduit | B29: Canal2 | C29: Canal Model estimated with valid data for year 2000 and above
A30: Canal/Conduit | B30: Canal3 | C30: Canal Model estimated with all valid data with per KW <= $15K
A31: Canal/Conduit | B31: Canal4 | C31: Canal Model estimated with all valid data with per KW <= $10K
A32: Pumped Storage Hydro (PSH) | B32: PSH1 | C32: PSH Model estimated with all valid data
A33: Pumped Storage Hydro (PSH) | B33: PSH2 | C33: PSH Model estimated with valid data for year 2000 and above
A34: Pumped Storage Hydro (PSH) | B34: PSH3 | C34: PSH Model estimated with all valid data with per KW <= $15K
A35: Pumped Storage Hydro (PSH) | B35: PSH4 | C35: PSH Model estimated with all valid data with per KW <= $10K
A36: Capacity Expansion | B36: CXP1 | C36: Capacity Expansion Model estimated with all valid data
A37: Capacity Expansion | B37: CXP2 | C37: Capacity Expansion Model estimated with valid data for year 2000 and above
A38: Capacity Expansion | B38: CXP3 | C38: Capacity Expansion Model estimated with all valid data with per KW <= $15K
A39: Capacity Expansion | B39: CXP4 | C39: Capacity Expansion Model estimated with all valid data with per KW <= $10K
A40: Generation Rewind | B40: GRW1 | C40: Generator Rewind Model estimated with all valid data
A41: Generation Rewind | B41: GRW2 | C41: Generator Rewind Model estimated with valid data for year 2000 and above
A42: Generation Rewind | B42: GRW3 | C42: Generator Rewind Model estimated with all valid data with per KW <= $15K
A43: Generation Rewind | B43: GRW4 | C43: Generator Rewind Model estimated with all valid data with per KW <= $10K
A44: Existing Plant (O&M) | B44: O&M | C44: Hydropower Operation and Maintenance model estimated with all valid data from 2018 to 2020

Sheet InputsandResults
A1: See "Read_Me" sheet for Instructions
F2: Set number of projects (Max: 100) | J2: Select Confidence Interval %
F3: => | G3: (DO NOT USE EXCEL's "Insert/Delete" to change TABLE 1) | K3: =>
A4: TABLE 1: INPUTS AND RESULTS (Enter data for project in the "USER INPUTS" Columns) | F4: 13 | K4: 0.68
A5: USER INPUTS | I5: Total CapEx Estimates | L5: Per kW CapEx Estimates ($2020) | O5: Annual O&M Estimates ($2020) | R5: Per kW Annual O&M Estimates ($2020)
A6: Provide Unique Project Name | B6: Project Type (Click each cell to select) | C6: Project Capacity (MW) at Completion | D6: Used ONLY for Capacity Expansion | E6: Set Project Head (ft) | F6: Project Stage (Click the Cell to Select) | G6: Used ONLY for Estimating O&M Costs | H6: (0 to 1) Used ONLY for Estimating O&M Costs | I6: Estimate (2020 $million) | J6: Lower Bound (2020 $million) | K6: Upper Bound (2020 $million) | L6: Estimate (2020 $/KW) | M6: Lower Bound (2020 $/KW) | N6: Upper Bound (2020 $/KW) | O6: Estimate (2020 $million) | P6: Lower Bound (2020 $million) | Q6: Upper Bound (2020 $million) | R6: Estimate (2020 $/KW) | S6: Lower Bound (2020 $/KW) | T6: Upper Bound (2020 $/KW)
A7: Project Name | B7: Project Type | C7: Plant Capacity (MW) | D7: Added_Capacity | E7: Head (ft) | F7: Stage | G7: Plant Age (Years) | H7: Capacity Factor (Rate) | I7: Capital Expenditure (2020 $million) | J7: Capital Expenditure (2020 $million): LBnd | K7: Capital Expenditure (2020 $million): Ubnd | L7: Capital Expenditure (2020 $/KW) | M7: Capital Expenditure (2020 $/KW): LBnd | N7: Capital Expenditure (2020 $/KW): Ubnd | O7: O&M Expenditure (2020 $million) | P7: O&M Expenditure (2020 $million): LBnd | Q7: O&M Expenditure (2020 $million):Ubnd | R7: Annual O&M Expenditure (2020 $/KW) | S7: Annual O&M Expenditure (2020 $/KW): LBnd | T7: Annual O&M Expenditure (2020 $/KW): Ubnd
A8: Site 1 | B8: Non-Powered Dam (NPD) | C8: 22.4 | D8: 1 | E8: 19.84 | F8: Engineering | G8: 0 | H8: 0.5 | I8: =IF(ISBLANK(InputsResults[[#This Row],[Project Type]]),NA(),INDEX(Model[CapEx],MATCH(InputsResults[[#This Row],[Project Name]]&InputsResults[[#This Row],[Project Type]],Model[Project Name]&Model[Type],0))) -> 90.71798753 | J8: =IF(ISBLANK(InputsResults[[#This Row],[Project Type]]),NA(),INDEX(Model[CapEx_LBnd],MATCH(InputsResults[[#This Row],[Project Name]]&InputsResults[[#This Row],[Project Type]],Model[Project Name]&Model[Type],0))) -> 56.85830491 | K8: =IF(ISBLANK(InputsResults[[#This Row],[Project Type]]),NA(),INDEX(Model[CapEx_UBnd],MATCH(InputsResults[[#This Row],[Project Name]]&InputsResults[[#This Row],[Project Type]],Model[Project Name]&Model[Type],0))) -> 144.7414459 | L8: =InputsResults[[#This Row],[Capital Expenditure (2020 $million)]]/InputsResults[[#This Row],[Plant Capacity (MW)]]*1000 -> 4049.910158 | M8: =InputsResults[[#This Row],[Capital Expenditure (2020 $million): LBnd]]/InputsResults[[#This Row],[Plant Capacity (MW)]]*1000 -> 2538.317183 | N8: =InputsResults[[#This Row],[Capital Expenditure (2020 $million): Ubnd]]/InputsResults[[#This Row],[Plant Capacity (MW)]]*1000 -> 6461.67169 | O8: =INDEX(Model[OMEx],MATCH(InputsResults[[#This Row],[Project Name]]&InputsResults[[#This Row],[Project Type]],Model[Project Name]&Model[Type],0)) -> 1.092033166 | P8: =INDEX(Model[OMEx_LBnd],MATCH(InputsResults[[#This Row],[Project Name]]&InputsResults[[#This Row],[Project Type]],Model[Project Name]&Model[Type],0)) -> 0.6088897532 | Q8: =INDEX(Model[OMEx_Ubnd],MATCH(InputsResults[[#This Row],[Project Name]]&InputsResults[[#This Row],[Project Type]],Model[Project Name]&Model[Type],0)) -> 1.958542462 | R8: =InputsResults[[#This Row],[O&M Expenditure (2020 $million)]]/InputsResults[[#This Row],[Plant Capacity (MW)]]*1000 -> 48.75148064 | S8: =InputsResults[[#This Row],[O&M Expenditure (2020 $million): LBnd]]/InputsResults[[#This Row],[Plant Capacity (MW)]]*1000 -> 27.18257827 | T8: =InputsResults[[#This Row],[O&M Expenditure (2020 $million):Ubnd]]/InputsResults[[#This Row],[Plant Capacity (MW)]]*1000 -> 87.43493135
A9: Site 2 | B9: Non-Powered Dam (NPD) | C9: 0.5 | D9: 0 | E9: 22 | F9: Engineering | G9: 0 | H9: 0.5 | I9: =IF(ISBLANK(InputsResults[[#This Row],[Project Type]]),NA(),INDEX(Model[CapEx],MATCH(InputsResults[[#This Row],[Project Name]]&InputsResults[[#This Row],[Project Type]],Model[Project Name]&Model[Type],0))) -> 3.16697921 | J9: =IF(ISBLANK(InputsResults[[#This Row],[Project Type]]),NA(),INDEX(Model[CapEx_LBnd],MATCH(InputsResults[[#This Row],[Project Name]]&InputsResults[[#This Row],[Project Type]],Model[Project Name]&Model[Type],0))) -> 1.973036874 | K9: =IF(ISBLANK(InputsResults[[#This Row],[Project Type]]),NA(),INDEX(Model[CapEx_UBnd],MATCH(InputsResults[[#This Row],[Project Name]]&InputsResults[[#This Row],[Project Type]],Model[Project Name]&Model[Type],0))) -> 5.083410986 | L9: =InputsResults[[#This Row],[Capital Expenditure (2020 $million)]]/InputsResults[[#This Row],[Plant Capacity (MW)]]*1000 -> 6333.958421 | M9: =InputsResults[[#This Row],[Capital Expenditure (2020 $million): LBnd]]/InputsResults[[#This Row],[Plant Capacity (MW)]]*1000 -> 3946.073747 | N9: =InputsResults[[#This Row],[Capital Expenditure (2020 $million): Ubnd]]/InputsResults[[#This Row],[Plant Capacity (MW)]]*1000 -> 10166.82197 | O9: =INDEX(Model[OMEx],MATCH(InputsResults[[#This Row],[Project Name]]&InputsResults[[#This Row],[Project Type]],Model[Project Name]&Model[Type],0)) -> 0.07092190107 | P9: =INDEX(Model[OMEx_LBnd],MATCH(InputsResults[[#This Row],[Project Name]]&InputsResults[[#This Row],[Project Type]],Model[Project Name]&Model[Type],0)) -> 0.03869811302 | Q9: =INDEX(Model[OMEx_Ubnd],MATCH(InputsResults[[#This Row],[Project Name]]&InputsResults[[#This Row],[Project Type]],Model[Project Name]&Model[Type],0)) -> 0.1299783286 | R9: =InputsResults[[#This Row],[O&M Expenditure (2020 $million)]]/InputsResults[[#This Row],[Plant Capacity (MW)]]*1000 -> 141.8438021 | S9: =InputsResults[[#This Row],[O&M Expenditure (2020 $million): LBnd]]/InputsResults[[#This Row],[Plant Capacity (MW)]]*1000 -> 77.39622605 | T9: =InputsResults[[#This Row],[O&M Expenditure (2020 $million):Ubnd]]/InputsResults[[#This Row],[Plant Capacity (MW)]]*1000 -> 259.9566573
A10: Site 3 | B10: Non-Powered Dam (NPD) | C10: 10 | D10: 1 | E10: 9.456 | F10: Engineering | G10: 0 | H10: 0.5 | I10: =IF(ISBLANK(InputsResults[[#This Row],[Project Type]]),NA(),INDEX(Model[CapEx],MATCH(InputsResults[[#This Row],[Project Name]]&InputsResults[[#This Row],[Project Type]],Model[Project Name]&Model[Type],0))) -> 50.5061181 | J10: =IF(ISBLANK(InputsResults[[#This Row],[Project Type]]),NA(),INDEX(Model[CapEx_LBnd],MATCH(InputsResults[[#This Row],[Project Name]]&InputsResults[[#This Row],[Project Type]],Model[Project Name]&Model[Type],0))) -> 31.47354536 | K10: =IF(ISBLANK(InputsResults[[#This Row],[Project Type]]),NA(),INDEX(Model[CapEx_UBnd],MATCH(InputsResults[[#This Row],[Project Name]]&InputsResults[[#This Row],[Project Type]],Model[Project Name]&Model[Type],0))) -> 81.04800196 | L10: =InputsResults[[#This Row],[Capital Expenditure (2020 $million)]]/InputsResults[[#This Row],[Plant Capacity (MW)]]*1000 -> 5050.61181 | M10: =InputsResults[[#This Row],[Capital Expenditure (2020 $million): LBnd]]/InputsResults[[#This Row],[Plant Capacity (MW)]]*1000 -> 3147.354536 | N10: =InputsResults[[#This Row],[Capital Expenditure (2020 $million): Ubnd]]/InputsResults[[#This Row],[Plant Capacity (MW)]]*1000 -> 8104.800196 | O10: =INDEX(Model[OMEx],MATCH(InputsResults[[#This Row],[Project Name]]&InputsResults[[#This Row],[Project Type]],Model[Project Name]&Model[Type],0)) -> 0.7873207714 | P10: =INDEX(Model[OMEx_LBnd],MATCH(InputsResults[[#This Row],[Project Name]]&InputsResults[[#This Row],[Project Type]],Model[Project Name]&Model[Type],0)) -> 0.4356142366 | Q10: =INDEX(Model[OMEx_Ubnd],MATCH(InputsResults[[#This Row],[Project Name]]&InputsResults[[#This Row],[Project Type]],Model[Project Name]&Model[Type],0)) -> 1.422988381 | R10: =InputsResults[[#This Row],[O&M Expenditure (2020 $million)]]/InputsResults[[#This Row],[Plant Capacity (MW)]]*1000 -> 78.73207714 | S10: =InputsResults[[#This Row],[O&M Expenditure (2020 $million): LBnd]]/InputsResults[[#This Row],[Plant Capacity (MW)]]*1000 -> 43.56142366 | T10: =InputsResults[[#This Row],[O&M Expenditure (2020 $million):Ubnd]]/InputsResults[[#This Row],[Plant Capacity (MW)]]*1000 -> 142.2988381
A11: Site 4 | B11: Non-Powered Dam (NPD) | C11: 100 | D11: 1 | E11: 18.169 | F11: Engineering | G11: 0 | H11: 0.5 | I11: =IF(ISBLANK(InputsResults[[#This Row],[Project Type]]),NA(),INDEX(Model[CapEx],MATCH(InputsResults[[#This Row],[Project Name]]&InputsResults[[#This Row],[Project Type]],Model[Project Name]&Model[Type],0))) -> 422.5075135 | J11: =IF(ISBLANK(InputsResults[[#This Row],[Project Type]]),NA(),INDEX(Model[CapEx_LBnd],MATCH(InputsResults[[#This Row],[Project Name]]&InputsResults[[#This Row],[Project Type]],Model[Project Name]&Model[Type],0))) -> 262.6104501 | K11: =IF(ISBLANK(InputsResults[[#This Row],[Project Type]]),NA(),INDEX(Model[CapEx_UBnd],MATCH(InputsResults[[#This Row],[Project Name]]&InputsResults[[#This Row],[Project Type]],Model[Project Name]&Model[Type],0))) -> 679.761978 | L11: =InputsResults[[#This Row],[Capital Expenditure (2020 $million)]]/InputsResults[[#This Row],[Plant Capacity (MW)]]*1000 -> 4225.075135 | M11: =InputsResults[[#This Row],[Capital Expenditure (2020 $million): LBnd]]/InputsResults[[#This Row],[Plant Capacity (MW)]]*1000 -> 2626.104501 | N11: =InputsResults[[#This Row],[Capital Expenditure (2020 $million): Ubnd]]/InputsResults[[#This Row],[Plant Capacity (MW)]]*1000 -> 6797.61978 | O11: =INDEX(Model[OMEx],MATCH(InputsResults[[#This Row],[Project Name]]&InputsResults[[#This Row],[Project Type]],Model[Project Name]&Model[Type],0)) -> 2.503822532 | P11: =INDEX(Model[OMEx_LBnd],MATCH(InputsResults[[#This Row],[Project Name]]&InputsResults[[#This Row],[Project Type]],Model[Project Name]&Model[Type],0)) -> 1.397639557 | Q11: =INDEX(Model[OMEx_Ubnd],MATCH(InputsResults[[#This Row],[Project Name]]&InputsResults[[#This Row],[Project Type]],Model[Project Name]&Model[Type],0)) -> 4.48551076 | R11: =InputsResults[[#This Row],[O&M Expenditure (2020 $million)]]/InputsResults[[#This Row],[Plant Capacity (MW)]]*1000 -> 25.03822532 | S11: =InputsResults[[#This Row],[O&M Expenditure (2020 $million): LBnd]]/InputsResults[[#This Row],[Plant Capacity (MW)]]*1000 -> 13.97639557 | T11: =InputsResults[[#This Row],[O&M Expenditure (2020 $million):Ubnd]]/InputsResults[[#This Row],[Plant Capacity (MW)]]*1000 -> 44.8551076
A12: Site 5 | B12: Non-Powered Dam (NPD) | C12: 19.99 | D12: 2 | E12: 19.2 | F12: Engineering | G12: 0 | H12: 0.5 | I12: =IF(ISBLANK(InputsResults[[#This Row],[Project Type]]),NA(),INDEX(Model[CapEx],MATCH(InputsResults[[#This Row],[Project Name]]&InputsResults[[#This Row],[Project Type]],Model[Project Name]&Model[Type],0))) -> 82.45910071 | J12: =IF(ISBLANK(InputsResults[[#This Row],[Project Type]]),NA(),INDEX(Model[CapEx_LBnd],MATCH(InputsResults[[#This Row],[Project Name]]&InputsResults[[#This Row],[Project Type]],Model[Project Name]&Model[Type],0))) -> 51.69623852 | K12: =IF(ISBLANK(InputsResults[[#This Row],[Project Type]]),NA(),INDEX(Model[CapEx_UBnd],MATCH(InputsResults[[#This Row],[Project Name]]&InputsResults[[#This Row],[Project Type]],Model[Project Name]&Model[Type],0))) -> 131.5280083 | L12: =InputsResults[[#This Row],[Capital Expenditure (2020 $million)]]/InputsResults[[#This Row],[Plant Capacity (MW)]]*1000 -> 4125.017544 | M12: =InputsResults[[#This Row],[Capital Expenditure (2020 $million): LBnd]]/InputsResults[[#This Row],[Plant Capacity (MW)]]*1000 -> 2586.104978 | N12: =InputsResults[[#This Row],[Capital Expenditure (2020 $million): Ubnd]]/InputsResults[[#This Row],[Plant Capacity (MW)]]*1000 -> 6579.690261 | O12: =INDEX(Model[OMEx],MATCH(InputsResults[[#This Row],[Project Name]]&InputsResults[[#This Row],[Project Type]],Model[Project Name]&Model[Type],0)) -> 1.007137381 | P12: =INDEX(Model[OMEx_LBnd],MATCH(InputsResults[[#This Row],[Project Name]]&InputsResults[[#This Row],[Project Type]],Model[Project Name]&Model[Type],0)) -> 0.5615647912 | Q12: =INDEX(Model[OMEx_Ubnd],MATCH(InputsResults[[#This Row],[Project Name]]&InputsResults[[#This Row],[Project Type]],Model[Project Name]&Model[Type],0)) -> 1.806248754 | R12: =InputsResults[[#This Row],[O&M Expenditure (2020 $million)]]/InputsResults[[#This Row],[Plant Capacity (MW)]]*1000 -> 50.38206008 | S12: =InputsResults[[#This Row],[O&M Expenditure (2020 $million): LBnd]]/InputsResults[[#This Row],[Plant Capacity (MW)]]*1000 -> 28.0922857 | T12: =InputsResults[[#This Row],[O&M Expenditure (2020 $million):Ubnd]]/InputsResults[[#This Row],[Plant Capacity (MW)]]*1000 -> 90.3576165
A13: Site 6 | B13: Non-Powered Dam (NPD) | C13: 40 | D13: 0.1 | E13: 16 | F13: Engineering | G13: 0 | H13: 0.5 | I13: =IF(ISBLANK(InputsResults[[#This Row],[Project Type]]),NA(),INDEX(Model[CapEx],MATCH(InputsResults[[#This Row],[Project Name]]&InputsResults[[#This Row],[Project Type]],Model[Project Name]&Model[Type],0))) -> 192.4247179 | J13: =IF(ISBLANK(InputsResults[[#This Row],[Project Type]]),NA(),INDEX(Model[CapEx_LBnd],MATCH(InputsResults[[#This Row],[Project Name]]&InputsResults[[#This Row],[Project Type]],Model[Project Name]&Model[Type],0))) -> 119.7765437 | K13: =IF(ISBLANK(InputsResults[[#This Row],[Project Type]]),NA(),INDEX(Model[CapEx_UBnd],MATCH(InputsResults[[#This Row],[Project Name]]&InputsResults[[#This Row],[Project Type]],Model[Project Name]&Model[Type],0))) -> 309.1362541 | L13: =InputsResults[[#This Row],[Capital Expenditure (2020 $million)]]/InputsResults[[#This Row],[Plant Capacity (MW)]]*1000 -> 4810.617947 | M13: =InputsResults[[#This Row],[Capital Expenditure (2020 $million): LBnd]]/InputsResults[[#This Row],[Plant Capacity (MW)]]*1000 -> 2994.413593 | N13: =InputsResults[[#This Row],[Capital Expenditure (2020 $million): Ubnd]]/InputsResults[[#This Row],[Plant Capacity (MW)]]*1000 -> 7728.406352 | O13: =INDEX(Model[OMEx],MATCH(InputsResults[[#This Row],[Project Name]]&InputsResults[[#This Row],[Project Type]],Model[Project Name]&Model[Type],0)) -> 1.305205558 | P13: =INDEX(Model[OMEx_LBnd],MATCH(InputsResults[[#This Row],[Project Name]]&InputsResults[[#This Row],[Project Type]],Model[Project Name]&Model[Type],0)) -> 0.7283162629 | Q13: =INDEX(Model[OMEx_Ubnd],MATCH(InputsResults[[#This Row],[Project Name]]&InputsResults[[#This Row],[Project Type]],Model[Project Name]&Model[Type],0)) -> 2.33904093 | R13: =InputsResults[[#This Row],[O&M Expenditure (2020 $million)]]/InputsResults[[#This Row],[Plant Capacity (MW)]]*1000 -> 32.63013895 | S13: =InputsResults[[#This Row],[O&M Expenditure (2020 $million): LBnd]]/InputsResults[[#This Row],[Plant Capacity (MW)]]*1000 -> 18.20790657 | T13: =InputsResults[[#This Row],[O&M Expenditure (2020 $million):Ubnd]]/InputsResults[[#This Row],[Plant Capacity (MW)]]*1000 -> 58.47602325
A14: Site 7 | B14: Non-Powered Dam (NPD) | C14: 0.999 | D14: 1 | E14: 13 | F14: Engineering | G14: 0 | H14: 0.5 | I14: =IF(ISBLANK(InputsResults[[#This Row],[Project Type]]),NA(),INDEX(Model[CapEx],MATCH(InputsResults[[#This Row],[Project Name]]&InputsResults[[#This Row],[Project Type]],Model[Project Name]&Model[Type],0))) -> 6.229658585 | J14: =IF(ISBLANK(InputsResults[[#This Row],[Project Type]]),NA(),INDEX(Model[CapEx_LBnd],MATCH(InputsResults[[#This Row],[Project Name]]&InputsResults[[#This Row],[Project Type]],Model[Project Name]&Model[Type],0))) -> 3.874396005 | K14: =IF(ISBLANK(InputsResults[[#This Row],[Project Type]]),NA(),INDEX(Model[CapEx_UBnd],MATCH(InputsResults[[#This Row],[Project Name]]&InputsResults[[#This Row],[Project Type]],Model[Project Name]&Model[Type],0))) -> 10.01669577 | L14: =InputsResults[[#This Row],[Capital Expenditure (2020 $million)]]/InputsResults[[#This Row],[Plant Capacity (MW)]]*1000 -> 6235.894479 | M14: =InputsResults[[#This Row],[Capital Expenditure (2020 $million): LBnd]]/InputsResults[[#This Row],[Plant Capacity (MW)]]*1000 -> 3878.274279 | N14: =InputsResults[[#This Row],[Capital Expenditure (2020 $million): Ubnd]]/InputsResults[[#This Row],[Plant Capacity (MW)]]*1000 -> 10026.7225 | O14: =INDEX(Model[OMEx],MATCH(InputsResults[[#This Row],[Project Name]]&InputsResults[[#This Row],[Project Type]],Model[Project Name]&Model[Type],0)) -> 0.1160100628 | P14: =INDEX(Model[OMEx_LBnd],MATCH(InputsResults[[#This Row],[Project Name]]&InputsResults[[#This Row],[Project Type]],Model[Project Name]&Model[Type],0)) -> 0.06343713045 | Q14: =INDEX(Model[OMEx_Ubnd],MATCH(InputsResults[[#This Row],[Project Name]]&InputsResults[[#This Row],[Project Type]],Model[Project Name]&Model[Type],0)) -> 0.2121523243 | R14: =InputsResults[[#This Row],[O&M Expenditure (2020 $million)]]/InputsResults[[#This Row],[Plant Capacity (MW)]]*1000 -> 116.126189 | S14: =InputsResults[[#This Row],[O&M Expenditure (2020 $million): LBnd]]/InputsResults[[#This Row],[Plant Capacity (MW)]]*1000 -> 63.50063108 | T14: =InputsResults[[#This Row],[O&M Expenditure (2020 $million):Ubnd]]/InputsResults[[#This Row],[Plant Capacity (MW)]]*1000 -> 212.364689
A15: Site 8 | B15: Non-Powered Dam (NPD) | C15: 9.2 | D15: 1 | E15: 21.705 | F15: Engineering | G15: 0 | H15: 0.5 | I15: =IF(ISBLANK(InputsResults[[#This Row],[Project Type]]),NA(),INDEX(Model[CapEx],MATCH(InputsResults[[#This Row],[Project Name]]&InputsResults[[#This Row],[Project Type]],Model[Project Name]&Model[Type],0))) -> 42.05131945 | J15: =IF(ISBLANK(InputsResults[[#This Row],[Project Type]]),NA(),INDEX(Model[CapEx_LBnd],MATCH(InputsResults[[#This Row],[Project Name]]&InputsResults[[#This Row],[Project Type]],Model[Project Name]&Model[Type],0))) -> 26.31868652 | K15: =IF(ISBLANK(InputsResults[[#This Row],[Project Type]]),NA(),INDEX(Model[CapEx_UBnd],MATCH(InputsResults[[#This Row],[Project Name]]&InputsResults[[#This Row],[Project Type]],Model[Project Name]&Model[Type],0))) -> 67.18851511 | L15: =InputsResults[[#This Row],[Capital Expenditure (2020 $million)]]/InputsResults[[#This Row],[Plant Capacity (MW)]]*1000 -> 4570.795592 | M15: =InputsResults[[#This Row],[Capital Expenditure (2020 $million): LBnd]]/InputsResults[[#This Row],[Plant Capacity (MW)]]*1000 -> 2860.726796 | N15: =InputsResults[[#This Row],[Capital Expenditure (2020 $million): Ubnd]]/InputsResults[[#This Row],[Plant Capacity (MW)]]*1000 -> 7303.099469 | O15: =INDEX(Model[OMEx],MATCH(InputsResults[[#This Row],[Project Name]]&InputsResults[[#This Row],[Project Type]],Model[Project Name]&Model[Type],0)) -> 0.7420032882 | P15: =INDEX(Model[OMEx_LBnd],MATCH(InputsResults[[#This Row],[Project Name]]&InputsResults[[#This Row],[Project Type]],Model[Project Name]&Model[Type],0)) -> 0.4107475128 | Q15: =INDEX(Model[OMEx_Ubnd],MATCH(InputsResults[[#This Row],[Project Name]]&InputsResults[[#This Row],[Project Type]],Model[Project Name]&Model[Type],0)) -> 1.340407093 | R15: =InputsResults[[#This Row],[O&M Expenditure (2020 $million)]]/InputsResults[[#This Row],[Plant Capacity (MW)]]*1000 -> 80.65253132 | S15: =InputsResults[[#This Row],[O&M Expenditure (2020 $million): LBnd]]/InputsResults[[#This Row],[Plant Capacity (MW)]]*1000 -> 44.64646879 | T15: =InputsResults[[#This Row],[O&M Expenditure (2020 $million):Ubnd]]/InputsResults[[#This Row],[Plant Capacity (MW)]]*1000 -> 145.6964232
A16: Site 9 | B16: Non-Powered Dam (NPD) | C16: 2.8 | D16: 1 | E16: 18.628 | F16: Engineering | G16: 10 | H16: 0.5 | I16: =IF(ISBLANK(InputsResults[[#This Row],[Project Type]]),NA(),INDEX(Model[CapEx],MATCH(InputsResults[[#This Row],[Project Name]]&InputsResults[[#This Row],[Project Type]],Model[Project Name]&Model[Type],0))) -> 15.12264895 | J16: =IF(ISBLANK(InputsResults[[#This Row],[Project Type]]),NA(),INDEX(Model[CapEx_LBnd],MATCH(InputsResults[[#This Row],[Project Name]]&InputsResults[[#This Row],[Project Type]],Model[Project Name]&Model[Type],0))) -> 9.485592241 | K16: =IF(ISBLANK(InputsResults[[#This Row],[Project Type]]),NA(),INDEX(Model[CapEx_UBnd],MATCH(InputsResults[[#This Row],[Project Name]]&InputsResults[[#This Row],[Project Type]],Model[Project Name]&Model[Type],0))) -> 24.10967133 | L16: =InputsResults[[#This Row],[Capital Expenditure (2020 $million)]]/InputsResults[[#This Row],[Plant Capacity (MW)]]*1000 -> 5400.946054 | M16: =InputsResults[[#This Row],[Capital Expenditure (2020 $million): LBnd]]/InputsResults[[#This Row],[Plant Capacity (MW)]]*1000 -> 3387.711514 | N16: =InputsResults[[#This Row],[Capital Expenditure (2020 $million): Ubnd]]/InputsResults[[#This Row],[Plant Capacity (MW)]]*1000 -> 8610.596904 | O16: =INDEX(Model[OMEx],MATCH(InputsResults[[#This Row],[Project Name]]&InputsResults[[#This Row],[Project Type]],Model[Project Name]&Model[Type],0)) -> 0.333148521 | P16: =INDEX(Model[OMEx_LBnd],MATCH(InputsResults[[#This Row],[Project Name]]&InputsResults[[#This Row],[Project Type]],Model[Project Name]&Model[Type],0)) -> 0.1856757594 | Q16: =INDEX(Model[OMEx_Ubnd],MATCH(InputsResults[[#This Row],[Project Name]]&InputsResults[[#This Row],[Project Type]],Model[Project Name]&Model[Type],0)) -> 0.5977513566 | R16: =InputsResults[[#This Row],[O&M Expenditure (2020 $million)]]/InputsResults[[#This Row],[Plant Capacity (MW)]]*1000 -> 118.9816146 | S16: =InputsResults[[#This Row],[O&M Expenditure (2020 $million): LBnd]]/InputsResults[[#This Row],[Plant Capacity (MW)]]*1000 -> 66.3127712 | T16: =InputsResults[[#This Row],[O&M Expenditure (2020 $million):Ubnd]]/InputsResults[[#This Row],[Plant Capacity (MW)]]*1000 -> 213.4826273
A17: Site 10 | B17: Non-Powered Dam (NPD) | C17: 0.669 | D17: 1 | E17: 12 | F17: Engineering | G17: 10 | H17: 0.5 | I17: =IF(ISBLANK(InputsResults[[#This Row],[Project Type]]),NA(),INDEX(Model[CapEx],MATCH(InputsResults[[#This Row],[Project Name]]&InputsResults[[#This Row],[Project Type]],Model[Project Name]&Model[Type],0))) -> 4.429918557 | J17: =IF(ISBLANK(InputsResults[[#This Row],[Project Type]]),NA(),INDEX(Model[CapEx_LBnd],MATCH(InputsResults[[#This Row],[Project Name]]&InputsResults[[#This Row],[Project Type]],Model[Project Name]&Model[Type],0))) -> 2.757941159 | K17: =IF(ISBLANK(InputsResults[[#This Row],[Project Type]]),NA(),INDEX(Model[CapEx_UBnd],MATCH(InputsResults[[#This Row],[Project Name]]&InputsResults[[#This Row],[Project Type]],Model[Project Name]&Model[Type],0))) -> 7.115517444 | L17: =InputsResults[[#This Row],[Capital Expenditure (2020 $million)]]/InputsResults[[#This Row],[Plant Capacity (MW)]]*1000 -> 6621.701879 | M17: =InputsResults[[#This Row],[Capital Expenditure (2020 $million): LBnd]]/InputsResults[[#This Row],[Plant Capacity (MW)]]*1000 -> 4122.483047 | N17: =InputsResults[[#This Row],[Capital Expenditure (2020 $million): Ubnd]]/InputsResults[[#This Row],[Plant Capacity (MW)]]*1000 -> 10636.04999 | O17: =INDEX(Model[OMEx],MATCH(InputsResults[[#This Row],[Project Name]]&InputsResults[[#This Row],[Project Type]],Model[Project Name]&Model[Type],0)) -> 0.09124922618 | P17: =INDEX(Model[OMEx_LBnd],MATCH(InputsResults[[#This Row],[Project Name]]&InputsResults[[#This Row],[Project Type]],Model[Project Name]&Model[Type],0)) -> 0.05010183761 | Q17: =INDEX(Model[OMEx_Ubnd],MATCH(InputsResults[[#This Row],[Project Name]]&InputsResults[[#This Row],[Project Type]],Model[Project Name]&Model[Type],0)) -> 0.1661899379 | R17: =InputsResults[[#This Row],[O&M Expenditure (2020 $million)]]/InputsResults[[#This Row],[Plant Capacity (MW)]]*1000 -> 136.3964517 | S17: =InputsResults[[#This Row],[O&M Expenditure (2020 $million): LBnd]]/InputsResults[[#This Row],[Plant Capacity (MW)]]*1000 -> 74.89063918 | T17: =InputsResults[[#This Row],[O&M Expenditure (2020 $million):Ubnd]]/InputsResults[[#This Row],[Plant Capacity (MW)]]*1000 -> 248.4154527
A18: Site 11 | B18: Non-Powered Dam (NPD) | C18: 14.6 | D18: 1 | E18: 38.757 | F18: Engineering | G18: 0 | H18: 0.5 | I18: =IF(ISBLANK(InputsResults[[#This Row],[Project Type]]),NA(),INDEX(Model[CapEx],MATCH(InputsResults[[#This Row],[Project Name]]&InputsResults[[#This Row],[Project Type]],Model[Project Name]&Model[Type],0))) -> 54.21260147 | J18: =IF(ISBLANK(InputsResults[[#This Row],[Project Type]]),NA(),INDEX(Model[CapEx_LBnd],MATCH(InputsResults[[#This Row],[Project Name]]&InputsResults[[#This Row],[Project Type]],Model[Project Name]&Model[Type],0))) -> 33.8627097 | K18: =IF(ISBLANK(InputsResults[[#This Row],[Project Type]]),NA(),INDEX(Model[CapEx_UBnd],MATCH(InputsResults[[#This Row],[Project Name]]&InputsResults[[#This Row],[Project Type]],Model[Project Name]&Model[Type],0))) -> 86.79181862 | L18: =InputsResults[[#This Row],[Capital Expenditure (2020 $million)]]/InputsResults[[#This Row],[Plant Capacity (MW)]]*1000 -> 3713.191881 | M18: =InputsResults[[#This Row],[Capital Expenditure (2020 $million): LBnd]]/InputsResults[[#This Row],[Plant Capacity (MW)]]*1000 -> 2319.363678 | N18: =InputsResults[[#This Row],[Capital Expenditure (2020 $million): Ubnd]]/InputsResults[[#This Row],[Plant Capacity (MW)]]*1000 -> 5944.645111 | O18: =INDEX(Model[OMEx],MATCH(InputsResults[[#This Row],[Project Name]]&InputsResults[[#This Row],[Project Type]],Model[Project Name]&Model[Type],0)) -> 0.8055071033 | P18: =INDEX(Model[OMEx_LBnd],MATCH(InputsResults[[#This Row],[Project Name]]&InputsResults[[#This Row],[Project Type]],Model[Project Name]&Model[Type],0)) -> 0.4489187971 | Q18: =INDEX(Model[OMEx_Ubnd],MATCH(InputsResults[[#This Row],[Project Name]]&InputsResults[[#This Row],[Project Type]],Model[Project Name]&Model[Type],0)) -> 1.445343117 | R18: =InputsResults[[#This Row],[O&M Expenditure (2020 $million)]]/InputsResults[[#This Row],[Plant Capacity (MW)]]*1000 -> 55.17171941 | S18: =InputsResults[[#This Row],[O&M Expenditure (2020 $million): LBnd]]/InputsResults[[#This Row],[Plant Capacity (MW)]]*1000 -> 30.74786281 | T18: =InputsResults[[#This Row],[O&M Expenditure (2020 $million):Ubnd]]/InputsResults[[#This Row],[Plant Capacity (MW)]]*1000 -> 98.99610391
A19: Site 12 | B19: Non-Powered Dam (NPD) | C19: 3.4 | D19: 1 | E19: 150 | F19: Engineering | G19: 0 | H19: 0.5 | I19: =IF(ISBLANK(InputsResults[[#This Row],[Project Type]]),NA(),INDEX(Model[CapEx],MATCH(InputsResults[[#This Row],[Project Name]]&InputsResults[[#This Row],[Project Type]],Model[Project Name]&Model[Type],0))) -> 15.41154493 | J19: =IF(ISBLANK(InputsResults[[#This Row],[Project Type]]),NA(),INDEX(Model[CapEx_LBnd],MATCH(InputsResults[[#This Row],[Project Name]]&InputsResults[[#This Row],[Project Type]],Model[Project Name]&Model[Type],0))) -> 9.625063001 | K19: =IF(ISBLANK(InputsResults[[#This Row],[Project Type]]),NA(),INDEX(Model[CapEx_UBnd],MATCH(InputsResults[[#This Row],[Project Name]]&InputsResults[[#This Row],[Project Type]],Model[Project Name]&Model[Type],0))) -> 24.67679608 | L19: =InputsResults[[#This Row],[Capital Expenditure (2020 $million)]]/InputsResults[[#This Row],[Plant Capacity (MW)]]*1000 -> 4532.807331 | M19: =InputsResults[[#This Row],[Capital Expenditure (2020 $million): LBnd]]/InputsResults[[#This Row],[Plant Capacity (MW)]]*1000 -> 2830.900883 | N19: =InputsResults[[#This Row],[Capital Expenditure (2020 $million): Ubnd]]/InputsResults[[#This Row],[Plant Capacity (MW)]]*1000 -> 7257.881201 | O19: =INDEX(Model[OMEx],MATCH(InputsResults[[#This Row],[Project Name]]&InputsResults[[#This Row],[Project Type]],Model[Project Name]&Model[Type],0)) -> 0.3656333803 | P19: =INDEX(Model[OMEx_LBnd],MATCH(InputsResults[[#This Row],[Project Name]]&InputsResults[[#This Row],[Project Type]],Model[Project Name]&Model[Type],0)) -> 0.2027423887 | Q19: =INDEX(Model[OMEx_Ubnd],MATCH(InputsResults[[#This Row],[Project Name]]&InputsResults[[#This Row],[Project Type]],Model[Project Name]&Model[Type],0)) -> 0.6593972264 | R19: =InputsResults[[#This Row],[O&M Expenditure (2020 $million)]]/InputsResults[[#This Row],[Plant Capacity (MW)]]*1000 -> 107.5392295 | S19: =InputsResults[[#This Row],[O&M Expenditure (2020 $million): LBnd]]/InputsResults[[#This Row],[Plant Capacity (MW)]]*1000 -> 59.63011432 | T19: =InputsResults[[#This Row],[O&M Expenditure (2020 $million):Ubnd]]/InputsResults[[#This Row],[Plant Capacity (MW)]]*1000 -> 193.9403607
A20: Site 13 | B20: Non-Powered Dam (NPD) | C20: 29 | D20: 1 | E20: 101.789 | F20: Engineering | G20: 0 | H20: 0.5 | I20: =IF(ISBLANK(InputsResults[[#This Row],[Project Type]]),NA(),INDEX(Model[CapEx],MATCH(InputsResults[[#This Row],[Project Name]]&InputsResults[[#This Row],[Project Type]],Model[Project Name]&Model[Type],0))) -> 103.8128373 | J20: =IF(ISBLANK(InputsResults[[#This Row],[Project Type]]),NA(),INDEX(Model[CapEx_LBnd],MATCH(InputsResults[[#This Row],[Project Name]]&InputsResults[[#This Row],[Project Type]],Model[Project Name]&Model[Type],0))) -> 64.41801303 | K20: =IF(ISBLANK(InputsResults[[#This Row],[Project Type]]),NA(),INDEX(Model[CapEx_UBnd],MATCH(InputsResults[[#This Row],[Project Name]]&InputsResults[[#This Row],[Project Type]],Model[Project Name]&Model[Type],0))) -> 167.2995594 | L20: =InputsResults[[#This Row],[Capital Expenditure (2020 $million)]]/InputsResults[[#This Row],[Plant Capacity (MW)]]*1000 -> 3579.753012 | M20: =InputsResults[[#This Row],[Capital Expenditure (2020 $million): LBnd]]/InputsResults[[#This Row],[Plant Capacity (MW)]]*1000 -> 2221.310794 | N20: =InputsResults[[#This Row],[Capital Expenditure (2020 $million): Ubnd]]/InputsResults[[#This Row],[Plant Capacity (MW)]]*1000 -> 5768.950324 | O20: =INDEX(Model[OMEx],MATCH(InputsResults[[#This Row],[Project Name]]&InputsResults[[#This Row],[Project Type]],Model[Project Name]&Model[Type],0)) -> 1.31211362 | P20: =INDEX(Model[OMEx_LBnd],MATCH(InputsResults[[#This Row],[Project Name]]&InputsResults[[#This Row],[Project Type]],Model[Project Name]&Model[Type],0)) -> 0.7312856149 | Q20: =INDEX(Model[OMEx_Ubnd],MATCH(InputsResults[[#This Row],[Project Name]]&InputsResults[[#This Row],[Project Type]],Model[Project Name]&Model[Type],0)) -> 2.354267768 | R20: =InputsResults[[#This Row],[O&M Expenditure (2020 $million)]]/InputsResults[[#This Row],[Plant Capacity (MW)]]*1000 -> 45.24529725 | S20: =InputsResults[[#This Row],[O&M Expenditure (2020 $million): LBnd]]/InputsResults[[#This Row],[Plant Capacity (MW)]]*1000 -> 25.21674534 | T20: =InputsResults[[#This Row],[O&M Expenditure (2020 $million):Ubnd]]/InputsResults[[#This Row],[Plant Capacity (MW)]]*1000 -> 81.18164719
D21: 1 | G21: 0 | H21: 0.5 | I21: =IF(ISBLANK(InputsResults[[#This Row],[Project Type]]),NA(),INDEX(Model[CapEx],MATCH(InputsResults[[#This Row],[Project Name]]&InputsResults[[#This Row],[Project Type]],Model[Project Name]&Model[Type],0))) ->  | J21: =IF(ISBLANK(InputsResults[[#This Row],[Project Type]]),NA(),INDEX(Model[CapEx_LBnd],MATCH(InputsResults[[#This Row],[Project Name]]&InputsResults[[#This Row],[Project Type]],Model[Project Name]&Model[Type],0))) ->  | K21: =IF(ISBLANK(InputsResults[[#This Row],[Project Type]]),NA(),INDEX(Model[CapEx_UBnd],MATCH(InputsResults[[#This Row],[Project Name]]&InputsResults[[#This Row],[Project Type]],Model[Project Name]&Model[Type],0))) ->  | L21: =InputsResults[[#This Row],[Capital Expenditure (2020 $million)]]/InputsResults[[#This Row],[Plant Capacity (MW)]]*1000 ->  | M21: =InputsResults[[#This Row],[Capital Expenditure (2020 $million): LBnd]]/InputsResults[[#This Row],[Plant Capacity (MW)]]*1000 ->  | N21: =InputsResults[[#This Row],[Capital Expenditure (2020 $million): Ubnd]]/InputsResults[[#This Row],[Plant Capacity (MW)]]*1000 ->  | O21: =INDEX(Model[OMEx],MATCH(InputsResults[[#This Row],[Project Name]]&InputsResults[[#This Row],[Project Type]],Model[Project Name]&Model[Type],0)) ->  | P21: =INDEX(Model[OMEx_LBnd],MATCH(InputsResults[[#This Row],[Project Name]]&InputsResults[[#This Row],[Project Type]],Model[Project Name]&Model[Type],0)) ->  | Q21: =INDEX(Model[OMEx_Ubnd],MATCH(InputsResults[[#This Row],[Project Name]]&InputsResults[[#This Row],[Project Type]],Model[Project Name]&Model[Type],0)) ->  | R21: =InputsResults[[#This Row],[O&M Expenditure (2020 $million)]]/InputsResults[[#This Row],[Plant Capacity (MW)]]*1000 ->  | S21: =InputsResults[[#This Row],[O&M Expenditure (2020 $million): LBnd]]/InputsResults[[#This Row],[Plant Capacity (MW)]]*1000 ->  | T21: =InputsResults[[#This Row],[O&M Expenditure (2020 $million):Ubnd]]/InputsResults[[#This Row],[Plant Capacity (MW)]]*1000 -> 
D22: 1 | G22: 0 | H22: 0.5 | I22: =IF(ISBLANK(InputsResults[[#This Row],[Project Type]]),NA(),INDEX(Model[CapEx],MATCH(InputsResults[[#This Row],[Project Name]]&InputsResults[[#This Row],[Project Type]],Model[Project Name]&Model[Type],0))) ->  | J22: =IF(ISBLANK(InputsResults[[#This Row],[Project Type]]),NA(),INDEX(Model[CapEx_LBnd],MATCH(InputsResults[[#This Row],[Project Name]]&InputsResults[[#This Row],[Project Type]],Model[Project Name]&Model[Type],0))) ->  | K22: =IF(ISBLANK(InputsResults[[#This Row],[Project Type]]),NA(),INDEX(Model[CapEx_UBnd],MATCH(InputsResults[[#This Row],[Project Name]]&InputsResults[[#This Row],[Project Type]],Model[Project Name]&Model[Type],0))) ->  | L22: =InputsResults[[#This Row],[Capital Expenditure (2020 $million)]]/InputsResults[[#This Row],[Plant Capacity (MW)]]*1000 ->  | M22: =InputsResults[[#This Row],[Capital Expenditure (2020 $million): LBnd]]/InputsResults[[#This Row],[Plant Capacity (MW)]]*1000 ->  | N22: =InputsResults[[#This Row],[Capital Expenditure (2020 $million): Ubnd]]/InputsResults[[#This Row],[Plant Capacity (MW)]]*1000 ->  | O22: =INDEX(Model[OMEx],MATCH(InputsResults[[#This Row],[Project Name]]&InputsResults[[#This Row],[Project Type]],Model[Project Name]&Model[Type],0)) ->  | P22: =INDEX(Model[OMEx_LBnd],MATCH(InputsResults[[#This Row],[Project Name]]&InputsResults[[#This Row],[Project Type]],Model[Project Name]&Model[Type],0)) ->  | Q22: =INDEX(Model[OMEx_Ubnd],MATCH(InputsResults[[#This Row],[Project Name]]&InputsResults[[#This Row],[Project Type]],Model[Project Name]&Model[Type],0)) ->  | R22: =InputsResults[[#This Row],[O&M Expenditure (2020 $million)]]/InputsResults[[#This Row],[Plant Capacity (MW)]]*1000 ->  | S22: =InputsResults[[#This Row],[O&M Expenditure (2020 $million): LBnd]]/InputsResults[[#This Row],[Plant Capacity (MW)]]*1000 ->  | T22: =InputsResults[[#This Row],[O&M Expenditure (2020 $million):Ubnd]]/InputsResults[[#This Row],[Plant Capacity (MW)]]*1000 -> 
D23: 1 | G23: 0 | H23: 0.5 | I23: =IF(ISBLANK(InputsResults[[#This Row],[Project Type]]),NA(),INDEX(Model[CapEx],MATCH(InputsResults[[#This Row],[Project Name]]&InputsResults[[#This Row],[Project Type]],Model[Project Name]&Model[Type],0))) ->  | J23: =IF(ISBLANK(InputsResults[[#This Row],[Project Type]]),NA(),INDEX(Model[CapEx_LBnd],MATCH(InputsResults[[#This Row],[Project Name]]&InputsResults[[#This Row],[Project Type]],Model[Project Name]&Model[Type],0))) ->  | K23: =IF(ISBLANK(InputsResults[[#This Row],[Project Type]]),NA(),INDEX(Model[CapEx_UBnd],MATCH(InputsResults[[#This Row],[Project Name]]&InputsResults[[#This Row],[Project Type]],Model[Project Name]&Model[Type],0))) ->  | L23: =InputsResults[[#This Row],[Capital Expenditure (2020 $million)]]/InputsResults[[#This Row],[Plant Capacity (MW)]]*1000 ->  | M23: =InputsResults[[#This Row],[Capital Expenditure (2020 $million): LBnd]]/InputsResults[[#This Row],[Plant Capacity (MW)]]*1000 ->  | N23: =InputsResults[[#This Row],[Capital Expenditure (2020 $million): Ubnd]]/InputsResults[[#This Row],[Plant Capacity (MW)]]*1000 ->  | O23: =INDEX(Model[OMEx],MATCH(InputsResults[[#This Row],[Project Name]]&InputsResults[[#This Row],[Project Type]],Model[Project Name]&Model[Type],0)) ->  | P23: =INDEX(Model[OMEx_LBnd],MATCH(InputsResults[[#This Row],[Project Name]]&InputsResults[[#This Row],[Project Type]],Model[Project Name]&Model[Type],0)) ->  | Q23: =INDEX(Model[OMEx_Ubnd],MATCH(InputsResults[[#This Row],[Project Name]]&InputsResults[[#This Row],[Project Type]],Model[Project Name]&Model[Type],0)) ->  | R23: =InputsResults[[#This Row],[O&M Expenditure (2020 $million)]]/InputsResults[[#This Row],[Plant Capacity (MW)]]*1000 ->  | S23: =InputsResults[[#This Row],[O&M Expenditure (2020 $million): LBnd]]/InputsResults[[#This Row],[Plant Capacity (MW)]]*1000 ->  | T23: =InputsResults[[#This Row],[O&M Expenditure (2020 $million):Ubnd]]/InputsResults[[#This Row],[Plant Capacity (MW)]]*1000 -> 
D24: 1 | G24: 0 | H24: 0.5 | I24: =IF(ISBLANK(InputsResults[[#This Row],[Project Type]]),NA(),INDEX(Model[CapEx],MATCH(InputsResults[[#This Row],[Project Name]]&InputsResults[[#This Row],[Project Type]],Model[Project Name]&Model[Type],0))) ->  | J24: =IF(ISBLANK(InputsResults[[#This Row],[Project Type]]),NA(),INDEX(Model[CapEx_LBnd],MATCH(InputsResults[[#This Row],[Project Name]]&InputsResults[[#This Row],[Project Type]],Model[Project Name]&Model[Type],0))) ->  | K24: =IF(ISBLANK(InputsResults[[#This Row],[Project Type]]),NA(),INDEX(Model[CapEx_UBnd],MATCH(InputsResults[[#This Row],[Project Name]]&InputsResults[[#This Row],[Project Type]],Model[Project Name]&Model[Type],0))) ->  | L24: =InputsResults[[#This Row],[Capital Expenditure (2020 $million)]]/InputsResults[[#This Row],[Plant Capacity (MW)]]*1000 ->  | M24: =InputsResults[[#This Row],[Capital Expenditure (2020 $million): LBnd]]/InputsResults[[#This Row],[Plant Capacity (MW)]]*1000 ->  | N24: =InputsResults[[#This Row],[Capital Expenditure (2020 $million): Ubnd]]/InputsResults[[#This Row],[Plant Capacity (MW)]]*1000 ->  | O24: =INDEX(Model[OMEx],MATCH(InputsResults[[#This Row],[Project Name]]&InputsResults[[#This Row],[Project Type]],Model[Project Name]&Model[Type],0)) ->  | P24: =INDEX(Model[OMEx_LBnd],MATCH(InputsResults[[#This Row],[Project Name]]&InputsResults[[#This Row],[Project Type]],Model[Project Name]&Model[Type],0)) ->  | Q24: =INDEX(Model[OMEx_Ubnd],MATCH(InputsResults[[#This Row],[Project Name]]&InputsResults[[#This Row],[Project Type]],Model[Project Name]&Model[Type],0)) ->  | R24: =InputsResults[[#This Row],[O&M Expenditure (2020 $million)]]/InputsResults[[#This Row],[Plant Capacity (MW)]]*1000 ->  | S24: =InputsResults[[#This Row],[O&M Expenditure (2020 $million): LBnd]]/InputsResults[[#This Row],[Plant Capacity (MW)]]*1000 ->  | T24: =InputsResults[[#This Row],[O&M Expenditure (2020 $million):Ubnd]]/InputsResults[[#This Row],[Plant Capacity (MW)]]*1000 -> 
D25: 1 | G25: 0 | H25: 0.5 | I25: =IF(ISBLANK(InputsResults[[#This Row],[Project Type]]),NA(),INDEX(Model[CapEx],MATCH(InputsResults[[#This Row],[Project Name]]&InputsResults[[#This Row],[Project Type]],Model[Project Name]&Model[Type],0))) ->  | J25: =IF(ISBLANK(InputsResults[[#This Row],[Project Type]]),NA(),INDEX(Model[CapEx_LBnd],MATCH(InputsResults[[#This Row],[Project Name]]&InputsResults[[#This Row],[Project Type]],Model[Project Name]&Model[Type],0))) ->  | K25: =IF(ISBLANK(InputsResults[[#This Row],[Project Type]]),NA(),INDEX(Model[CapEx_UBnd],MATCH(InputsResults[[#This Row],[Project Name]]&InputsResults[[#This Row],[Project Type]],Model[Project Name]&Model[Type],0))) ->  | L25: =InputsResults[[#This Row],[Capital Expenditure (2020 $million)]]/InputsResults[[#This Row],[Plant Capacity (MW)]]*1000 ->  | M25: =InputsResults[[#This Row],[Capital Expenditure (2020 $million): LBnd]]/InputsResults[[#This Row],[Plant Capacity (MW)]]*1000 ->  | N25: =InputsResults[[#This Row],[Capital Expenditure (2020 $million): Ubnd]]/InputsResults[[#This Row],[Plant Capacity (MW)]]*1000 ->  | O25: =INDEX(Model[OMEx],MATCH(InputsResults[[#This Row],[Project Name]]&InputsResults[[#This Row],[Project Type]],Model[Project Name]&Model[Type],0)) ->  | P25: =INDEX(Model[OMEx_LBnd],MATCH(InputsResults[[#This Row],[Project Name]]&InputsResults[[#This Row],[Project Type]],Model[Project Name]&Model[Type],0)) ->  | Q25: =INDEX(Model[OMEx_Ubnd],MATCH(InputsResults[[#This Row],[Project Name]]&InputsResults[[#This Row],[Project Type]],Model[Project Name]&Model[Type],0)) ->  | R25: =InputsResults[[#This Row],[O&M Expenditure (2020 $million)]]/InputsResults[[#This Row],[Plant Capacity (MW)]]*1000 ->  | S25: =InputsResults[[#This Row],[O&M Expenditure (2020 $million): LBnd]]/InputsResults[[#This Row],[Plant Capacity (MW)]]*1000 ->  | T25: =InputsResults[[#This Row],[O&M Expenditure (2020 $million):Ubnd]]/InputsResults[[#This Row],[Plant Capacity (MW)]]*1000 -> 
D26: 1 | G26: 0 | H26: 0.5 | I26: =IF(ISBLANK(InputsResults[[#This Row],[Project Type]]),NA(),INDEX(Model[CapEx],MATCH(InputsResults[[#This Row],[Project Name]]&InputsResults[[#This Row],[Project Type]],Model[Project Name]&Model[Type],0))) ->  | J26: =IF(ISBLANK(InputsResults[[#This Row],[Project Type]]),NA(),INDEX(Model[CapEx_LBnd],MATCH(InputsResults[[#This Row],[Project Name]]&InputsResults[[#This Row],[Project Type]],Model[Project Name]&Model[Type],0))) ->  | K26: =IF(ISBLANK(InputsResults[[#This Row],[Project Type]]),NA(),INDEX(Model[CapEx_UBnd],MATCH(InputsResults[[#This Row],[Project Name]]&InputsResults[[#This Row],[Project Type]],Model[Project Name]&Model[Type],0))) ->  | L26: =InputsResults[[#This Row],[Capital Expenditure (2020 $million)]]/InputsResults[[#This Row],[Plant Capacity (MW)]]*1000 ->  | M26: =InputsResults[[#This Row],[Capital Expenditure (2020 $million): LBnd]]/InputsResults[[#This Row],[Plant Capacity (MW)]]*1000 ->  | N26: =InputsResults[[#This Row],[Capital Expenditure (2020 $million): Ubnd]]/InputsResults[[#This Row],[Plant Capacity (MW)]]*1000 ->  | O26: =INDEX(Model[OMEx],MATCH(InputsResults[[#This Row],[Project Name]]&InputsResults[[#This Row],[Project Type]],Model[Project Name]&Model[Type],0)) ->  | P26: =INDEX(Model[OMEx_LBnd],MATCH(InputsResults[[#This Row],[Project Name]]&InputsResults[[#This Row],[Project Type]],Model[Project Name]&Model[Type],0)) ->  | Q26: =INDEX(Model[OMEx_Ubnd],MATCH(InputsResults[[#This Row],[Project Name]]&InputsResults[[#This Row],[Project Type]],Model[Project Name]&Model[Type],0)) ->  | R26: =InputsResults[[#This Row],[O&M Expenditure (2020 $million)]]/InputsResults[[#This Row],[Plant Capacity (MW)]]*1000 ->  | S26: =InputsResults[[#This Row],[O&M Expenditure (2020 $million): LBnd]]/InputsResults[[#This Row],[Plant Capacity (MW)]]*1000 ->  | T26: =InputsResults[[#This Row],[O&M Expenditure (2020 $million):Ubnd]]/InputsResults[[#This Row],[Plant Capacity (MW)]]*1000 -> 
D27: 1 | G27: 0 | H27: 0.5 | I27: =IF(ISBLANK(InputsResults[[#This Row],[Project Type]]),NA(),INDEX(Model[CapEx],MATCH(InputsResults[[#This Row],[Project Name]]&InputsResults[[#This Row],[Project Type]],Model[Project Name]&Model[Type],0))) ->  | J27: =IF(ISBLANK(InputsResults[[#This Row],[Project Type]]),NA(),INDEX(Model[CapEx_LBnd],MATCH(InputsResults[[#This Row],[Project Name]]&InputsResults[[#This Row],[Project Type]],Model[Project Name]&Model[Type],0))) ->  | K27: =IF(ISBLANK(InputsResults[[#This Row],[Project Type]]),NA(),INDEX(Model[CapEx_UBnd],MATCH(InputsResults[[#This Row],[Project Name]]&InputsResults[[#This Row],[Project Type]],Model[Project Name]&Model[Type],0))) ->  | L27: =InputsResults[[#This Row],[Capital Expenditure (2020 $million)]]/InputsResults[[#This Row],[Plant Capacity (MW)]]*1000 ->  | M27: =InputsResults[[#This Row],[Capital Expenditure (2020 $million): LBnd]]/InputsResults[[#This Row],[Plant Capacity (MW)]]*1000 ->  | N27: =InputsResults[[#This Row],[Capital Expenditure (2020 $million): Ubnd]]/InputsResults[[#This Row],[Plant Capacity (MW)]]*1000 ->  | O27: =INDEX(Model[OMEx],MATCH(InputsResults[[#This Row],[Project Name]]&InputsResults[[#This Row],[Project Type]],Model[Project Name]&Model[Type],0)) ->  | P27: =INDEX(Model[OMEx_LBnd],MATCH(InputsResults[[#This Row],[Project Name]]&InputsResults[[#This Row],[Project Type]],Model[Project Name]&Model[Type],0)) ->  | Q27: =INDEX(Model[OMEx_Ubnd],MATCH(InputsResults[[#This Row],[Project Name]]&InputsResults[[#This Row],[Project Type]],Model[Project Name]&Model[Type],0)) ->  | R27: =InputsResults[[#This Row],[O&M Expenditure (2020 $million)]]/InputsResults[[#This Row],[Plant Capacity (MW)]]*1000 ->  | S27: =InputsResults[[#This Row],[O&M Expenditure (2020 $million): LBnd]]/InputsResults[[#This Row],[Plant Capacity (MW)]]*1000 ->  | T27: =InputsResults[[#This Row],[O&M Expenditure (2020 $million):Ubnd]]/InputsResults[[#This Row],[Plant Capacity (MW)]]*1000 -> 
D28: 1 | G28: 0 | H28: 0.5 | I28: =IF(ISBLANK(InputsResults[[#This Row],[Project Type]]),NA(),INDEX(Model[CapEx],MATCH(InputsResults[[#This Row],[Project Name]]&InputsResults[[#This Row],[Project Type]],Model[Project Name]&Model[Type],0))) ->  | J28: =IF(ISBLANK(InputsResults[[#This Row],[Project Type]]),NA(),INDEX(Model[CapEx_LBnd],MATCH(InputsResults[[#This Row],[Project Name]]&InputsResults[[#This Row],[Project Type]],Model[Project Name]&Model[Type],0))) ->  | K28: =IF(ISBLANK(InputsResults[[#This Row],[Project Type]]),NA(),INDEX(Model[CapEx_UBnd],MATCH(InputsResults[[#This Row],[Project Name]]&InputsResults[[#This Row],[Project Type]],Model[Project Name]&Model[Type],0))) ->  | L28: =InputsResults[[#This Row],[Capital Expenditure (2020 $million)]]/InputsResults[[#This Row],[Plant Capacity (MW)]]*1000 ->  | M28: =InputsResults[[#This Row],[Capital Expenditure (2020 $million): LBnd]]/InputsResults[[#This Row],[Plant Capacity (MW)]]*1000 ->  | N28: =InputsResults[[#This Row],[Capital Expenditure (2020 $million): Ubnd]]/InputsResults[[#This Row],[Plant Capacity (MW)]]*1000 ->  | O28: =INDEX(Model[OMEx],MATCH(InputsResults[[#This Row],[Project Name]]&InputsResults[[#This Row],[Project Type]],Model[Project Name]&Model[Type],0)) ->  | P28: =INDEX(Model[OMEx_LBnd],MATCH(InputsResults[[#This Row],[Project Name]]&InputsResults[[#This Row],[Project Type]],Model[Project Name]&Model[Type],0)) ->  | Q28: =INDEX(Model[OMEx_Ubnd],MATCH(InputsResults[[#This Row],[Project Name]]&InputsResults[[#This Row],[Project Type]],Model[Project Name]&Model[Type],0)) ->  | R28: =InputsResults[[#This Row],[O&M Expenditure (2020 $million)]]/InputsResults[[#This Row],[Plant Capacity (MW)]]*1000 ->  | S28: =InputsResults[[#This Row],[O&M Expenditure (2020 $million): LBnd]]/InputsResults[[#This Row],[Plant Capacity (MW)]]*1000 ->  | T28: =InputsResults[[#This Row],[O&M Expenditure (2020 $million):Ubnd]]/InputsResults[[#This Row],[Plant Capacity (MW)]]*1000 -> 
D29: 1 | G29: 0 | H29: 0.5 | I29: =IF(ISBLANK(InputsResults[[#This Row],[Project Type]]),NA(),INDEX(Model[CapEx],MATCH(InputsResults[[#This Row],[Project Name]]&InputsResults[[#This Row],[Project Type]],Model[Project Name]&Model[Type],0))) ->  | J29: =IF(ISBLANK(InputsResults[[#This Row],[Project Type]]),NA(),INDEX(Model[CapEx_LBnd],MATCH(InputsResults[[#This Row],[Project Name]]&InputsResults[[#This Row],[Project Type]],Model[Project Name]&Model[Type],0))) ->  | K29: =IF(ISBLANK(InputsResults[[#This Row],[Project Type]]),NA(),INDEX(Model[CapEx_UBnd],MATCH(InputsResults[[#This Row],[Project Name]]&InputsResults[[#This Row],[Project Type]],Model[Project Name]&Model[Type],0))) ->  | L29: =InputsResults[[#This Row],[Capital Expenditure (2020 $million)]]/InputsResults[[#This Row],[Plant Capacity (MW)]]*1000 ->  | M29: =InputsResults[[#This Row],[Capital Expenditure (2020 $million): LBnd]]/InputsResults[[#This Row],[Plant Capacity (MW)]]*1000 ->  | N29: =InputsResults[[#This Row],[Capital Expenditure (2020 $million): Ubnd]]/InputsResults[[#This Row],[Plant Capacity (MW)]]*1000 ->  | O29: =INDEX(Model[OMEx],MATCH(InputsResults[[#This Row],[Project Name]]&InputsResults[[#This Row],[Project Type]],Model[Project Name]&Model[Type],0)) ->  | P29: =INDEX(Model[OMEx_LBnd],MATCH(InputsResults[[#This Row],[Project Name]]&InputsResults[[#This Row],[Project Type]],Model[Project Name]&Model[Type],0)) ->  | Q29: =INDEX(Model[OMEx_Ubnd],MATCH(InputsResults[[#This Row],[Project Name]]&InputsResults[[#This Row],[Project Type]],Model[Project Name]&Model[Type],0)) ->  | R29: =InputsResults[[#This Row],[O&M Expenditure (2020 $million)]]/InputsResults[[#This Row],[Plant Capacity (MW)]]*1000 ->  | S29: =InputsResults[[#This Row],[O&M Expenditure (2020 $million): LBnd]]/InputsResults[[#This Row],[Plant Capacity (MW)]]*1000 ->  | T29: =InputsResults[[#This Row],[O&M Expenditure (2020 $million):Ubnd]]/InputsResults[[#This Row],[Plant Capacity (MW)]]*1000 -> 
D30: 1 | G30: 0 | H30: 0.5 | I30: =IF(ISBLANK(InputsResults[[#This Row],[Project Type]]),NA(),INDEX(Model[CapEx],MATCH(InputsResults[[#This Row],[Project Name]]&InputsResults[[#This Row],[Project Type]],Model[Project Name]&Model[Type],0))) ->  | J30: =IF(ISBLANK(InputsResults[[#This Row],[Project Type]]),NA(),INDEX(Model[CapEx_LBnd],MATCH(InputsResults[[#This Row],[Project Name]]&InputsResults[[#This Row],[Project Type]],Model[Project Name]&Model[Type],0))) ->  | K30: =IF(ISBLANK(InputsResults[[#This Row],[Project Type]]),NA(),INDEX(Model[CapEx_UBnd],MATCH(InputsResults[[#This Row],[Project Name]]&InputsResults[[#This Row],[Project Type]],Model[Project Name]&Model[Type],0))) ->  | L30: =InputsResults[[#This Row],[Capital Expenditure (2020 $million)]]/InputsResults[[#This Row],[Plant Capacity (MW)]]*1000 ->  | M30: =InputsResults[[#This Row],[Capital Expenditure (2020 $million): LBnd]]/InputsResults[[#This Row],[Plant Capacity (MW)]]*1000 ->  | N30: =InputsResults[[#This Row],[Capital Expenditure (2020 $million): Ubnd]]/InputsResults[[#This Row],[Plant Capacity (MW)]]*1000 ->  | O30: =INDEX(Model[OMEx],MATCH(InputsResults[[#This Row],[Project Name]]&InputsResults[[#This Row],[Project Type]],Model[Project Name]&Model[Type],0)) ->  | P30: =INDEX(Model[OMEx_LBnd],MATCH(InputsResults[[#This Row],[Project Name]]&InputsResults[[#This Row],[Project Type]],Model[Project Name]&Model[Type],0)) ->  | Q30: =INDEX(Model[OMEx_Ubnd],MATCH(InputsResults[[#This Row],[Project Name]]&InputsResults[[#This Row],[Project Type]],Model[Project Name]&Model[Type],0)) ->  | R30: =InputsResults[[#This Row],[O&M Expenditure (2020 $million)]]/InputsResults[[#This Row],[Plant Capacity (MW)]]*1000 ->  | S30: =InputsResults[[#This Row],[O&M Expenditure (2020 $million): LBnd]]/InputsResults[[#This Row],[Plant Capacity (MW)]]*1000 ->  | T30: =InputsResults[[#This Row],[O&M Expenditure (2020 $million):Ubnd]]/InputsResults[[#This Row],[Plant Capacity (MW)]]*1000 -> 
D31: 1 | G31: 0 | H31: 0.5 | I31: =IF(ISBLANK(InputsResults[[#This Row],[Project Type]]),NA(),INDEX(Model[CapEx],MATCH(InputsResults[[#This Row],[Project Name]]&InputsResults[[#This Row],[Project Type]],Model[Project Name]&Model[Type],0))) ->  | J31: =IF(ISBLANK(InputsResults[[#This Row],[Project Type]]),NA(),INDEX(Model[CapEx_LBnd],MATCH(InputsResults[[#This Row],[Project Name]]&InputsResults[[#This Row],[Project Type]],Model[Project Name]&Model[Type],0))) ->  | K31: =IF(ISBLANK(InputsResults[[#This Row],[Project Type]]),NA(),INDEX(Model[CapEx_UBnd],MATCH(InputsResults[[#This Row],[Project Name]]&InputsResults[[#This Row],[Project Type]],Model[Project Name]&Model[Type],0))) ->  | L31: =InputsResults[[#This Row],[Capital Expenditure (2020 $million)]]/InputsResults[[#This Row],[Plant Capacity (MW)]]*1000 ->  | M31: =InputsResults[[#This Row],[Capital Expenditure (2020 $million): LBnd]]/InputsResults[[#This Row],[Plant Capacity (MW)]]*1000 ->  | N31: =InputsResults[[#This Row],[Capital Expenditure (2020 $million): Ubnd]]/InputsResults[[#This Row],[Plant Capacity (MW)]]*1000 ->  | O31: =INDEX(Model[OMEx],MATCH(InputsResults[[#This Row],[Project Name]]&InputsResults[[#This Row],[Project Type]],Model[Project Name]&Model[Type],0)) ->  | P31: =INDEX(Model[OMEx_LBnd],MATCH(InputsResults[[#This Row],[Project Name]]&InputsResults[[#This Row],[Project Type]],Model[Project Name]&Model[Type],0)) ->  | Q31: =INDEX(Model[OMEx_Ubnd],MATCH(InputsResults[[#This Row],[Project Name]]&InputsResults[[#This Row],[Project Type]],Model[Project Name]&Model[Type],0)) ->  | R31: =InputsResults[[#This Row],[O&M Expenditure (2020 $million)]]/InputsResults[[#This Row],[Plant Capacity (MW)]]*1000 ->  | S31: =InputsResults[[#This Row],[O&M Expenditure (2020 $million): LBnd]]/InputsResults[[#This Row],[Plant Capacity (MW)]]*1000 ->  | T31: =InputsResults[[#This Row],[O&M Expenditure (2020 $million):Ubnd]]/InputsResults[[#This Row],[Plant Capacity (MW)]]*1000 -> 
D32: 1 | G32: 0 | H32: 0.5 | I32: =IF(ISBLANK(InputsResults[[#This Row],[Project Type]]),NA(),INDEX(Model[CapEx],MATCH(InputsResults[[#This Row],[Project Name]]&InputsResults[[#This Row],[Project Type]],Model[Project Name]&Model[Type],0))) ->  | J32: =IF(ISBLANK(InputsResults[[#This Row],[Project Type]]),NA(),INDEX(Model[CapEx_LBnd],MATCH(InputsResults[[#This Row],[Project Name]]&InputsResults[[#This Row],[Project Type]],Model[Project Name]&Model[Type],0))) ->  | K32: =IF(ISBLANK(InputsResults[[#This Row],[Project Type]]),NA(),INDEX(Model[CapEx_UBnd],MATCH(InputsResults[[#This Row],[Project Name]]&InputsResults[[#This Row],[Project Type]],Model[Project Name]&Model[Type],0))) ->  | L32: =InputsResults[[#This Row],[Capital Expenditure (2020 $million)]]/InputsResults[[#This Row],[Plant Capacity (MW)]]*1000 ->  | M32: =InputsResults[[#This Row],[Capital Expenditure (2020 $million): LBnd]]/InputsResults[[#This Row],[Plant Capacity (MW)]]*1000 ->  | N32: =InputsResults[[#This Row],[Capital Expenditure (2020 $million): Ubnd]]/InputsResults[[#This Row],[Plant Capacity (MW)]]*1000 ->  | O32: =INDEX(Model[OMEx],MATCH(InputsResults[[#This Row],[Project Name]]&InputsResults[[#This Row],[Project Type]],Model[Project Name]&Model[Type],0)) ->  | P32: =INDEX(Model[OMEx_LBnd],MATCH(InputsResults[[#This Row],[Project Name]]&InputsResults[[#This Row],[Project Type]],Model[Project Name]&Model[Type],0)) ->  | Q32: =INDEX(Model[OMEx_Ubnd],MATCH(InputsResults[[#This Row],[Project Name]]&InputsResults[[#This Row],[Project Type]],Model[Project Name]&Model[Type],0)) ->  | R32: =InputsResults[[#This Row],[O&M Expenditure (2020 $million)]]/InputsResults[[#This Row],[Plant Capacity (MW)]]*1000 ->  | S32: =InputsResults[[#This Row],[O&M Expenditure (2020 $million): LBnd]]/InputsResults[[#This Row],[Plant Capacity (MW)]]*1000 ->  | T32: =InputsResults[[#This Row],[O&M Expenditure (2020 $million):Ubnd]]/InputsResults[[#This Row],[Plant Capacity (MW)]]*1000 -> 
D33: 1 | G33: 0 | H33: 0.5 | I33: =IF(ISBLANK(InputsResults[[#This Row],[Project Type]]),NA(),INDEX(Model[CapEx],MATCH(InputsResults[[#This Row],[Project Name]]&InputsResults[[#This Row],[Project Type]],Model[Project Name]&Model[Type],0))) ->  | J33: =IF(ISBLANK(InputsResults[[#This Row],[Project Type]]),NA(),INDEX(Model[CapEx_LBnd],MATCH(InputsResults[[#This Row],[Project Name]]&InputsResults[[#This Row],[Project Type]],Model[Project Name]&Model[Type],0))) ->  | K33: =IF(ISBLANK(InputsResults[[#This Row],[Project Type]]),NA(),INDEX(Model[CapEx_UBnd],MATCH(InputsResults[[#This Row],[Project Name]]&InputsResults[[#This Row],[Project Type]],Model[Project Name]&Model[Type],0))) ->  | L33: =InputsResults[[#This Row],[Capital Expenditure (2020 $million)]]/InputsResults[[#This Row],[Plant Capacity (MW)]]*1000 ->  | M33: =InputsResults[[#This Row],[Capital Expenditure (2020 $million): LBnd]]/InputsResults[[#This Row],[Plant Capacity (MW)]]*1000 ->  | N33: =InputsResults[[#This Row],[Capital Expenditure (2020 $million): Ubnd]]/InputsResults[[#This Row],[Plant Capacity (MW)]]*1000 ->  | O33: =INDEX(Model[OMEx],MATCH(InputsResults[[#This Row],[Project Name]]&InputsResults[[#This Row],[Project Type]],Model[Project Name]&Model[Type],0)) ->  | P33: =INDEX(Model[OMEx_LBnd],MATCH(InputsResults[[#This Row],[Project Name]]&InputsResults[[#This Row],[Project Type]],Model[Project Name]&Model[Type],0)) ->  | Q33: =INDEX(Model[OMEx_Ubnd],MATCH(InputsResults[[#This Row],[Project Name]]&InputsResults[[#This Row],[Project Type]],Model[Project Name]&Model[Type],0)) ->  | R33: =InputsResults[[#This Row],[O&M Expenditure (2020 $million)]]/InputsResults[[#This Row],[Plant Capacity (MW)]]*1000 ->  | S33: =InputsResults[[#This Row],[O&M Expenditure (2020 $million): LBnd]]/InputsResults[[#This Row],[Plant Capacity (MW)]]*1000 ->  | T33: =InputsResults[[#This Row],[O&M Expenditure (2020 $million):Ubnd]]/InputsResults[[#This Row],[Plant Capacity (MW)]]*1000 -> 
D34: 1 | G34: 0 | H34: 0.5 | I34: =IF(ISBLANK(InputsResults[[#This Row],[Project Type]]),NA(),INDEX(Model[CapEx],MATCH(InputsResults[[#This Row],[Project Name]]&InputsResults[[#This Row],[Project Type]],Model[Project Name]&Model[Type],0))) ->  | J34: =IF(ISBLANK(InputsResults[[#This Row],[Project Type]]),NA(),INDEX(Model[CapEx_LBnd],MATCH(InputsResults[[#This Row],[Project Name]]&InputsResults[[#This Row],[Project Type]],Model[Project Name]&Model[Type],0))) ->  | K34: =IF(ISBLANK(InputsResults[[#This Row],[Project Type]]),NA(),INDEX(Model[CapEx_UBnd],MATCH(InputsResults[[#This Row],[Project Name]]&InputsResults[[#This Row],[Project Type]],Model[Project Name]&Model[Type],0))) ->  | L34: =InputsResults[[#This Row],[Capital Expenditure (2020 $million)]]/InputsResults[[#This Row],[Plant Capacity (MW)]]*1000 ->  | M34: =InputsResults[[#This Row],[Capital Expenditure (2020 $million): LBnd]]/InputsResults[[#This Row],[Plant Capacity (MW)]]*1000 ->  | N34: =InputsResults[[#This Row],[Capital Expenditure (2020 $million): Ubnd]]/InputsResults[[#This Row],[Plant Capacity (MW)]]*1000 ->  | O34: =INDEX(Model[OMEx],MATCH(InputsResults[[#This Row],[Project Name]]&InputsResults[[#This Row],[Project Type]],Model[Project Name]&Model[Type],0)) ->  | P34: =INDEX(Model[OMEx_LBnd],MATCH(InputsResults[[#This Row],[Project Name]]&InputsResults[[#This Row],[Project Type]],Model[Project Name]&Model[Type],0)) ->  | Q34: =INDEX(Model[OMEx_Ubnd],MATCH(InputsResults[[#This Row],[Project Name]]&InputsResults[[#This Row],[Project Type]],Model[Project Name]&Model[Type],0)) ->  | R34: =InputsResults[[#This Row],[O&M Expenditure (2020 $million)]]/InputsResults[[#This Row],[Plant Capacity (MW)]]*1000 ->  | S34: =InputsResults[[#This Row],[O&M Expenditure (2020 $million): LBnd]]/InputsResults[[#This Row],[Plant Capacity (MW)]]*1000 ->  | T34: =InputsResults[[#This Row],[O&M Expenditure (2020 $million):Ubnd]]/InputsResults[[#This Row],[Plant Capacity (MW)]]*1000 -> 
D35: 1 | G35: 0 | H35: 0.5 | I35: =IF(ISBLANK(InputsResults[[#This Row],[Project Type]]),NA(),INDEX(Model[CapEx],MATCH(InputsResults[[#This Row],[Project Name]]&InputsResults[[#This Row],[Project Type]],Model[Project Name]&Model[Type],0))) ->  | J35: =IF(ISBLANK(InputsResults[[#This Row],[Project Type]]),NA(),INDEX(Model[CapEx_LBnd],MATCH(InputsResults[[#This Row],[Project Name]]&InputsResults[[#This Row],[Project Type]],Model[Project Name]&Model[Type],0))) ->  | K35: =IF(ISBLANK(InputsResults[[#This Row],[Project Type]]),NA(),INDEX(Model[CapEx_UBnd],MATCH(InputsResults[[#This Row],[Project Name]]&InputsResults[[#This Row],[Project Type]],Model[Project Name]&Model[Type],0))) ->  | L35: =InputsResults[[#This Row],[Capital Expenditure (2020 $million)]]/InputsResults[[#This Row],[Plant Capacity (MW)]]*1000 ->  | M35: =InputsResults[[#This Row],[Capital Expenditure (2020 $million): LBnd]]/InputsResults[[#This Row],[Plant Capacity (MW)]]*1000 ->  | N35: =InputsResults[[#This Row],[Capital Expenditure (2020 $million): Ubnd]]/InputsResults[[#This Row],[Plant Capacity (MW)]]*1000 ->  | O35: =INDEX(Model[OMEx],MATCH(InputsResults[[#This Row],[Project Name]]&InputsResults[[#This Row],[Project Type]],Model[Project Name]&Model[Type],0)) ->  | P35: =INDEX(Model[OMEx_LBnd],MATCH(InputsResults[[#This Row],[Project Name]]&InputsResults[[#This Row],[Project Type]],Model[Project Name]&Model[Type],0)) ->  | Q35: =INDEX(Model[OMEx_Ubnd],MATCH(InputsResults[[#This Row],[Project Name]]&InputsResults[[#This Row],[Project Type]],Model[Project Name]&Model[Type],0)) ->  | R35: =InputsResults[[#This Row],[O&M Expenditure (2020 $million)]]/InputsResults[[#This Row],[Plant Capacity (MW)]]*1000 ->  | S35: =InputsResults[[#This Row],[O&M Expenditure (2020 $million): LBnd]]/InputsResults[[#This Row],[Plant Capacity (MW)]]*1000 ->  | T35: =InputsResults[[#This Row],[O&M Expenditure (2020 $million):Ubnd]]/InputsResults[[#This Row],[Plant Capacity (MW)]]*1000 -> 
D36: 1 | G36: 0 | H36: 0.5 | I36: =IF(ISBLANK(InputsResults[[#This Row],[Project Type]]),NA(),INDEX(Model[CapEx],MATCH(InputsResults[[#This Row],[Project Name]]&InputsResults[[#This Row],[Project Type]],Model[Project Name]&Model[Type],0))) ->  | J36: =IF(ISBLANK(InputsResults[[#This Row],[Project Type]]),NA(),INDEX(Model[CapEx_LBnd],MATCH(InputsResults[[#This Row],[Project Name]]&InputsResults[[#This Row],[Project Type]],Model[Project Name]&Model[Type],0))) ->  | K36: =IF(ISBLANK(InputsResults[[#This Row],[Project Type]]),NA(),INDEX(Model[CapEx_UBnd],MATCH(InputsResults[[#This Row],[Project Name]]&InputsResults[[#This Row],[Project Type]],Model[Project Name]&Model[Type],0))) ->  | L36: =InputsResults[[#This Row],[Capital Expenditure (2020 $million)]]/InputsResults[[#This Row],[Plant Capacity (MW)]]*1000 ->  | M36: =InputsResults[[#This Row],[Capital Expenditure (2020 $million): LBnd]]/InputsResults[[#This Row],[Plant Capacity (MW)]]*1000 ->  | N36: =InputsResults[[#This Row],[Capital Expenditure (2020 $million): Ubnd]]/InputsResults[[#This Row],[Plant Capacity (MW)]]*1000 ->  | O36: =INDEX(Model[OMEx],MATCH(InputsResults[[#This Row],[Project Name]]&InputsResults[[#This Row],[Project Type]],Model[Project Name]&Model[Type],0)) ->  | P36: =INDEX(Model[OMEx_LBnd],MATCH(InputsResults[[#This Row],[Project Name]]&InputsResults[[#This Row],[Project Type]],Model[Project Name]&Model[Type],0)) ->  | Q36: =INDEX(Model[OMEx_Ubnd],MATCH(InputsResults[[#This Row],[Project Name]]&InputsResults[[#This Row],[Project Type]],Model[Project Name]&Model[Type],0)) ->  | R36: =InputsResults[[#This Row],[O&M Expenditure (2020 $million)]]/InputsResults[[#This Row],[Plant Capacity (MW)]]*1000 ->  | S36: =InputsResults[[#This Row],[O&M Expenditure (2020 $million): LBnd]]/InputsResults[[#This Row],[Plant Capacity (MW)]]*1000 ->  | T36: =InputsResults[[#This Row],[O&M Expenditure (2020 $million):Ubnd]]/InputsResults[[#This Row],[Plant Capacity (MW)]]*1000 -> 
D37: 1 | G37: 0 | H37: 0.5 | I37: =IF(ISBLANK(InputsResults[[#This Row],[Project Type]]),NA(),INDEX(Model[CapEx],MATCH(InputsResults[[#This Row],[Project Name]]&InputsResults[[#This Row],[Project Type]],Model[Project Name]&Model[Type],0))) ->  | J37: =IF(ISBLANK(InputsResults[[#This Row],[Project Type]]),NA(),INDEX(Model[CapEx_LBnd],MATCH(InputsResults[[#This Row],[Project Name]]&InputsResults[[#This Row],[Project Type]],Model[Project Name]&Model[Type],0))) ->  | K37: =IF(ISBLANK(InputsResults[[#This Row],[Project Type]]),NA(),INDEX(Model[CapEx_UBnd],MATCH(InputsResults[[#This Row],[Project Name]]&InputsResults[[#This Row],[Project Type]],Model[Project Name]&Model[Type],0))) ->  | L37: =InputsResults[[#This Row],[Capital Expenditure (2020 $million)]]/InputsResults[[#This Row],[Plant Capacity (MW)]]*1000 ->  | M37: =InputsResults[[#This Row],[Capital Expenditure (2020 $million): LBnd]]/InputsResults[[#This Row],[Plant Capacity (MW)]]*1000 ->  | N37: =InputsResults[[#This Row],[Capital Expenditure (2020 $million): Ubnd]]/InputsResults[[#This Row],[Plant Capacity (MW)]]*1000 ->  | O37: =INDEX(Model[OMEx],MATCH(InputsResults[[#This Row],[Project Name]]&InputsResults[[#This Row],[Project Type]],Model[Project Name]&Model[Type],0)) ->  | P37: =INDEX(Model[OMEx_LBnd],MATCH(InputsResults[[#This Row],[Project Name]]&InputsResults[[#This Row],[Project Type]],Model[Project Name]&Model[Type],0)) ->  | Q37: =INDEX(Model[OMEx_Ubnd],MATCH(InputsResults[[#This Row],[Project Name]]&InputsResults[[#This Row],[Project Type]],Model[Project Name]&Model[Type],0)) ->  | R37: =InputsResults[[#This Row],[O&M Expenditure (2020 $million)]]/InputsResults[[#This Row],[Plant Capacity (MW)]]*1000 ->  | S37: =InputsResults[[#This Row],[O&M Expenditure (2020 $million): LBnd]]/InputsResults[[#This Row],[Plant Capacity (MW)]]*1000 ->  | T37: =InputsResults[[#This Row],[O&M Expenditure (2020 $million):Ubnd]]/InputsResults[[#This Row],[Plant Capacity (MW)]]*1000 -> 
D38: 1 | G38: 0 | H38: 0.5 | I38: =IF(ISBLANK(InputsResults[[#This Row],[Project Type]]),NA(),INDEX(Model[CapEx],MATCH(InputsResults[[#This Row],[Project Name]]&InputsResults[[#This Row],[Project Type]],Model[Project Name]&Model[Type],0))) ->  | J38: =IF(ISBLANK(InputsResults[[#This Row],[Project Type]]),NA(),INDEX(Model[CapEx_LBnd],MATCH(InputsResults[[#This Row],[Project Name]]&InputsResults[[#This Row],[Project Type]],Model[Project Name]&Model[Type],0))) ->  | K38: =IF(ISBLANK(InputsResults[[#This Row],[Project Type]]),NA(),INDEX(Model[CapEx_UBnd],MATCH(InputsResults[[#This Row],[Project Name]]&InputsResults[[#This Row],[Project Type]],Model[Project Name]&Model[Type],0))) ->  | L38: =InputsResults[[#This Row],[Capital Expenditure (2020 $million)]]/InputsResults[[#This Row],[Plant Capacity (MW)]]*1000 ->  | M38: =InputsResults[[#This Row],[Capital Expenditure (2020 $million): LBnd]]/InputsResults[[#This Row],[Plant Capacity (MW)]]*1000 ->  | N38: =InputsResults[[#This Row],[Capital Expenditure (2020 $million): Ubnd]]/InputsResults[[#This Row],[Plant Capacity (MW)]]*1000 ->  | O38: =INDEX(Model[OMEx],MATCH(InputsResults[[#This Row],[Project Name]]&InputsResults[[#This Row],[Project Type]],Model[Project Name]&Model[Type],0)) ->  | P38: =INDEX(Model[OMEx_LBnd],MATCH(InputsResults[[#This Row],[Project Name]]&InputsResults[[#This Row],[Project Type]],Model[Project Name]&Model[Type],0)) ->  | Q38: =INDEX(Model[OMEx_Ubnd],MATCH(InputsResults[[#This Row],[Project Name]]&InputsResults[[#This Row],[Project Type]],Model[Project Name]&Model[Type],0)) ->  | R38: =InputsResults[[#This Row],[O&M Expenditure (2020 $million)]]/InputsResults[[#This Row],[Plant Capacity (MW)]]*1000 ->  | S38: =InputsResults[[#This Row],[O&M Expenditure (2020 $million): LBnd]]/InputsResults[[#This Row],[Plant Capacity (MW)]]*1000 ->  | T38: =InputsResults[[#This Row],[O&M Expenditure (2020 $million):Ubnd]]/InputsResults[[#This Row],[Plant Capacity (MW)]]*1000 -> 
D39: 1 | G39: 0 | H39: 0.5 | I39: =IF(ISBLANK(InputsResults[[#This Row],[Project Type]]),NA(),INDEX(Model[CapEx],MATCH(InputsResults[[#This Row],[Project Name]]&InputsResults[[#This Row],[Project Type]],Model[Project Name]&Model[Type],0))) ->  | J39: =IF(ISBLANK(InputsResults[[#This Row],[Project Type]]),NA(),INDEX(Model[CapEx_LBnd],MATCH(InputsResults[[#This Row],[Project Name]]&InputsResults[[#This Row],[Project Type]],Model[Project Name]&Model[Type],0))) ->  | K39: =IF(ISBLANK(InputsResults[[#This Row],[Project Type]]),NA(),INDEX(Model[CapEx_UBnd],MATCH(InputsResults[[#This Row],[Project Name]]&InputsResults[[#This Row],[Project Type]],Model[Project Name]&Model[Type],0))) ->  | L39: =InputsResults[[#This Row],[Capital Expenditure (2020 $million)]]/InputsResults[[#This Row],[Plant Capacity (MW)]]*1000 ->  | M39: =InputsResults[[#This Row],[Capital Expenditure (2020 $million): LBnd]]/InputsResults[[#This Row],[Plant Capacity (MW)]]*1000 ->  | N39: =InputsResults[[#This Row],[Capital Expenditure (2020 $million): Ubnd]]/InputsResults[[#This Row],[Plant Capacity (MW)]]*1000 ->  | O39: =INDEX(Model[OMEx],MATCH(InputsResults[[#This Row],[Project Name]]&InputsResults[[#This Row],[Project Type]],Model[Project Name]&Model[Type],0)) ->  | P39: =INDEX(Model[OMEx_LBnd],MATCH(InputsResults[[#This Row],[Project Name]]&InputsResults[[#This Row],[Project Type]],Model[Project Name]&Model[Type],0)) ->  | Q39: =INDEX(Model[OMEx_Ubnd],MATCH(InputsResults[[#This Row],[Project Name]]&InputsResults[[#This Row],[Project Type]],Model[Project Name]&Model[Type],0)) ->  | R39: =InputsResults[[#This Row],[O&M Expenditure (2020 $million)]]/InputsResults[[#This Row],[Plant Capacity (MW)]]*1000 ->  | S39: =InputsResults[[#This Row],[O&M Expenditure (2020 $million): LBnd]]/InputsResults[[#This Row],[Plant Capacity (MW)]]*1000 ->  | T39: =InputsResults[[#This Row],[O&M Expenditure (2020 $million):Ubnd]]/InputsResults[[#This Row],[Plant Capacity (MW)]]*1000 -> 
D40: 1 | G40: 0 | H40: 0.5 | I40: =IF(ISBLANK(InputsResults[[#This Row],[Project Type]]),NA(),INDEX(Model[CapEx],MATCH(InputsResults[[#This Row],[Project Name]]&InputsResults[[#This Row],[Project Type]],Model[Project Name]&Model[Type],0))) ->  | J40: =IF(ISBLANK(InputsResults[[#This Row],[Project Type]]),NA(),INDEX(Model[CapEx_LBnd],MATCH(InputsResults[[#This Row],[Project Name]]&InputsResults[[#This Row],[Project Type]],Model[Project Name]&Model[Type],0))) ->  | K40: =IF(ISBLANK(InputsResults[[#This Row],[Project Type]]),NA(),INDEX(Model[CapEx_UBnd],MATCH(InputsResults[[#This Row],[Project Name]]&InputsResults[[#This Row],[Project Type]],Model[Project Name]&Model[Type],0))) ->  | L40: =InputsResults[[#This Row],[Capital Expenditure (2020 $million)]]/InputsResults[[#This Row],[Plant Capacity (MW)]]*1000 ->  | M40: =InputsResults[[#This Row],[Capital Expenditure (2020 $million): LBnd]]/InputsResults[[#This Row],[Plant Capacity (MW)]]*1000 ->  | N40: =InputsResults[[#This Row],[Capital Expenditure (2020 $million): Ubnd]]/InputsResults[[#This Row],[Plant Capacity (MW)]]*1000 ->  | O40: =INDEX(Model[OMEx],MATCH(InputsResults[[#This Row],[Project Name]]&InputsResults[[#This Row],[Project Type]],Model[Project Name]&Model[Type],0)) ->  | P40: =INDEX(Model[OMEx_LBnd],MATCH(InputsResults[[#This Row],[Project Name]]&InputsResults[[#This Row],[Project Type]],Model[Project Name]&Model[Type],0)) ->  | Q40: =INDEX(Model[OMEx_Ubnd],MATCH(InputsResults[[#This Row],[Project Name]]&InputsResults[[#This Row],[Project Type]],Model[Project Name]&Model[Type],0)) ->  | R40: =InputsResults[[#This Row],[O&M Expenditure (2020 $million)]]/InputsResults[[#This Row],[Plant Capacity (MW)]]*1000 ->  | S40: =InputsResults[[#This Row],[O&M Expenditure (2020 $million): LBnd]]/InputsResults[[#This Row],[Plant Capacity (MW)]]*1000 ->  | T40: =InputsResults[[#This Row],[O&M Expenditure (2020 $million):Ubnd]]/InputsResults[[#This Row],[Plant Capacity (MW)]]*1000 -> 
D41: 1 | G41: 0 | H41: 0.5 | I41: =IF(ISBLANK(InputsResults[[#This Row],[Project Type]]),NA(),INDEX(Model[CapEx],MATCH(InputsResults[[#This Row],[Project Name]]&InputsResults[[#This Row],[Project Type]],Model[Project Name]&Model[Type],0))) ->  | J41: =IF(ISBLANK(InputsResults[[#This Row],[Project Type]]),NA(),INDEX(Model[CapEx_LBnd],MATCH(InputsResults[[#This Row],[Project Name]]&InputsResults[[#This Row],[Project Type]],Model[Project Name]&Model[Type],0))) ->  | K41: =IF(ISBLANK(InputsResults[[#This Row],[Project Type]]),NA(),INDEX(Model[CapEx_UBnd],MATCH(InputsResults[[#This Row],[Project Name]]&InputsResults[[#This Row],[Project Type]],Model[Project Name]&Model[Type],0))) ->  | L41: =InputsResults[[#This Row],[Capital Expenditure (2020 $million)]]/InputsResults[[#This Row],[Plant Capacity (MW)]]*1000 ->  | M41: =InputsResults[[#This Row],[Capital Expenditure (2020 $million): LBnd]]/InputsResults[[#This Row],[Plant Capacity (MW)]]*1000 ->  | N41: =InputsResults[[#This Row],[Capital Expenditure (2020 $million): Ubnd]]/InputsResults[[#This Row],[Plant Capacity (MW)]]*1000 ->  | O41: =INDEX(Model[OMEx],MATCH(InputsResults[[#This Row],[Project Name]]&InputsResults[[#This Row],[Project Type]],Model[Project Name]&Model[Type],0)) ->  | P41: =INDEX(Model[OMEx_LBnd],MATCH(InputsResults[[#This Row],[Project Name]]&InputsResults[[#This Row],[Project Type]],Model[Project Name]&Model[Type],0)) ->  | Q41: =INDEX(Model[OMEx_Ubnd],MATCH(InputsResults[[#This Row],[Project Name]]&InputsResults[[#This Row],[Project Type]],Model[Project Name]&Model[Type],0)) ->  | R41: =InputsResults[[#This Row],[O&M Expenditure (2020 $million)]]/InputsResults[[#This Row],[Plant Capacity (MW)]]*1000 ->  | S41: =InputsResults[[#This Row],[O&M Expenditure (2020 $million): LBnd]]/InputsResults[[#This Row],[Plant Capacity (MW)]]*1000 ->  | T41: =InputsResults[[#This Row],[O&M Expenditure (2020 $million):Ubnd]]/InputsResults[[#This Row],[Plant Capacity (MW)]]*1000 -> 
D42: 1 | G42: 0 | H42: 0.5 | I42: =IF(ISBLANK(InputsResults[[#This Row],[Project Type]]),NA(),INDEX(Model[CapEx],MATCH(InputsResults[[#This Row],[Project Name]]&InputsResults[[#This Row],[Project Type]],Model[Project Name]&Model[Type],0))) ->  | J42: =IF(ISBLANK(InputsResults[[#This Row],[Project Type]]),NA(),INDEX(Model[CapEx_LBnd],MATCH(InputsResults[[#This Row],[Project Name]]&InputsResults[[#This Row],[Project Type]],Model[Project Name]&Model[Type],0))) ->  | K42: =IF(ISBLANK(InputsResults[[#This Row],[Project Type]]),NA(),INDEX(Model[CapEx_UBnd],MATCH(InputsResults[[#This Row],[Project Name]]&InputsResults[[#This Row],[Project Type]],Model[Project Name]&Model[Type],0))) ->  | L42: =InputsResults[[#This Row],[Capital Expenditure (2020 $million)]]/InputsResults[[#This Row],[Plant Capacity (MW)]]*1000 ->  | M42: =InputsResults[[#This Row],[Capital Expenditure (2020 $million): LBnd]]/InputsResults[[#This Row],[Plant Capacity (MW)]]*1000 ->  | N42: =InputsResults[[#This Row],[Capital Expenditure (2020 $million): Ubnd]]/InputsResults[[#This Row],[Plant Capacity (MW)]]*1000 ->  | O42: =INDEX(Model[OMEx],MATCH(InputsResults[[#This Row],[Project Name]]&InputsResults[[#This Row],[Project Type]],Model[Project Name]&Model[Type],0)) ->  | P42: =INDEX(Model[OMEx_LBnd],MATCH(InputsResults[[#This Row],[Project Name]]&InputsResults[[#This Row],[Project Type]],Model[Project Name]&Model[Type],0)) ->  | Q42: =INDEX(Model[OMEx_Ubnd],MATCH(InputsResults[[#This Row],[Project Name]]&InputsResults[[#This Row],[Project Type]],Model[Project Name]&Model[Type],0)) ->  | R42: =InputsResults[[#This Row],[O&M Expenditure (2020 $million)]]/InputsResults[[#This Row],[Plant Capacity (MW)]]*1000 ->  | S42: =InputsResults[[#This Row],[O&M Expenditure (2020 $million): LBnd]]/InputsResults[[#This Row],[Plant Capacity (MW)]]*1000 ->  | T42: =InputsResults[[#This Row],[O&M Expenditure (2020 $million):Ubnd]]/InputsResults[[#This Row],[Plant Capacity (MW)]]*1000 -> 
D43: 1 | G43: 0 | H43: 0.5 | I43: =IF(ISBLANK(InputsResults[[#This Row],[Project Type]]),NA(),INDEX(Model[CapEx],MATCH(InputsResults[[#This Row],[Project Name]]&InputsResults[[#This Row],[Project Type]],Model[Project Name]&Model[Type],0))) ->  | J43: =IF(ISBLANK(InputsResults[[#This Row],[Project Type]]),NA(),INDEX(Model[CapEx_LBnd],MATCH(InputsResults[[#This Row],[Project Name]]&InputsResults[[#This Row],[Project Type]],Model[Project Name]&Model[Type],0))) ->  | K43: =IF(ISBLANK(InputsResults[[#This Row],[Project Type]]),NA(),INDEX(Model[CapEx_UBnd],MATCH(InputsResults[[#This Row],[Project Name]]&InputsResults[[#This Row],[Project Type]],Model[Project Name]&Model[Type],0))) ->  | L43: =InputsResults[[#This Row],[Capital Expenditure (2020 $million)]]/InputsResults[[#This Row],[Plant Capacity (MW)]]*1000 ->  | M43: =InputsResults[[#This Row],[Capital Expenditure (2020 $million): LBnd]]/InputsResults[[#This Row],[Plant Capacity (MW)]]*1000 ->  | N43: =InputsResults[[#This Row],[Capital Expenditure (2020 $million): Ubnd]]/InputsResults[[#This Row],[Plant Capacity (MW)]]*1000 ->  | O43: =INDEX(Model[OMEx],MATCH(InputsResults[[#This Row],[Project Name]]&InputsResults[[#This Row],[Project Type]],Model[Project Name]&Model[Type],0)) ->  | P43: =INDEX(Model[OMEx_LBnd],MATCH(InputsResults[[#This Row],[Project Name]]&InputsResults[[#This Row],[Project Type]],Model[Project Name]&Model[Type],0)) ->  | Q43: =INDEX(Model[OMEx_Ubnd],MATCH(InputsResults[[#This Row],[Project Name]]&InputsResults[[#This Row],[Project Type]],Model[Project Name]&Model[Type],0)) ->  | R43: =InputsResults[[#This Row],[O&M Expenditure (2020 $million)]]/InputsResults[[#This Row],[Plant Capacity (MW)]]*1000 ->  | S43: =InputsResults[[#This Row],[O&M Expenditure (2020 $million): LBnd]]/InputsResults[[#This Row],[Plant Capacity (MW)]]*1000 ->  | T43: =InputsResults[[#This Row],[O&M Expenditure (2020 $million):Ubnd]]/InputsResults[[#This Row],[Plant Capacity (MW)]]*1000 -> 
D44: 1 | G44: 0 | H44: 0.5 | I44: =IF(ISBLANK(InputsResults[[#This Row],[Project Type]]),NA(),INDEX(Model[CapEx],MATCH(InputsResults[[#This Row],[Project Name]]&InputsResults[[#This Row],[Project Type]],Model[Project Name]&Model[Type],0))) ->  | J44: =IF(ISBLANK(InputsResults[[#This Row],[Project Type]]),NA(),INDEX(Model[CapEx_LBnd],MATCH(InputsResults[[#This Row],[Project Name]]&InputsResults[[#This Row],[Project Type]],Model[Project Name]&Model[Type],0))) ->  | K44: =IF(ISBLANK(InputsResults[[#This Row],[Project Type]]),NA(),INDEX(Model[CapEx_UBnd],MATCH(InputsResults[[#This Row],[Project Name]]&InputsResults[[#This Row],[Project Type]],Model[Project Name]&Model[Type],0))) ->  | L44: =InputsResults[[#This Row],[Capital Expenditure (2020 $million)]]/InputsResults[[#This Row],[Plant Capacity (MW)]]*1000 ->  | M44: =InputsResults[[#This Row],[Capital Expenditure (2020 $million): LBnd]]/InputsResults[[#This Row],[Plant Capacity (MW)]]*1000 ->  | N44: =InputsResults[[#This Row],[Capital Expenditure (2020 $million): Ubnd]]/InputsResults[[#This Row],[Plant Capacity (MW)]]*1000 ->  | O44: =INDEX(Model[OMEx],MATCH(InputsResults[[#This Row],[Project Name]]&InputsResults[[#This Row],[Project Type]],Model[Project Name]&Model[Type],0)) ->  | P44: =INDEX(Model[OMEx_LBnd],MATCH(InputsResults[[#This Row],[Project Name]]&InputsResults[[#This Row],[Project Type]],Model[Project Name]&Model[Type],0)) ->  | Q44: =INDEX(Model[OMEx_Ubnd],MATCH(InputsResults[[#This Row],[Project Name]]&InputsResults[[#This Row],[Project Type]],Model[Project Name]&Model[Type],0)) ->  | R44: =InputsResults[[#This Row],[O&M Expenditure (2020 $million)]]/InputsResults[[#This Row],[Plant Capacity (MW)]]*1000 ->  | S44: =InputsResults[[#This Row],[O&M Expenditure (2020 $million): LBnd]]/InputsResults[[#This Row],[Plant Capacity (MW)]]*1000 ->  | T44: =InputsResults[[#This Row],[O&M Expenditure (2020 $million):Ubnd]]/InputsResults[[#This Row],[Plant Capacity (MW)]]*1000 -> 
D45: 1 | G45: 0 | H45: 0.5 | I45: =IF(ISBLANK(InputsResults[[#This Row],[Project Type]]),NA(),INDEX(Model[CapEx],MATCH(InputsResults[[#This Row],[Project Name]]&InputsResults[[#This Row],[Project Type]],Model[Project Name]&Model[Type],0))) ->  | J45: =IF(ISBLANK(InputsResults[[#This Row],[Project Type]]),NA(),INDEX(Model[CapEx_LBnd],MATCH(InputsResults[[#This Row],[Project Name]]&InputsResults[[#This Row],[Project Type]],Model[Project Name]&Model[Type],0))) ->  | K45: =IF(ISBLANK(InputsResults[[#This Row],[Project Type]]),NA(),INDEX(Model[CapEx_UBnd],MATCH(InputsResults[[#This Row],[Project Name]]&InputsResults[[#This Row],[Project Type]],Model[Project Name]&Model[Type],0))) ->  | L45: =InputsResults[[#This Row],[Capital Expenditure (2020 $million)]]/InputsResults[[#This Row],[Plant Capacity (MW)]]*1000 ->  | M45: =InputsResults[[#This Row],[Capital Expenditure (2020 $million): LBnd]]/InputsResults[[#This Row],[Plant Capacity (MW)]]*1000 ->  | N45: =InputsResults[[#This Row],[Capital Expenditure (2020 $million): Ubnd]]/InputsResults[[#This Row],[Plant Capacity (MW)]]*1000 ->  | O45: =INDEX(Model[OMEx],MATCH(InputsResults[[#This Row],[Project Name]]&InputsResults[[#This Row],[Project Type]],Model[Project Name]&Model[Type],0)) ->  | P45: =INDEX(Model[OMEx_LBnd],MATCH(InputsResults[[#This Row],[Project Name]]&InputsResults[[#This Row],[Project Type]],Model[Project Name]&Model[Type],0)) ->  | Q45: =INDEX(Model[OMEx_Ubnd],MATCH(InputsResults[[#This Row],[Project Name]]&InputsResults[[#This Row],[Project Type]],Model[Project Name]&Model[Type],0)) ->  | R45: =InputsResults[[#This Row],[O&M Expenditure (2020 $million)]]/InputsResults[[#This Row],[Plant Capacity (MW)]]*1000 ->  | S45: =InputsResults[[#This Row],[O&M Expenditure (2020 $million): LBnd]]/InputsResults[[#This Row],[Plant Capacity (MW)]]*1000 ->  | T45: =InputsResults[[#This Row],[O&M Expenditure (2020 $million):Ubnd]]/InputsResults[[#This Row],[Plant Capacity (MW)]]*1000 -> 
D46: 1 | G46: 0 | H46: 0.5 | I46: =IF(ISBLANK(InputsResults[[#This Row],[Project Type]]),NA(),INDEX(Model[CapEx],MATCH(InputsResults[[#This Row],[Project Name]]&InputsResults[[#This Row],[Project Type]],Model[Project Name]&Model[Type],0))) ->  | J46: =IF(ISBLANK(InputsResults[[#This Row],[Project Type]]),NA(),INDEX(Model[CapEx_LBnd],MATCH(InputsResults[[#This Row],[Project Name]]&InputsResults[[#This Row],[Project Type]],Model[Project Name]&Model[Type],0))) ->  | K46: =IF(ISBLANK(InputsResults[[#This Row],[Project Type]]),NA(),INDEX(Model[CapEx_UBnd],MATCH(InputsResults[[#This Row],[Project Name]]&InputsResults[[#This Row],[Project Type]],Model[Project Name]&Model[Type],0))) ->  | L46: =InputsResults[[#This Row],[Capital Expenditure (2020 $million)]]/InputsResults[[#This Row],[Plant Capacity (MW)]]*1000 ->  | M46: =InputsResults[[#This Row],[Capital Expenditure (2020 $million): LBnd]]/InputsResults[[#This Row],[Plant Capacity (MW)]]*1000 ->  | N46: =InputsResults[[#This Row],[Capital Expenditure (2020 $million): Ubnd]]/InputsResults[[#This Row],[Plant Capacity (MW)]]*1000 ->  | O46: =INDEX(Model[OMEx],MATCH(InputsResults[[#This Row],[Project Name]]&InputsResults[[#This Row],[Project Type]],Model[Project Name]&Model[Type],0)) ->  | P46: =INDEX(Model[OMEx_LBnd],MATCH(InputsResults[[#This Row],[Project Name]]&InputsResults[[#This Row],[Project Type]],Model[Project Name]&Model[Type],0)) ->  | Q46: =INDEX(Model[OMEx_Ubnd],MATCH(InputsResults[[#This Row],[Project Name]]&InputsResults[[#This Row],[Project Type]],Model[Project Name]&Model[Type],0)) ->  | R46: =InputsResults[[#This Row],[O&M Expenditure (2020 $million)]]/InputsResults[[#This Row],[Plant Capacity (MW)]]*1000 ->  | S46: =InputsResults[[#This Row],[O&M Expenditure (2020 $million): LBnd]]/InputsResults[[#This Row],[Plant Capacity (MW)]]*1000 ->  | T46: =InputsResults[[#This Row],[O&M Expenditure (2020 $million):Ubnd]]/InputsResults[[#This Row],[Plant Capacity (MW)]]*1000 -> 
D47: 1 | G47: 0 | H47: 0.5 | I47: =IF(ISBLANK(InputsResults[[#This Row],[Project Type]]),NA(),INDEX(Model[CapEx],MATCH(InputsResults[[#This Row],[Project Name]]&InputsResults[[#This Row],[Project Type]],Model[Project Name]&Model[Type],0))) ->  | J47: =IF(ISBLANK(InputsResults[[#This Row],[Project Type]]),NA(),INDEX(Model[CapEx_LBnd],MATCH(InputsResults[[#This Row],[Project Name]]&InputsResults[[#This Row],[Project Type]],Model[Project Name]&Model[Type],0))) ->  | K47: =IF(ISBLANK(InputsResults[[#This Row],[Project Type]]),NA(),INDEX(Model[CapEx_UBnd],MATCH(InputsResults[[#This Row],[Project Name]]&InputsResults[[#This Row],[Project Type]],Model[Project Name]&Model[Type],0))) ->  | L47: =InputsResults[[#This Row],[Capital Expenditure (2020 $million)]]/InputsResults[[#This Row],[Plant Capacity (MW)]]*1000 ->  | M47: =InputsResults[[#This Row],[Capital Expenditure (2020 $million): LBnd]]/InputsResults[[#This Row],[Plant Capacity (MW)]]*1000 ->  | N47: =InputsResults[[#This Row],[Capital Expenditure (2020 $million): Ubnd]]/InputsResults[[#This Row],[Plant Capacity (MW)]]*1000 ->  | O47: =INDEX(Model[OMEx],MATCH(InputsResults[[#This Row],[Project Name]]&InputsResults[[#This Row],[Project Type]],Model[Project Name]&Model[Type],0)) ->  | P47: =INDEX(Model[OMEx_LBnd],MATCH(InputsResults[[#This Row],[Project Name]]&InputsResults[[#This Row],[Project Type]],Model[Project Name]&Model[Type],0)) ->  | Q47: =INDEX(Model[OMEx_Ubnd],MATCH(InputsResults[[#This Row],[Project Name]]&InputsResults[[#This Row],[Project Type]],Model[Project Name]&Model[Type],0)) ->  | R47: =InputsResults[[#This Row],[O&M Expenditure (2020 $million)]]/InputsResults[[#This Row],[Plant Capacity (MW)]]*1000 ->  | S47: =InputsResults[[#This Row],[O&M Expenditure (2020 $million): LBnd]]/InputsResults[[#This Row],[Plant Capacity (MW)]]*1000 ->  | T47: =InputsResults[[#This Row],[O&M Expenditure (2020 $million):Ubnd]]/InputsResults[[#This Row],[Plant Capacity (MW)]]*1000 -> 
D48: 1 | G48: 0 | H48: 0.5 | I48: =IF(ISBLANK(InputsResults[[#This Row],[Project Type]]),NA(),INDEX(Model[CapEx],MATCH(InputsResults[[#This Row],[Project Name]]&InputsResults[[#This Row],[Project Type]],Model[Project Name]&Model[Type],0))) ->  | J48: =IF(ISBLANK(InputsResults[[#This Row],[Project Type]]),NA(),INDEX(Model[CapEx_LBnd],MATCH(InputsResults[[#This Row],[Project Name]]&InputsResults[[#This Row],[Project Type]],Model[Project Name]&Model[Type],0))) ->  | K48: =IF(ISBLANK(InputsResults[[#This Row],[Project Type]]),NA(),INDEX(Model[CapEx_UBnd],MATCH(InputsResults[[#This Row],[Project Name]]&InputsResults[[#This Row],[Project Type]],Model[Project Name]&Model[Type],0))) ->  | L48: =InputsResults[[#This Row],[Capital Expenditure (2020 $million)]]/InputsResults[[#This Row],[Plant Capacity (MW)]]*1000 ->  | M48: =InputsResults[[#This Row],[Capital Expenditure (2020 $million): LBnd]]/InputsResults[[#This Row],[Plant Capacity (MW)]]*1000 ->  | N48: =InputsResults[[#This Row],[Capital Expenditure (2020 $million): Ubnd]]/InputsResults[[#This Row],[Plant Capacity (MW)]]*1000 ->  | O48: =INDEX(Model[OMEx],MATCH(InputsResults[[#This Row],[Project Name]]&InputsResults[[#This Row],[Project Type]],Model[Project Name]&Model[Type],0)) ->  | P48: =INDEX(Model[OMEx_LBnd],MATCH(InputsResults[[#This Row],[Project Name]]&InputsResults[[#This Row],[Project Type]],Model[Project Name]&Model[Type],0)) ->  | Q48: =INDEX(Model[OMEx_Ubnd],MATCH(InputsResults[[#This Row],[Project Name]]&InputsResults[[#This Row],[Project Type]],Model[Project Name]&Model[Type],0)) ->  | R48: =InputsResults[[#This Row],[O&M Expenditure (2020 $million)]]/InputsResults[[#This Row],[Plant Capacity (MW)]]*1000 ->  | S48: =InputsResults[[#This Row],[O&M Expenditure (2020 $million): LBnd]]/InputsResults[[#This Row],[Plant Capacity (MW)]]*1000 ->  | T48: =InputsResults[[#This Row],[O&M Expenditure (2020 $million):Ubnd]]/InputsResults[[#This Row],[Plant Capacity (MW)]]*1000 -> 
D49: 1 | G49: 0 | H49: 0.5 | I49: =IF(ISBLANK(InputsResults[[#This Row],[Project Type]]),NA(),INDEX(Model[CapEx],MATCH(InputsResults[[#This Row],[Project Name]]&InputsResults[[#This Row],[Project Type]],Model[Project Name]&Model[Type],0))) ->  | J49: =IF(ISBLANK(InputsResults[[#This Row],[Project Type]]),NA(),INDEX(Model[CapEx_LBnd],MATCH(InputsResults[[#This Row],[Project Name]]&InputsResults[[#This Row],[Project Type]],Model[Project Name]&Model[Type],0))) ->  | K49: =IF(ISBLANK(InputsResults[[#This Row],[Project Type]]),NA(),INDEX(Model[CapEx_UBnd],MATCH(InputsResults[[#This Row],[Project Name]]&InputsResults[[#This Row],[Project Type]],Model[Project Name]&Model[Type],0))) ->  | L49: =InputsResults[[#This Row],[Capital Expenditure (2020 $million)]]/InputsResults[[#This Row],[Plant Capacity (MW)]]*1000 ->  | M49: =InputsResults[[#This Row],[Capital Expenditure (2020 $million): LBnd]]/InputsResults[[#This Row],[Plant Capacity (MW)]]*1000 ->  | N49: =InputsResults[[#This Row],[Capital Expenditure (2020 $million): Ubnd]]/InputsResults[[#This Row],[Plant Capacity (MW)]]*1000 ->  | O49: =INDEX(Model[OMEx],MATCH(InputsResults[[#This Row],[Project Name]]&InputsResults[[#This Row],[Project Type]],Model[Project Name]&Model[Type],0)) ->  | P49: =INDEX(Model[OMEx_LBnd],MATCH(InputsResults[[#This Row],[Project Name]]&InputsResults[[#This Row],[Project Type]],Model[Project Name]&Model[Type],0)) ->  | Q49: =INDEX(Model[OMEx_Ubnd],MATCH(InputsResults[[#This Row],[Project Name]]&InputsResults[[#This Row],[Project Type]],Model[Project Name]&Model[Type],0)) ->  | R49: =InputsResults[[#This Row],[O&M Expenditure (2020 $million)]]/InputsResults[[#This Row],[Plant Capacity (MW)]]*1000 ->  | S49: =InputsResults[[#This Row],[O&M Expenditure (2020 $million): LBnd]]/InputsResults[[#This Row],[Plant Capacity (MW)]]*1000 ->  | T49: =InputsResults[[#This Row],[O&M Expenditure (2020 $million):Ubnd]]/InputsResults[[#This Row],[Plant Capacity (MW)]]*1000 -> 
D50: 1 | G50: 0 | H50: 0.5 | I50: =IF(ISBLANK(InputsResults[[#This Row],[Project Type]]),NA(),INDEX(Model[CapEx],MATCH(InputsResults[[#This Row],[Project Name]]&InputsResults[[#This Row],[Project Type]],Model[Project Name]&Model[Type],0))) ->  | J50: =IF(ISBLANK(InputsResults[[#This Row],[Project Type]]),NA(),INDEX(Model[CapEx_LBnd],MATCH(InputsResults[[#This Row],[Project Name]]&InputsResults[[#This Row],[Project Type]],Model[Project Name]&Model[Type],0))) ->  | K50: =IF(ISBLANK(InputsResults[[#This Row],[Project Type]]),NA(),INDEX(Model[CapEx_UBnd],MATCH(InputsResults[[#This Row],[Project Name]]&InputsResults[[#This Row],[Project Type]],Model[Project Name]&Model[Type],0))) ->  | L50: =InputsResults[[#This Row],[Capital Expenditure (2020 $million)]]/InputsResults[[#This Row],[Plant Capacity (MW)]]*1000 ->  | M50: =InputsResults[[#This Row],[Capital Expenditure (2020 $million): LBnd]]/InputsResults[[#This Row],[Plant Capacity (MW)]]*1000 ->  | N50: =InputsResults[[#This Row],[Capital Expenditure (2020 $million): Ubnd]]/InputsResults[[#This Row],[Plant Capacity (MW)]]*1000 ->  | O50: =INDEX(Model[OMEx],MATCH(InputsResults[[#This Row],[Project Name]]&InputsResults[[#This Row],[Project Type]],Model[Project Name]&Model[Type],0)) ->  | P50: =INDEX(Model[OMEx_LBnd],MATCH(InputsResults[[#This Row],[Project Name]]&InputsResults[[#This Row],[Project Type]],Model[Project Name]&Model[Type],0)) ->  | Q50: =INDEX(Model[OMEx_Ubnd],MATCH(InputsResults[[#This Row],[Project Name]]&InputsResults[[#This Row],[Project Type]],Model[Project Name]&Model[Type],0)) ->  | R50: =InputsResults[[#This Row],[O&M Expenditure (2020 $million)]]/InputsResults[[#This Row],[Plant Capacity (MW)]]*1000 ->  | S50: =InputsResults[[#This Row],[O&M Expenditure (2020 $million): LBnd]]/InputsResults[[#This Row],[Plant Capacity (MW)]]*1000 ->  | T50: =InputsResults[[#This Row],[O&M Expenditure (2020 $million):Ubnd]]/InputsResults[[#This Row],[Plant Capacity (MW)]]*1000 -> 
D51: 1 | G51: 0 | H51: 0.5 | I51: =IF(ISBLANK(InputsResults[[#This Row],[Project Type]]),NA(),INDEX(Model[CapEx],MATCH(InputsResults[[#This Row],[Project Name]]&InputsResults[[#This Row],[Project Type]],Model[Project Name]&Model[Type],0))) ->  | J51: =IF(ISBLANK(InputsResults[[#This Row],[Project Type]]),NA(),INDEX(Model[CapEx_LBnd],MATCH(InputsResults[[#This Row],[Project Name]]&InputsResults[[#This Row],[Project Type]],Model[Project Name]&Model[Type],0))) ->  | K51: =IF(ISBLANK(InputsResults[[#This Row],[Project Type]]),NA(),INDEX(Model[CapEx_UBnd],MATCH(InputsResults[[#This Row],[Project Name]]&InputsResults[[#This Row],[Project Type]],Model[Project Name]&Model[Type],0))) ->  | L51: =InputsResults[[#This Row],[Capital Expenditure (2020 $million)]]/InputsResults[[#This Row],[Plant Capacity (MW)]]*1000 ->  | M51: =InputsResults[[#This Row],[Capital Expenditure (2020 $million): LBnd]]/InputsResults[[#This Row],[Plant Capacity (MW)]]*1000 ->  | N51: =InputsResults[[#This Row],[Capital Expenditure (2020 $million): Ubnd]]/InputsResults[[#This Row],[Plant Capacity (MW)]]*1000 ->  | O51: =INDEX(Model[OMEx],MATCH(InputsResults[[#This Row],[Project Name]]&InputsResults[[#This Row],[Project Type]],Model[Project Name]&Model[Type],0)) ->  | P51: =INDEX(Model[OMEx_LBnd],MATCH(InputsResults[[#This Row],[Project Name]]&InputsResults[[#This Row],[Project Type]],Model[Project Name]&Model[Type],0)) ->  | Q51: =INDEX(Model[OMEx_Ubnd],MATCH(InputsResults[[#This Row],[Project Name]]&InputsResults[[#This Row],[Project Type]],Model[Project Name]&Model[Type],0)) ->  | R51: =InputsResults[[#This Row],[O&M Expenditure (2020 $million)]]/InputsResults[[#This Row],[Plant Capacity (MW)]]*1000 ->  | S51: =InputsResults[[#This Row],[O&M Expenditure (2020 $million): LBnd]]/InputsResults[[#This Row],[Plant Capacity (MW)]]*1000 ->  | T51: =InputsResults[[#This Row],[O&M Expenditure (2020 $million):Ubnd]]/InputsResults[[#This Row],[Plant Capacity (MW)]]*1000 -> 
D52: 1 | G52: 0 | H52: 0.5 | I52: =IF(ISBLANK(InputsResults[[#This Row],[Project Type]]),NA(),INDEX(Model[CapEx],MATCH(InputsResults[[#This Row],[Project Name]]&InputsResults[[#This Row],[Project Type]],Model[Project Name]&Model[Type],0))) ->  | J52: =IF(ISBLANK(InputsResults[[#This Row],[Project Type]]),NA(),INDEX(Model[CapEx_LBnd],MATCH(InputsResults[[#This Row],[Project Name]]&InputsResults[[#This Row],[Project Type]],Model[Project Name]&Model[Type],0))) ->  | K52: =IF(ISBLANK(InputsResults[[#This Row],[Project Type]]),NA(),INDEX(Model[CapEx_UBnd],MATCH(InputsResults[[#This Row],[Project Name]]&InputsResults[[#This Row],[Project Type]],Model[Project Name]&Model[Type],0))) ->  | L52: =InputsResults[[#This Row],[Capital Expenditure (2020 $million)]]/InputsResults[[#This Row],[Plant Capacity (MW)]]*1000 ->  | M52: =InputsResults[[#This Row],[Capital Expenditure (2020 $million): LBnd]]/InputsResults[[#This Row],[Plant Capacity (MW)]]*1000 ->  | N52: =InputsResults[[#This Row],[Capital Expenditure (2020 $million): Ubnd]]/InputsResults[[#This Row],[Plant Capacity (MW)]]*1000 ->  | O52: =INDEX(Model[OMEx],MATCH(InputsResults[[#This Row],[Project Name]]&InputsResults[[#This Row],[Project Type]],Model[Project Name]&Model[Type],0)) ->  | P52: =INDEX(Model[OMEx_LBnd],MATCH(InputsResults[[#This Row],[Project Name]]&InputsResults[[#This Row],[Project Type]],Model[Project Name]&Model[Type],0)) ->  | Q52: =INDEX(Model[OMEx_Ubnd],MATCH(InputsResults[[#This Row],[Project Name]]&InputsResults[[#This Row],[Project Type]],Model[Project Name]&Model[Type],0)) ->  | R52: =InputsResults[[#This Row],[O&M Expenditure (2020 $million)]]/InputsResults[[#This Row],[Plant Capacity (MW)]]*1000 ->  | S52: =InputsResults[[#This Row],[O&M Expenditure (2020 $million): LBnd]]/InputsResults[[#This Row],[Plant Capacity (MW)]]*1000 ->  | T52: =InputsResults[[#This Row],[O&M Expenditure (2020 $million):Ubnd]]/InputsResults[[#This Row],[Plant Capacity (MW)]]*1000 -> 
D53: 1 | G53: 0 | H53: 0.5 | I53: =IF(ISBLANK(InputsResults[[#This Row],[Project Type]]),NA(),INDEX(Model[CapEx],MATCH(InputsResults[[#This Row],[Project Name]]&InputsResults[[#This Row],[Project Type]],Model[Project Name]&Model[Type],0))) ->  | J53: =IF(ISBLANK(InputsResults[[#This Row],[Project Type]]),NA(),INDEX(Model[CapEx_LBnd],MATCH(InputsResults[[#This Row],[Project Name]]&InputsResults[[#This Row],[Project Type]],Model[Project Name]&Model[Type],0))) ->  | K53: =IF(ISBLANK(InputsResults[[#This Row],[Project Type]]),NA(),INDEX(Model[CapEx_UBnd],MATCH(InputsResults[[#This Row],[Project Name]]&InputsResults[[#This Row],[Project Type]],Model[Project Name]&Model[Type],0))) ->  | L53: =InputsResults[[#This Row],[Capital Expenditure (2020 $million)]]/InputsResults[[#This Row],[Plant Capacity (MW)]]*1000 ->  | M53: =InputsResults[[#This Row],[Capital Expenditure (2020 $million): LBnd]]/InputsResults[[#This Row],[Plant Capacity (MW)]]*1000 ->  | N53: =InputsResults[[#This Row],[Capital Expenditure (2020 $million): Ubnd]]/InputsResults[[#This Row],[Plant Capacity (MW)]]*1000 ->  | O53: =INDEX(Model[OMEx],MATCH(InputsResults[[#This Row],[Project Name]]&InputsResults[[#This Row],[Project Type]],Model[Project Name]&Model[Type],0)) ->  | P53: =INDEX(Model[OMEx_LBnd],MATCH(InputsResults[[#This Row],[Project Name]]&InputsResults[[#This Row],[Project Type]],Model[Project Name]&Model[Type],0)) ->  | Q53: =INDEX(Model[OMEx_Ubnd],MATCH(InputsResults[[#This Row],[Project Name]]&InputsResults[[#This Row],[Project Type]],Model[Project Name]&Model[Type],0)) ->  | R53: =InputsResults[[#This Row],[O&M Expenditure (2020 $million)]]/InputsResults[[#This Row],[Plant Capacity (MW)]]*1000 ->  | S53: =InputsResults[[#This Row],[O&M Expenditure (2020 $million): LBnd]]/InputsResults[[#This Row],[Plant Capacity (MW)]]*1000 ->  | T53: =InputsResults[[#This Row],[O&M Expenditure (2020 $million):Ubnd]]/InputsResults[[#This Row],[Plant Capacity (MW)]]*1000 -> 
D54: 1 | G54: 0 | H54: 0.5 | I54: =IF(ISBLANK(InputsResults[[#This Row],[Project Type]]),NA(),INDEX(Model[CapEx],MATCH(InputsResults[[#This Row],[Project Name]]&InputsResults[[#This Row],[Project Type]],Model[Project Name]&Model[Type],0))) ->  | J54: =IF(ISBLANK(InputsResults[[#This Row],[Project Type]]),NA(),INDEX(Model[CapEx_LBnd],MATCH(InputsResults[[#This Row],[Project Name]]&InputsResults[[#This Row],[Project Type]],Model[Project Name]&Model[Type],0))) ->  | K54: =IF(ISBLANK(InputsResults[[#This Row],[Project Type]]),NA(),INDEX(Model[CapEx_UBnd],MATCH(InputsResults[[#This Row],[Project Name]]&InputsResults[[#This Row],[Project Type]],Model[Project Name]&Model[Type],0))) ->  | L54: =InputsResults[[#This Row],[Capital Expenditure (2020 $million)]]/InputsResults[[#This Row],[Plant Capacity (MW)]]*1000 ->  | M54: =InputsResults[[#This Row],[Capital Expenditure (2020 $million): LBnd]]/InputsResults[[#This Row],[Plant Capacity (MW)]]*1000 ->  | N54: =InputsResults[[#This Row],[Capital Expenditure (2020 $million): Ubnd]]/InputsResults[[#This Row],[Plant Capacity (MW)]]*1000 ->  | O54: =INDEX(Model[OMEx],MATCH(InputsResults[[#This Row],[Project Name]]&InputsResults[[#This Row],[Project Type]],Model[Project Name]&Model[Type],0)) ->  | P54: =INDEX(Model[OMEx_LBnd],MATCH(InputsResults[[#This Row],[Project Name]]&InputsResults[[#This Row],[Project Type]],Model[Project Name]&Model[Type],0)) ->  | Q54: =INDEX(Model[OMEx_Ubnd],MATCH(InputsResults[[#This Row],[Project Name]]&InputsResults[[#This Row],[Project Type]],Model[Project Name]&Model[Type],0)) ->  | R54: =InputsResults[[#This Row],[O&M Expenditure (2020 $million)]]/InputsResults[[#This Row],[Plant Capacity (MW)]]*1000 ->  | S54: =InputsResults[[#This Row],[O&M Expenditure (2020 $million): LBnd]]/InputsResults[[#This Row],[Plant Capacity (MW)]]*1000 ->  | T54: =InputsResults[[#This Row],[O&M Expenditure (2020 $million):Ubnd]]/InputsResults[[#This Row],[Plant Capacity (MW)]]*1000 -> 
D55: 1 | G55: 0 | H55: 0.5 | I55: =IF(ISBLANK(InputsResults[[#This Row],[Project Type]]),NA(),INDEX(Model[CapEx],MATCH(InputsResults[[#This Row],[Project Name]]&InputsResults[[#This Row],[Project Type]],Model[Project Name]&Model[Type],0))) ->  | J55: =IF(ISBLANK(InputsResults[[#This Row],[Project Type]]),NA(),INDEX(Model[CapEx_LBnd],MATCH(InputsResults[[#This Row],[Project Name]]&InputsResults[[#This Row],[Project Type]],Model[Project Name]&Model[Type],0))) ->  | K55: =IF(ISBLANK(InputsResults[[#This Row],[Project Type]]),NA(),INDEX(Model[CapEx_UBnd],MATCH(InputsResults[[#This Row],[Project Name]]&InputsResults[[#This Row],[Project Type]],Model[Project Name]&Model[Type],0))) ->  | L55: =InputsResults[[#This Row],[Capital Expenditure (2020 $million)]]/InputsResults[[#This Row],[Plant Capacity (MW)]]*1000 ->  | M55: =InputsResults[[#This Row],[Capital Expenditure (2020 $million): LBnd]]/InputsResults[[#This Row],[Plant Capacity (MW)]]*1000 ->  | N55: =InputsResults[[#This Row],[Capital Expenditure (2020 $million): Ubnd]]/InputsResults[[#This Row],[Plant Capacity (MW)]]*1000 ->  | O55: =INDEX(Model[OMEx],MATCH(InputsResults[[#This Row],[Project Name]]&InputsResults[[#This Row],[Project Type]],Model[Project Name]&Model[Type],0)) ->  | P55: =INDEX(Model[OMEx_LBnd],MATCH(InputsResults[[#This Row],[Project Name]]&InputsResults[[#This Row],[Project Type]],Model[Project Name]&Model[Type],0)) ->  | Q55: =INDEX(Model[OMEx_Ubnd],MATCH(InputsResults[[#This Row],[Project Name]]&InputsResults[[#This Row],[Project Type]],Model[Project Name]&Model[Type],0)) ->  | R55: =InputsResults[[#This Row],[O&M Expenditure (2020 $million)]]/InputsResults[[#This Row],[Plant Capacity (MW)]]*1000 ->  | S55: =InputsResults[[#This Row],[O&M Expenditure (2020 $million): LBnd]]/InputsResults[[#This Row],[Plant Capacity (MW)]]*1000 ->  | T55: =InputsResults[[#This Row],[O&M Expenditure (2020 $million):Ubnd]]/InputsResults[[#This Row],[Plant Capacity (MW)]]*1000 -> 
D56: 1 | G56: 0 | H56: 0.5 | I56: =IF(ISBLANK(InputsResults[[#This Row],[Project Type]]),NA(),INDEX(Model[CapEx],MATCH(InputsResults[[#This Row],[Project Name]]&InputsResults[[#This Row],[Project Type]],Model[Project Name]&Model[Type],0))) ->  | J56: =IF(ISBLANK(InputsResults[[#This Row],[Project Type]]),NA(),INDEX(Model[CapEx_LBnd],MATCH(InputsResults[[#This Row],[Project Name]]&InputsResults[[#This Row],[Project Type]],Model[Project Name]&Model[Type],0))) ->  | K56: =IF(ISBLANK(InputsResults[[#This Row],[Project Type]]),NA(),INDEX(Model[CapEx_UBnd],MATCH(InputsResults[[#This Row],[Project Name]]&InputsResults[[#This Row],[Project Type]],Model[Project Name]&Model[Type],0))) ->  | L56: =InputsResults[[#This Row],[Capital Expenditure (2020 $million)]]/InputsResults[[#This Row],[Plant Capacity (MW)]]*1000 ->  | M56: =InputsResults[[#This Row],[Capital Expenditure (2020 $million): LBnd]]/InputsResults[[#This Row],[Plant Capacity (MW)]]*1000 ->  | N56: =InputsResults[[#This Row],[Capital Expenditure (2020 $million): Ubnd]]/InputsResults[[#This Row],[Plant Capacity (MW)]]*1000 ->  | O56: =INDEX(Model[OMEx],MATCH(InputsResults[[#This Row],[Project Name]]&InputsResults[[#This Row],[Project Type]],Model[Project Name]&Model[Type],0)) ->  | P56: =INDEX(Model[OMEx_LBnd],MATCH(InputsResults[[#This Row],[Project Name]]&InputsResults[[#This Row],[Project Type]],Model[Project Name]&Model[Type],0)) ->  | Q56: =INDEX(Model[OMEx_Ubnd],MATCH(InputsResults[[#This Row],[Project Name]]&InputsResults[[#This Row],[Project Type]],Model[Project Name]&Model[Type],0)) ->  | R56: =InputsResults[[#This Row],[O&M Expenditure (2020 $million)]]/InputsResults[[#This Row],[Plant Capacity (MW)]]*1000 ->  | S56: =InputsResults[[#This Row],[O&M Expenditure (2020 $million): LBnd]]/InputsResults[[#This Row],[Plant Capacity (MW)]]*1000 ->  | T56: =InputsResults[[#This Row],[O&M Expenditure (2020 $million):Ubnd]]/InputsResults[[#This Row],[Plant Capacity (MW)]]*1000 -> 
D57: 1 | G57: 0 | H57: 0.5 | I57: =IF(ISBLANK(InputsResults[[#This Row],[Project Type]]),NA(),INDEX(Model[CapEx],MATCH(InputsResults[[#This Row],[Project Name]]&InputsResults[[#This Row],[Project Type]],Model[Project Name]&Model[Type],0))) ->  | J57: =IF(ISBLANK(InputsResults[[#This Row],[Project Type]]),NA(),INDEX(Model[CapEx_LBnd],MATCH(InputsResults[[#This Row],[Project Name]]&InputsResults[[#This Row],[Project Type]],Model[Project Name]&Model[Type],0))) ->  | K57: =IF(ISBLANK(InputsResults[[#This Row],[Project Type]]),NA(),INDEX(Model[CapEx_UBnd],MATCH(InputsResults[[#This Row],[Project Name]]&InputsResults[[#This Row],[Project Type]],Model[Project Name]&Model[Type],0))) ->  | L57: =InputsResults[[#This Row],[Capital Expenditure (2020 $million)]]/InputsResults[[#This Row],[Plant Capacity (MW)]]*1000 ->  | M57: =InputsResults[[#This Row],[Capital Expenditure (2020 $million): LBnd]]/InputsResults[[#This Row],[Plant Capacity (MW)]]*1000 ->  | N57: =InputsResults[[#This Row],[Capital Expenditure (2020 $million): Ubnd]]/InputsResults[[#This Row],[Plant Capacity (MW)]]*1000 ->  | O57: =INDEX(Model[OMEx],MATCH(InputsResults[[#This Row],[Project Name]]&InputsResults[[#This Row],[Project Type]],Model[Project Name]&Model[Type],0)) ->  | P57: =INDEX(Model[OMEx_LBnd],MATCH(InputsResults[[#This Row],[Project Name]]&InputsResults[[#This Row],[Project Type]],Model[Project Name]&Model[Type],0)) ->  | Q57: =INDEX(Model[OMEx_Ubnd],MATCH(InputsResults[[#This Row],[Project Name]]&InputsResults[[#This Row],[Project Type]],Model[Project Name]&Model[Type],0)) ->  | R57: =InputsResults[[#This Row],[O&M Expenditure (2020 $million)]]/InputsResults[[#This Row],[Plant Capacity (MW)]]*1000 ->  | S57: =InputsResults[[#This Row],[O&M Expenditure (2020 $million): LBnd]]/InputsResults[[#This Row],[Plant Capacity (MW)]]*1000 ->  | T57: =InputsResults[[#This Row],[O&M Expenditure (2020 $million):Ubnd]]/InputsResults[[#This Row],[Plant Capacity (MW)]]*1000 -> 
D58: 1 | G58: 0 | H58: 0.5 | I58: =IF(ISBLANK(InputsResults[[#This Row],[Project Type]]),NA(),INDEX(Model[CapEx],MATCH(InputsResults[[#This Row],[Project Name]]&InputsResults[[#This Row],[Project Type]],Model[Project Name]&Model[Type],0))) ->  | J58: =IF(ISBLANK(InputsResults[[#This Row],[Project Type]]),NA(),INDEX(Model[CapEx_LBnd],MATCH(InputsResults[[#This Row],[Project Name]]&InputsResults[[#This Row],[Project Type]],Model[Project Name]&Model[Type],0))) ->  | K58: =IF(ISBLANK(InputsResults[[#This Row],[Project Type]]),NA(),INDEX(Model[CapEx_UBnd],MATCH(InputsResults[[#This Row],[Project Name]]&InputsResults[[#This Row],[Project Type]],Model[Project Name]&Model[Type],0))) ->  | L58: =InputsResults[[#This Row],[Capital Expenditure (2020 $million)]]/InputsResults[[#This Row],[Plant Capacity (MW)]]*1000 ->  | M58: =InputsResults[[#This Row],[Capital Expenditure (2020 $million): LBnd]]/InputsResults[[#This Row],[Plant Capacity (MW)]]*1000 ->  | N58: =InputsResults[[#This Row],[Capital Expenditure (2020 $million): Ubnd]]/InputsResults[[#This Row],[Plant Capacity (MW)]]*1000 ->  | O58: =INDEX(Model[OMEx],MATCH(InputsResults[[#This Row],[Project Name]]&InputsResults[[#This Row],[Project Type]],Model[Project Name]&Model[Type],0)) ->  | P58: =INDEX(Model[OMEx_LBnd],MATCH(InputsResults[[#This Row],[Project Name]]&InputsResults[[#This Row],[Project Type]],Model[Project Name]&Model[Type],0)) ->  | Q58: =INDEX(Model[OMEx_Ubnd],MATCH(InputsResults[[#This Row],[Project Name]]&InputsResults[[#This Row],[Project Type]],Model[Project Name]&Model[Type],0)) ->  | R58: =InputsResults[[#This Row],[O&M Expenditure (2020 $million)]]/InputsResults[[#This Row],[Plant Capacity (MW)]]*1000 ->  | S58: =InputsResults[[#This Row],[O&M Expenditure (2020 $million): LBnd]]/InputsResults[[#This Row],[Plant Capacity (MW)]]*1000 ->  | T58: =InputsResults[[#This Row],[O&M Expenditure (2020 $million):Ubnd]]/InputsResults[[#This Row],[Plant Capacity (MW)]]*1000 -> 
D59: 1 | G59: 0 | H59: 0.5 | I59: =IF(ISBLANK(InputsResults[[#This Row],[Project Type]]),NA(),INDEX(Model[CapEx],MATCH(InputsResults[[#This Row],[Project Name]]&InputsResults[[#This Row],[Project Type]],Model[Project Name]&Model[Type],0))) ->  | J59: =IF(ISBLANK(InputsResults[[#This Row],[Project Type]]),NA(),INDEX(Model[CapEx_LBnd],MATCH(InputsResults[[#This Row],[Project Name]]&InputsResults[[#This Row],[Project Type]],Model[Project Name]&Model[Type],0))) ->  | K59: =IF(ISBLANK(InputsResults[[#This Row],[Project Type]]),NA(),INDEX(Model[CapEx_UBnd],MATCH(InputsResults[[#This Row],[Project Name]]&InputsResults[[#This Row],[Project Type]],Model[Project Name]&Model[Type],0))) ->  | L59: =InputsResults[[#This Row],[Capital Expenditure (2020 $million)]]/InputsResults[[#This Row],[Plant Capacity (MW)]]*1000 ->  | M59: =InputsResults[[#This Row],[Capital Expenditure (2020 $million): LBnd]]/InputsResults[[#This Row],[Plant Capacity (MW)]]*1000 ->  | N59: =InputsResults[[#This Row],[Capital Expenditure (2020 $million): Ubnd]]/InputsResults[[#This Row],[Plant Capacity (MW)]]*1000 ->  | O59: =INDEX(Model[OMEx],MATCH(InputsResults[[#This Row],[Project Name]]&InputsResults[[#This Row],[Project Type]],Model[Project Name]&Model[Type],0)) ->  | P59: =INDEX(Model[OMEx_LBnd],MATCH(InputsResults[[#This Row],[Project Name]]&InputsResults[[#This Row],[Project Type]],Model[Project Name]&Model[Type],0)) ->  | Q59: =INDEX(Model[OMEx_Ubnd],MATCH(InputsResults[[#This Row],[Project Name]]&InputsResults[[#This Row],[Project Type]],Model[Project Name]&Model[Type],0)) ->  | R59: =InputsResults[[#This Row],[O&M Expenditure (2020 $million)]]/InputsResults[[#This Row],[Plant Capacity (MW)]]*1000 ->  | S59: =InputsResults[[#This Row],[O&M Expenditure (2020 $million): LBnd]]/InputsResults[[#This Row],[Plant Capacity (MW)]]*1000 ->  | T59: =InputsResults[[#This Row],[O&M Expenditure (2020 $million):Ubnd]]/InputsResults[[#This Row],[Plant Capacity (MW)]]*1000 -> 
D60: 1 | G60: 0 | H60: 0.5 | I60: =IF(ISBLANK(InputsResults[[#This Row],[Project Type]]),NA(),INDEX(Model[CapEx],MATCH(InputsResults[[#This Row],[Project Name]]&InputsResults[[#This Row],[Project Type]],Model[Project Name]&Model[Type],0))) ->  | J60: =IF(ISBLANK(InputsResults[[#This Row],[Project Type]]),NA(),INDEX(Model[CapEx_LBnd],MATCH(InputsResults[[#This Row],[Project Name]]&InputsResults[[#This Row],[Project Type]],Model[Project Name]&Model[Type],0))) ->  | K60: =IF(ISBLANK(InputsResults[[#This Row],[Project Type]]),NA(),INDEX(Model[CapEx_UBnd],MATCH(InputsResults[[#This Row],[Project Name]]&InputsResults[[#This Row],[Project Type]],Model[Project Name]&Model[Type],0))) ->  | L60: =InputsResults[[#This Row],[Capital Expenditure (2020 $million)]]/InputsResults[[#This Row],[Plant Capacity (MW)]]*1000 ->  | M60: =InputsResults[[#This Row],[Capital Expenditure (2020 $million): LBnd]]/InputsResults[[#This Row],[Plant Capacity (MW)]]*1000 ->  | N60: =InputsResults[[#This Row],[Capital Expenditure (2020 $million): Ubnd]]/InputsResults[[#This Row],[Plant Capacity (MW)]]*1000 ->  | O60: =INDEX(Model[OMEx],MATCH(InputsResults[[#This Row],[Project Name]]&InputsResults[[#This Row],[Project Type]],Model[Project Name]&Model[Type],0)) ->  | P60: =INDEX(Model[OMEx_LBnd],MATCH(InputsResults[[#This Row],[Project Name]]&InputsResults[[#This Row],[Project Type]],Model[Project Name]&Model[Type],0)) ->  | Q60: =INDEX(Model[OMEx_Ubnd],MATCH(InputsResults[[#This Row],[Project Name]]&InputsResults[[#This Row],[Project Type]],Model[Project Name]&Model[Type],0)) ->  | R60: =InputsResults[[#This Row],[O&M Expenditure (2020 $million)]]/InputsResults[[#This Row],[Plant Capacity (MW)]]*1000 ->  | S60: =InputsResults[[#This Row],[O&M Expenditure (2020 $million): LBnd]]/InputsResults[[#This Row],[Plant Capacity (MW)]]*1000 ->  | T60: =InputsResults[[#This Row],[O&M Expenditure (2020 $million):Ubnd]]/InputsResults[[#This Row],[Plant Capacity (MW)]]*1000 -> 
D61: 1 | G61: 0 | H61: 0.5 | I61: =IF(ISBLANK(InputsResults[[#This Row],[Project Type]]),NA(),INDEX(Model[CapEx],MATCH(InputsResults[[#This Row],[Project Name]]&InputsResults[[#This Row],[Project Type]],Model[Project Name]&Model[Type],0))) ->  | J61: =IF(ISBLANK(InputsResults[[#This Row],[Project Type]]),NA(),INDEX(Model[CapEx_LBnd],MATCH(InputsResults[[#This Row],[Project Name]]&InputsResults[[#This Row],[Project Type]],Model[Project Name]&Model[Type],0))) ->  | K61: =IF(ISBLANK(InputsResults[[#This Row],[Project Type]]),NA(),INDEX(Model[CapEx_UBnd],MATCH(InputsResults[[#This Row],[Project Name]]&InputsResults[[#This Row],[Project Type]],Model[Project Name]&Model[Type],0))) ->  | L61: =InputsResults[[#This Row],[Capital Expenditure (2020 $million)]]/InputsResults[[#This Row],[Plant Capacity (MW)]]*1000 ->  | M61: =InputsResults[[#This Row],[Capital Expenditure (2020 $million): LBnd]]/InputsResults[[#This Row],[Plant Capacity (MW)]]*1000 ->  | N61: =InputsResults[[#This Row],[Capital Expenditure (2020 $million): Ubnd]]/InputsResults[[#This Row],[Plant Capacity (MW)]]*1000 ->  | O61: =INDEX(Model[OMEx],MATCH(InputsResults[[#This Row],[Project Name]]&InputsResults[[#This Row],[Project Type]],Model[Project Name]&Model[Type],0)) ->  | P61: =INDEX(Model[OMEx_LBnd],MATCH(InputsResults[[#This Row],[Project Name]]&InputsResults[[#This Row],[Project Type]],Model[Project Name]&Model[Type],0)) ->  | Q61: =INDEX(Model[OMEx_Ubnd],MATCH(InputsResults[[#This Row],[Project Name]]&InputsResults[[#This Row],[Project Type]],Model[Project Name]&Model[Type],0)) ->  | R61: =InputsResults[[#This Row],[O&M Expenditure (2020 $million)]]/InputsResults[[#This Row],[Plant Capacity (MW)]]*1000 ->  | S61: =InputsResults[[#This Row],[O&M Expenditure (2020 $million): LBnd]]/InputsResults[[#This Row],[Plant Capacity (MW)]]*1000 ->  | T61: =InputsResults[[#This Row],[O&M Expenditure (2020 $million):Ubnd]]/InputsResults[[#This Row],[Plant Capacity (MW)]]*1000 -> 
D62: 1 | G62: 0 | H62: 0.5 | I62: =IF(ISBLANK(InputsResults[[#This Row],[Project Type]]),NA(),INDEX(Model[CapEx],MATCH(InputsResults[[#This Row],[Project Name]]&InputsResults[[#This Row],[Project Type]],Model[Project Name]&Model[Type],0))) ->  | J62: =IF(ISBLANK(InputsResults[[#This Row],[Project Type]]),NA(),INDEX(Model[CapEx_LBnd],MATCH(InputsResults[[#This Row],[Project Name]]&InputsResults[[#This Row],[Project Type]],Model[Project Name]&Model[Type],0))) ->  | K62: =IF(ISBLANK(InputsResults[[#This Row],[Project Type]]),NA(),INDEX(Model[CapEx_UBnd],MATCH(InputsResults[[#This Row],[Project Name]]&InputsResults[[#This Row],[Project Type]],Model[Project Name]&Model[Type],0))) ->  | L62: =InputsResults[[#This Row],[Capital Expenditure (2020 $million)]]/InputsResults[[#This Row],[Plant Capacity (MW)]]*1000 ->  | M62: =InputsResults[[#This Row],[Capital Expenditure (2020 $million): LBnd]]/InputsResults[[#This Row],[Plant Capacity (MW)]]*1000 ->  | N62: =InputsResults[[#This Row],[Capital Expenditure (2020 $million): Ubnd]]/InputsResults[[#This Row],[Plant Capacity (MW)]]*1000 ->  | O62: =INDEX(Model[OMEx],MATCH(InputsResults[[#This Row],[Project Name]]&InputsResults[[#This Row],[Project Type]],Model[Project Name]&Model[Type],0)) ->  | P62: =INDEX(Model[OMEx_LBnd],MATCH(InputsResults[[#This Row],[Project Name]]&InputsResults[[#This Row],[Project Type]],Model[Project Name]&Model[Type],0)) ->  | Q62: =INDEX(Model[OMEx_Ubnd],MATCH(InputsResults[[#This Row],[Project Name]]&InputsResults[[#This Row],[Project Type]],Model[Project Name]&Model[Type],0)) ->  | R62: =InputsResults[[#This Row],[O&M Expenditure (2020 $million)]]/InputsResults[[#This Row],[Plant Capacity (MW)]]*1000 ->  | S62: =InputsResults[[#This Row],[O&M Expenditure (2020 $million): LBnd]]/InputsResults[[#This Row],[Plant Capacity (MW)]]*1000 ->  | T62: =InputsResults[[#This Row],[O&M Expenditure (2020 $million):Ubnd]]/InputsResults[[#This Row],[Plant Capacity (MW)]]*1000 -> 
D63: 1 | G63: 0 | H63: 0.5 | I63: =IF(ISBLANK(InputsResults[[#This Row],[Project Type]]),NA(),INDEX(Model[CapEx],MATCH(InputsResults[[#This Row],[Project Name]]&InputsResults[[#This Row],[Project Type]],Model[Project Name]&Model[Type],0))) ->  | J63: =IF(ISBLANK(InputsResults[[#This Row],[Project Type]]),NA(),INDEX(Model[CapEx_LBnd],MATCH(InputsResults[[#This Row],[Project Name]]&InputsResults[[#This Row],[Project Type]],Model[Project Name]&Model[Type],0))) ->  | K63: =IF(ISBLANK(InputsResults[[#This Row],[Project Type]]),NA(),INDEX(Model[CapEx_UBnd],MATCH(InputsResults[[#This Row],[Project Name]]&InputsResults[[#This Row],[Project Type]],Model[Project Name]&Model[Type],0))) ->  | L63: =InputsResults[[#This Row],[Capital Expenditure (2020 $million)]]/InputsResults[[#This Row],[Plant Capacity (MW)]]*1000 ->  | M63: =InputsResults[[#This Row],[Capital Expenditure (2020 $million): LBnd]]/InputsResults[[#This Row],[Plant Capacity (MW)]]*1000 ->  | N63: =InputsResults[[#This Row],[Capital Expenditure (2020 $million): Ubnd]]/InputsResults[[#This Row],[Plant Capacity (MW)]]*1000 ->  | O63: =INDEX(Model[OMEx],MATCH(InputsResults[[#This Row],[Project Name]]&InputsResults[[#This Row],[Project Type]],Model[Project Name]&Model[Type],0)) ->  | P63: =INDEX(Model[OMEx_LBnd],MATCH(InputsResults[[#This Row],[Project Name]]&InputsResults[[#This Row],[Project Type]],Model[Project Name]&Model[Type],0)) ->  | Q63: =INDEX(Model[OMEx_Ubnd],MATCH(InputsResults[[#This Row],[Project Name]]&InputsResults[[#This Row],[Project Type]],Model[Project Name]&Model[Type],0)) ->  | R63: =InputsResults[[#This Row],[O&M Expenditure (2020 $million)]]/InputsResults[[#This Row],[Plant Capacity (MW)]]*1000 ->  | S63: =InputsResults[[#This Row],[O&M Expenditure (2020 $million): LBnd]]/InputsResults[[#This Row],[Plant Capacity (MW)]]*1000 ->  | T63: =InputsResults[[#This Row],[O&M Expenditure (2020 $million):Ubnd]]/InputsResults[[#This Row],[Plant Capacity (MW)]]*1000 -> 
D64: 1 | G64: 0 | H64: 0.5 | I64: =IF(ISBLANK(InputsResults[[#This Row],[Project Type]]),NA(),INDEX(Model[CapEx],MATCH(InputsResults[[#This Row],[Project Name]]&InputsResults[[#This Row],[Project Type]],Model[Project Name]&Model[Type],0))) ->  | J64: =IF(ISBLANK(InputsResults[[#This Row],[Project Type]]),NA(),INDEX(Model[CapEx_LBnd],MATCH(InputsResults[[#This Row],[Project Name]]&InputsResults[[#This Row],[Project Type]],Model[Project Name]&Model[Type],0))) ->  | K64: =IF(ISBLANK(InputsResults[[#This Row],[Project Type]]),NA(),INDEX(Model[CapEx_UBnd],MATCH(InputsResults[[#This Row],[Project Name]]&InputsResults[[#This Row],[Project Type]],Model[Project Name]&Model[Type],0))) ->  | L64: =InputsResults[[#This Row],[Capital Expenditure (2020 $million)]]/InputsResults[[#This Row],[Plant Capacity (MW)]]*1000 ->  | M64: =InputsResults[[#This Row],[Capital Expenditure (2020 $million): LBnd]]/InputsResults[[#This Row],[Plant Capacity (MW)]]*1000 ->  | N64: =InputsResults[[#This Row],[Capital Expenditure (2020 $million): Ubnd]]/InputsResults[[#This Row],[Plant Capacity (MW)]]*1000 ->  | O64: =INDEX(Model[OMEx],MATCH(InputsResults[[#This Row],[Project Name]]&InputsResults[[#This Row],[Project Type]],Model[Project Name]&Model[Type],0)) ->  | P64: =INDEX(Model[OMEx_LBnd],MATCH(InputsResults[[#This Row],[Project Name]]&InputsResults[[#This Row],[Project Type]],Model[Project Name]&Model[Type],0)) ->  | Q64: =INDEX(Model[OMEx_Ubnd],MATCH(InputsResults[[#This Row],[Project Name]]&InputsResults[[#This Row],[Project Type]],Model[Project Name]&Model[Type],0)) ->  | R64: =InputsResults[[#This Row],[O&M Expenditure (2020 $million)]]/InputsResults[[#This Row],[Plant Capacity (MW)]]*1000 ->  | S64: =InputsResults[[#This Row],[O&M Expenditure (2020 $million): LBnd]]/InputsResults[[#This Row],[Plant Capacity (MW)]]*1000 ->  | T64: =InputsResults[[#This Row],[O&M Expenditure (2020 $million):Ubnd]]/InputsResults[[#This Row],[Plant Capacity (MW)]]*1000 -> 
D65: 1 | G65: 0 | H65: 0.5 | I65: =IF(ISBLANK(InputsResults[[#This Row],[Project Type]]),NA(),INDEX(Model[CapEx],MATCH(InputsResults[[#This Row],[Project Name]]&InputsResults[[#This Row],[Project Type]],Model[Project Name]&Model[Type],0))) ->  | J65: =IF(ISBLANK(InputsResults[[#This Row],[Project Type]]),NA(),INDEX(Model[CapEx_LBnd],MATCH(InputsResults[[#This Row],[Project Name]]&InputsResults[[#This Row],[Project Type]],Model[Project Name]&Model[Type],0))) ->  | K65: =IF(ISBLANK(InputsResults[[#This Row],[Project Type]]),NA(),INDEX(Model[CapEx_UBnd],MATCH(InputsResults[[#This Row],[Project Name]]&InputsResults[[#This Row],[Project Type]],Model[Project Name]&Model[Type],0))) ->  | L65: =InputsResults[[#This Row],[Capital Expenditure (2020 $million)]]/InputsResults[[#This Row],[Plant Capacity (MW)]]*1000 ->  | M65: =InputsResults[[#This Row],[Capital Expenditure (2020 $million): LBnd]]/InputsResults[[#This Row],[Plant Capacity (MW)]]*1000 ->  | N65: =InputsResults[[#This Row],[Capital Expenditure (2020 $million): Ubnd]]/InputsResults[[#This Row],[Plant Capacity (MW)]]*1000 ->  | O65: =INDEX(Model[OMEx],MATCH(InputsResults[[#This Row],[Project Name]]&InputsResults[[#This Row],[Project Type]],Model[Project Name]&Model[Type],0)) ->  | P65: =INDEX(Model[OMEx_LBnd],MATCH(InputsResults[[#This Row],[Project Name]]&InputsResults[[#This Row],[Project Type]],Model[Project Name]&Model[Type],0)) ->  | Q65: =INDEX(Model[OMEx_Ubnd],MATCH(InputsResults[[#This Row],[Project Name]]&InputsResults[[#This Row],[Project Type]],Model[Project Name]&Model[Type],0)) ->  | R65: =InputsResults[[#This Row],[O&M Expenditure (2020 $million)]]/InputsResults[[#This Row],[Plant Capacity (MW)]]*1000 ->  | S65: =InputsResults[[#This Row],[O&M Expenditure (2020 $million): LBnd]]/InputsResults[[#This Row],[Plant Capacity (MW)]]*1000 ->  | T65: =InputsResults[[#This Row],[O&M Expenditure (2020 $million):Ubnd]]/InputsResults[[#This Row],[Plant Capacity (MW)]]*1000 -> 
D66: 1 | G66: 0 | H66: 0.5 | I66: =IF(ISBLANK(InputsResults[[#This Row],[Project Type]]),NA(),INDEX(Model[CapEx],MATCH(InputsResults[[#This Row],[Project Name]]&InputsResults[[#This Row],[Project Type]],Model[Project Name]&Model[Type],0))) ->  | J66: =IF(ISBLANK(InputsResults[[#This Row],[Project Type]]),NA(),INDEX(Model[CapEx_LBnd],MATCH(InputsResults[[#This Row],[Project Name]]&InputsResults[[#This Row],[Project Type]],Model[Project Name]&Model[Type],0))) ->  | K66: =IF(ISBLANK(InputsResults[[#This Row],[Project Type]]),NA(),INDEX(Model[CapEx_UBnd],MATCH(InputsResults[[#This Row],[Project Name]]&InputsResults[[#This Row],[Project Type]],Model[Project Name]&Model[Type],0))) ->  | L66: =InputsResults[[#This Row],[Capital Expenditure (2020 $million)]]/InputsResults[[#This Row],[Plant Capacity (MW)]]*1000 ->  | M66: =InputsResults[[#This Row],[Capital Expenditure (2020 $million): LBnd]]/InputsResults[[#This Row],[Plant Capacity (MW)]]*1000 ->  | N66: =InputsResults[[#This Row],[Capital Expenditure (2020 $million): Ubnd]]/InputsResults[[#This Row],[Plant Capacity (MW)]]*1000 ->  | O66: =INDEX(Model[OMEx],MATCH(InputsResults[[#This Row],[Project Name]]&InputsResults[[#This Row],[Project Type]],Model[Project Name]&Model[Type],0)) ->  | P66: =INDEX(Model[OMEx_LBnd],MATCH(InputsResults[[#This Row],[Project Name]]&InputsResults[[#This Row],[Project Type]],Model[Project Name]&Model[Type],0)) ->  | Q66: =INDEX(Model[OMEx_Ubnd],MATCH(InputsResults[[#This Row],[Project Name]]&InputsResults[[#This Row],[Project Type]],Model[Project Name]&Model[Type],0)) ->  | R66: =InputsResults[[#This Row],[O&M Expenditure (2020 $million)]]/InputsResults[[#This Row],[Plant Capacity (MW)]]*1000 ->  | S66: =InputsResults[[#This Row],[O&M Expenditure (2020 $million): LBnd]]/InputsResults[[#This Row],[Plant Capacity (MW)]]*1000 ->  | T66: =InputsResults[[#This Row],[O&M Expenditure (2020 $million):Ubnd]]/InputsResults[[#This Row],[Plant Capacity (MW)]]*1000 -> 
D67: 1 | G67: 0 | H67: 0.5 | I67: =IF(ISBLANK(InputsResults[[#This Row],[Project Type]]),NA(),INDEX(Model[CapEx],MATCH(InputsResults[[#This Row],[Project Name]]&InputsResults[[#This Row],[Project Type]],Model[Project Name]&Model[Type],0))) ->  | J67: =IF(ISBLANK(InputsResults[[#This Row],[Project Type]]),NA(),INDEX(Model[CapEx_LBnd],MATCH(InputsResults[[#This Row],[Project Name]]&InputsResults[[#This Row],[Project Type]],Model[Project Name]&Model[Type],0))) ->  | K67: =IF(ISBLANK(InputsResults[[#This Row],[Project Type]]),NA(),INDEX(Model[CapEx_UBnd],MATCH(InputsResults[[#This Row],[Project Name]]&InputsResults[[#This Row],[Project Type]],Model[Project Name]&Model[Type],0))) ->  | L67: =InputsResults[[#This Row],[Capital Expenditure (2020 $million)]]/InputsResults[[#This Row],[Plant Capacity (MW)]]*1000 ->  | M67: =InputsResults[[#This Row],[Capital Expenditure (2020 $million): LBnd]]/InputsResults[[#This Row],[Plant Capacity (MW)]]*1000 ->  | N67: =InputsResults[[#This Row],[Capital Expenditure (2020 $million): Ubnd]]/InputsResults[[#This Row],[Plant Capacity (MW)]]*1000 ->  | O67: =INDEX(Model[OMEx],MATCH(InputsResults[[#This Row],[Project Name]]&InputsResults[[#This Row],[Project Type]],Model[Project Name]&Model[Type],0)) ->  | P67: =INDEX(Model[OMEx_LBnd],MATCH(InputsResults[[#This Row],[Project Name]]&InputsResults[[#This Row],[Project Type]],Model[Project Name]&Model[Type],0)) ->  | Q67: =INDEX(Model[OMEx_Ubnd],MATCH(InputsResults[[#This Row],[Project Name]]&InputsResults[[#This Row],[Project Type]],Model[Project Name]&Model[Type],0)) ->  | R67: =InputsResults[[#This Row],[O&M Expenditure (2020 $million)]]/InputsResults[[#This Row],[Plant Capacity (MW)]]*1000 ->  | S67: =InputsResults[[#This Row],[O&M Expenditure (2020 $million): LBnd]]/InputsResults[[#This Row],[Plant Capacity (MW)]]*1000 ->  | T67: =InputsResults[[#This Row],[O&M Expenditure (2020 $million):Ubnd]]/InputsResults[[#This Row],[Plant Capacity (MW)]]*1000 -> 
D68: 1 | G68: 0 | H68: 0.5 | I68: =IF(ISBLANK(InputsResults[[#This Row],[Project Type]]),NA(),INDEX(Model[CapEx],MATCH(InputsResults[[#This Row],[Project Name]]&InputsResults[[#This Row],[Project Type]],Model[Project Name]&Model[Type],0))) ->  | J68: =IF(ISBLANK(InputsResults[[#This Row],[Project Type]]),NA(),INDEX(Model[CapEx_LBnd],MATCH(InputsResults[[#This Row],[Project Name]]&InputsResults[[#This Row],[Project Type]],Model[Project Name]&Model[Type],0))) ->  | K68: =IF(ISBLANK(InputsResults[[#This Row],[Project Type]]),NA(),INDEX(Model[CapEx_UBnd],MATCH(InputsResults[[#This Row],[Project Name]]&InputsResults[[#This Row],[Project Type]],Model[Project Name]&Model[Type],0))) ->  | L68: =InputsResults[[#This Row],[Capital Expenditure (2020 $million)]]/InputsResults[[#This Row],[Plant Capacity (MW)]]*1000 ->  | M68: =InputsResults[[#This Row],[Capital Expenditure (2020 $million): LBnd]]/InputsResults[[#This Row],[Plant Capacity (MW)]]*1000 ->  | N68: =InputsResults[[#This Row],[Capital Expenditure (2020 $million): Ubnd]]/InputsResults[[#This Row],[Plant Capacity (MW)]]*1000 ->  | O68: =INDEX(Model[OMEx],MATCH(InputsResults[[#This Row],[Project Name]]&InputsResults[[#This Row],[Project Type]],Model[Project Name]&Model[Type],0)) ->  | P68: =INDEX(Model[OMEx_LBnd],MATCH(InputsResults[[#This Row],[Project Name]]&InputsResults[[#This Row],[Project Type]],Model[Project Name]&Model[Type],0)) ->  | Q68: =INDEX(Model[OMEx_Ubnd],MATCH(InputsResults[[#This Row],[Project Name]]&InputsResults[[#This Row],[Project Type]],Model[Project Name]&Model[Type],0)) ->  | R68: =InputsResults[[#This Row],[O&M Expenditure (2020 $million)]]/InputsResults[[#This Row],[Plant Capacity (MW)]]*1000 ->  | S68: =InputsResults[[#This Row],[O&M Expenditure (2020 $million): LBnd]]/InputsResults[[#This Row],[Plant Capacity (MW)]]*1000 ->  | T68: =InputsResults[[#This Row],[O&M Expenditure (2020 $million):Ubnd]]/InputsResults[[#This Row],[Plant Capacity (MW)]]*1000 -> 
D69: 1 | G69: 0 | H69: 0.5 | I69: =IF(ISBLANK(InputsResults[[#This Row],[Project Type]]),NA(),INDEX(Model[CapEx],MATCH(InputsResults[[#This Row],[Project Name]]&InputsResults[[#This Row],[Project Type]],Model[Project Name]&Model[Type],0))) ->  | J69: =IF(ISBLANK(InputsResults[[#This Row],[Project Type]]),NA(),INDEX(Model[CapEx_LBnd],MATCH(InputsResults[[#This Row],[Project Name]]&InputsResults[[#This Row],[Project Type]],Model[Project Name]&Model[Type],0))) ->  | K69: =IF(ISBLANK(InputsResults[[#This Row],[Project Type]]),NA(),INDEX(Model[CapEx_UBnd],MATCH(InputsResults[[#This Row],[Project Name]]&InputsResults[[#This Row],[Project Type]],Model[Project Name]&Model[Type],0))) ->  | L69: =InputsResults[[#This Row],[Capital Expenditure (2020 $million)]]/InputsResults[[#This Row],[Plant Capacity (MW)]]*1000 ->  | M69: =InputsResults[[#This Row],[Capital Expenditure (2020 $million): LBnd]]/InputsResults[[#This Row],[Plant Capacity (MW)]]*1000 ->  | N69: =InputsResults[[#This Row],[Capital Expenditure (2020 $million): Ubnd]]/InputsResults[[#This Row],[Plant Capacity (MW)]]*1000 ->  | O69: =INDEX(Model[OMEx],MATCH(InputsResults[[#This Row],[Project Name]]&InputsResults[[#This Row],[Project Type]],Model[Project Name]&Model[Type],0)) ->  | P69: =INDEX(Model[OMEx_LBnd],MATCH(InputsResults[[#This Row],[Project Name]]&InputsResults[[#This Row],[Project Type]],Model[Project Name]&Model[Type],0)) ->  | Q69: =INDEX(Model[OMEx_Ubnd],MATCH(InputsResults[[#This Row],[Project Name]]&InputsResults[[#This Row],[Project Type]],Model[Project Name]&Model[Type],0)) ->  | R69: =InputsResults[[#This Row],[O&M Expenditure (2020 $million)]]/InputsResults[[#This Row],[Plant Capacity (MW)]]*1000 ->  | S69: =InputsResults[[#This Row],[O&M Expenditure (2020 $million): LBnd]]/InputsResults[[#This Row],[Plant Capacity (MW)]]*1000 ->  | T69: =InputsResults[[#This Row],[O&M Expenditure (2020 $million):Ubnd]]/InputsResults[[#This Row],[Plant Capacity (MW)]]*1000 -> 
D70: 1 | G70: 0 | H70: 0.5 | I70: =IF(ISBLANK(InputsResults[[#This Row],[Project Type]]),NA(),INDEX(Model[CapEx],MATCH(InputsResults[[#This Row],[Project Name]]&InputsResults[[#This Row],[Project Type]],Model[Project Name]&Model[Type],0))) ->  | J70: =IF(ISBLANK(InputsResults[[#This Row],[Project Type]]),NA(),INDEX(Model[CapEx_LBnd],MATCH(InputsResults[[#This Row],[Project Name]]&InputsResults[[#This Row],[Project Type]],Model[Project Name]&Model[Type],0))) ->  | K70: =IF(ISBLANK(InputsResults[[#This Row],[Project Type]]),NA(),INDEX(Model[CapEx_UBnd],MATCH(InputsResults[[#This Row],[Project Name]]&InputsResults[[#This Row],[Project Type]],Model[Project Name]&Model[Type],0))) ->  | L70: =InputsResults[[#This Row],[Capital Expenditure (2020 $million)]]/InputsResults[[#This Row],[Plant Capacity (MW)]]*1000 ->  | M70: =InputsResults[[#This Row],[Capital Expenditure (2020 $million): LBnd]]/InputsResults[[#This Row],[Plant Capacity (MW)]]*1000 ->  | N70: =InputsResults[[#This Row],[Capital Expenditure (2020 $million): Ubnd]]/InputsResults[[#This Row],[Plant Capacity (MW)]]*1000 ->  | O70: =INDEX(Model[OMEx],MATCH(InputsResults[[#This Row],[Project Name]]&InputsResults[[#This Row],[Project Type]],Model[Project Name]&Model[Type],0)) ->  | P70: =INDEX(Model[OMEx_LBnd],MATCH(InputsResults[[#This Row],[Project Name]]&InputsResults[[#This Row],[Project Type]],Model[Project Name]&Model[Type],0)) ->  | Q70: =INDEX(Model[OMEx_Ubnd],MATCH(InputsResults[[#This Row],[Project Name]]&InputsResults[[#This Row],[Project Type]],Model[Project Name]&Model[Type],0)) ->  | R70: =InputsResults[[#This Row],[O&M Expenditure (2020 $million)]]/InputsResults[[#This Row],[Plant Capacity (MW)]]*1000 ->  | S70: =InputsResults[[#This Row],[O&M Expenditure (2020 $million): LBnd]]/InputsResults[[#This Row],[Plant Capacity (MW)]]*1000 ->  | T70: =InputsResults[[#This Row],[O&M Expenditure (2020 $million):Ubnd]]/InputsResults[[#This Row],[Plant Capacity (MW)]]*1000 -> 
D71: 1 | G71: 0 | H71: 0.5 | I71: =IF(ISBLANK(InputsResults[[#This Row],[Project Type]]),NA(),INDEX(Model[CapEx],MATCH(InputsResults[[#This Row],[Project Name]]&InputsResults[[#This Row],[Project Type]],Model[Project Name]&Model[Type],0))) ->  | J71: =IF(ISBLANK(InputsResults[[#This Row],[Project Type]]),NA(),INDEX(Model[CapEx_LBnd],MATCH(InputsResults[[#This Row],[Project Name]]&InputsResults[[#This Row],[Project Type]],Model[Project Name]&Model[Type],0))) ->  | K71: =IF(ISBLANK(InputsResults[[#This Row],[Project Type]]),NA(),INDEX(Model[CapEx_UBnd],MATCH(InputsResults[[#This Row],[Project Name]]&InputsResults[[#This Row],[Project Type]],Model[Project Name]&Model[Type],0))) ->  | L71: =InputsResults[[#This Row],[Capital Expenditure (2020 $million)]]/InputsResults[[#This Row],[Plant Capacity (MW)]]*1000 ->  | M71: =InputsResults[[#This Row],[Capital Expenditure (2020 $million): LBnd]]/InputsResults[[#This Row],[Plant Capacity (MW)]]*1000 ->  | N71: =InputsResults[[#This Row],[Capital Expenditure (2020 $million): Ubnd]]/InputsResults[[#This Row],[Plant Capacity (MW)]]*1000 ->  | O71: =INDEX(Model[OMEx],MATCH(InputsResults[[#This Row],[Project Name]]&InputsResults[[#This Row],[Project Type]],Model[Project Name]&Model[Type],0)) ->  | P71: =INDEX(Model[OMEx_LBnd],MATCH(InputsResults[[#This Row],[Project Name]]&InputsResults[[#This Row],[Project Type]],Model[Project Name]&Model[Type],0)) ->  | Q71: =INDEX(Model[OMEx_Ubnd],MATCH(InputsResults[[#This Row],[Project Name]]&InputsResults[[#This Row],[Project Type]],Model[Project Name]&Model[Type],0)) ->  | R71: =InputsResults[[#This Row],[O&M Expenditure (2020 $million)]]/InputsResults[[#This Row],[Plant Capacity (MW)]]*1000 ->  | S71: =InputsResults[[#This Row],[O&M Expenditure (2020 $million): LBnd]]/InputsResults[[#This Row],[Plant Capacity (MW)]]*1000 ->  | T71: =InputsResults[[#This Row],[O&M Expenditure (2020 $million):Ubnd]]/InputsResults[[#This Row],[Plant Capacity (MW)]]*1000 -> 
D72: 1 | G72: 0 | H72: 0.5 | I72: =IF(ISBLANK(InputsResults[[#This Row],[Project Type]]),NA(),INDEX(Model[CapEx],MATCH(InputsResults[[#This Row],[Project Name]]&InputsResults[[#This Row],[Project Type]],Model[Project Name]&Model[Type],0))) ->  | J72: =IF(ISBLANK(InputsResults[[#This Row],[Project Type]]),NA(),INDEX(Model[CapEx_LBnd],MATCH(InputsResults[[#This Row],[Project Name]]&InputsResults[[#This Row],[Project Type]],Model[Project Name]&Model[Type],0))) ->  | K72: =IF(ISBLANK(InputsResults[[#This Row],[Project Type]]),NA(),INDEX(Model[CapEx_UBnd],MATCH(InputsResults[[#This Row],[Project Name]]&InputsResults[[#This Row],[Project Type]],Model[Project Name]&Model[Type],0))) ->  | L72: =InputsResults[[#This Row],[Capital Expenditure (2020 $million)]]/InputsResults[[#This Row],[Plant Capacity (MW)]]*1000 ->  | M72: =InputsResults[[#This Row],[Capital Expenditure (2020 $million): LBnd]]/InputsResults[[#This Row],[Plant Capacity (MW)]]*1000 ->  | N72: =InputsResults[[#This Row],[Capital Expenditure (2020 $million): Ubnd]]/InputsResults[[#This Row],[Plant Capacity (MW)]]*1000 ->  | O72: =INDEX(Model[OMEx],MATCH(InputsResults[[#This Row],[Project Name]]&InputsResults[[#This Row],[Project Type]],Model[Project Name]&Model[Type],0)) ->  | P72: =INDEX(Model[OMEx_LBnd],MATCH(InputsResults[[#This Row],[Project Name]]&InputsResults[[#This Row],[Project Type]],Model[Project Name]&Model[Type],0)) ->  | Q72: =INDEX(Model[OMEx_Ubnd],MATCH(InputsResults[[#This Row],[Project Name]]&InputsResults[[#This Row],[Project Type]],Model[Project Name]&Model[Type],0)) ->  | R72: =InputsResults[[#This Row],[O&M Expenditure (2020 $million)]]/InputsResults[[#This Row],[Plant Capacity (MW)]]*1000 ->  | S72: =InputsResults[[#This Row],[O&M Expenditure (2020 $million): LBnd]]/InputsResults[[#This Row],[Plant Capacity (MW)]]*1000 ->  | T72: =InputsResults[[#This Row],[O&M Expenditure (2020 $million):Ubnd]]/InputsResults[[#This Row],[Plant Capacity (MW)]]*1000 -> 
D73: 1 | G73: 0 | H73: 0.5 | I73: =IF(ISBLANK(InputsResults[[#This Row],[Project Type]]),NA(),INDEX(Model[CapEx],MATCH(InputsResults[[#This Row],[Project Name]]&InputsResults[[#This Row],[Project Type]],Model[Project Name]&Model[Type],0))) ->  | J73: =IF(ISBLANK(InputsResults[[#This Row],[Project Type]]),NA(),INDEX(Model[CapEx_LBnd],MATCH(InputsResults[[#This Row],[Project Name]]&InputsResults[[#This Row],[Project Type]],Model[Project Name]&Model[Type],0))) ->  | K73: =IF(ISBLANK(InputsResults[[#This Row],[Project Type]]),NA(),INDEX(Model[CapEx_UBnd],MATCH(InputsResults[[#This Row],[Project Name]]&InputsResults[[#This Row],[Project Type]],Model[Project Name]&Model[Type],0))) ->  | L73: =InputsResults[[#This Row],[Capital Expenditure (2020 $million)]]/InputsResults[[#This Row],[Plant Capacity (MW)]]*1000 ->  | M73: =InputsResults[[#This Row],[Capital Expenditure (2020 $million): LBnd]]/InputsResults[[#This Row],[Plant Capacity (MW)]]*1000 ->  | N73: =InputsResults[[#This Row],[Capital Expenditure (2020 $million): Ubnd]]/InputsResults[[#This Row],[Plant Capacity (MW)]]*1000 ->  | O73: =INDEX(Model[OMEx],MATCH(InputsResults[[#This Row],[Project Name]]&InputsResults[[#This Row],[Project Type]],Model[Project Name]&Model[Type],0)) ->  | P73: =INDEX(Model[OMEx_LBnd],MATCH(InputsResults[[#This Row],[Project Name]]&InputsResults[[#This Row],[Project Type]],Model[Project Name]&Model[Type],0)) ->  | Q73: =INDEX(Model[OMEx_Ubnd],MATCH(InputsResults[[#This Row],[Project Name]]&InputsResults[[#This Row],[Project Type]],Model[Project Name]&Model[Type],0)) ->  | R73: =InputsResults[[#This Row],[O&M Expenditure (2020 $million)]]/InputsResults[[#This Row],[Plant Capacity (MW)]]*1000 ->  | S73: =InputsResults[[#This Row],[O&M Expenditure (2020 $million): LBnd]]/InputsResults[[#This Row],[Plant Capacity (MW)]]*1000 ->  | T73: =InputsResults[[#This Row],[O&M Expenditure (2020 $million):Ubnd]]/InputsResults[[#This Row],[Plant Capacity (MW)]]*1000 -> 
D74: 1 | G74: 0 | H74: 0.5 | I74: =IF(ISBLANK(InputsResults[[#This Row],[Project Type]]),NA(),INDEX(Model[CapEx],MATCH(InputsResults[[#This Row],[Project Name]]&InputsResults[[#This Row],[Project Type]],Model[Project Name]&Model[Type],0))) ->  | J74: =IF(ISBLANK(InputsResults[[#This Row],[Project Type]]),NA(),INDEX(Model[CapEx_LBnd],MATCH(InputsResults[[#This Row],[Project Name]]&InputsResults[[#This Row],[Project Type]],Model[Project Name]&Model[Type],0))) ->  | K74: =IF(ISBLANK(InputsResults[[#This Row],[Project Type]]),NA(),INDEX(Model[CapEx_UBnd],MATCH(InputsResults[[#This Row],[Project Name]]&InputsResults[[#This Row],[Project Type]],Model[Project Name]&Model[Type],0))) ->  | L74: =InputsResults[[#This Row],[Capital Expenditure (2020 $million)]]/InputsResults[[#This Row],[Plant Capacity (MW)]]*1000 ->  | M74: =InputsResults[[#This Row],[Capital Expenditure (2020 $million): LBnd]]/InputsResults[[#This Row],[Plant Capacity (MW)]]*1000 ->  | N74: =InputsResults[[#This Row],[Capital Expenditure (2020 $million): Ubnd]]/InputsResults[[#This Row],[Plant Capacity (MW)]]*1000 ->  | O74: =INDEX(Model[OMEx],MATCH(InputsResults[[#This Row],[Project Name]]&InputsResults[[#This Row],[Project Type]],Model[Project Name]&Model[Type],0)) ->  | P74: =INDEX(Model[OMEx_LBnd],MATCH(InputsResults[[#This Row],[Project Name]]&InputsResults[[#This Row],[Project Type]],Model[Project Name]&Model[Type],0)) ->  | Q74: =INDEX(Model[OMEx_Ubnd],MATCH(InputsResults[[#This Row],[Project Name]]&InputsResults[[#This Row],[Project Type]],Model[Project Name]&Model[Type],0)) ->  | R74: =InputsResults[[#This Row],[O&M Expenditure (2020 $million)]]/InputsResults[[#This Row],[Plant Capacity (MW)]]*1000 ->  | S74: =InputsResults[[#This Row],[O&M Expenditure (2020 $million): LBnd]]/InputsResults[[#This Row],[Plant Capacity (MW)]]*1000 ->  | T74: =InputsResults[[#This Row],[O&M Expenditure (2020 $million):Ubnd]]/InputsResults[[#This Row],[Plant Capacity (MW)]]*1000 -> 
D75: 1 | G75: 0 | H75: 0.5 | I75: =IF(ISBLANK(InputsResults[[#This Row],[Project Type]]),NA(),INDEX(Model[CapEx],MATCH(InputsResults[[#This Row],[Project Name]]&InputsResults[[#This Row],[Project Type]],Model[Project Name]&Model[Type],0))) ->  | J75: =IF(ISBLANK(InputsResults[[#This Row],[Project Type]]),NA(),INDEX(Model[CapEx_LBnd],MATCH(InputsResults[[#This Row],[Project Name]]&InputsResults[[#This Row],[Project Type]],Model[Project Name]&Model[Type],0))) ->  | K75: =IF(ISBLANK(InputsResults[[#This Row],[Project Type]]),NA(),INDEX(Model[CapEx_UBnd],MATCH(InputsResults[[#This Row],[Project Name]]&InputsResults[[#This Row],[Project Type]],Model[Project Name]&Model[Type],0))) ->  | L75: =InputsResults[[#This Row],[Capital Expenditure (2020 $million)]]/InputsResults[[#This Row],[Plant Capacity (MW)]]*1000 ->  | M75: =InputsResults[[#This Row],[Capital Expenditure (2020 $million): LBnd]]/InputsResults[[#This Row],[Plant Capacity (MW)]]*1000 ->  | N75: =InputsResults[[#This Row],[Capital Expenditure (2020 $million): Ubnd]]/InputsResults[[#This Row],[Plant Capacity (MW)]]*1000 ->  | O75: =INDEX(Model[OMEx],MATCH(InputsResults[[#This Row],[Project Name]]&InputsResults[[#This Row],[Project Type]],Model[Project Name]&Model[Type],0)) ->  | P75: =INDEX(Model[OMEx_LBnd],MATCH(InputsResults[[#This Row],[Project Name]]&InputsResults[[#This Row],[Project Type]],Model[Project Name]&Model[Type],0)) ->  | Q75: =INDEX(Model[OMEx_Ubnd],MATCH(InputsResults[[#This Row],[Project Name]]&InputsResults[[#This Row],[Project Type]],Model[Project Name]&Model[Type],0)) ->  | R75: =InputsResults[[#This Row],[O&M Expenditure (2020 $million)]]/InputsResults[[#This Row],[Plant Capacity (MW)]]*1000 ->  | S75: =InputsResults[[#This Row],[O&M Expenditure (2020 $million): LBnd]]/InputsResults[[#This Row],[Plant Capacity (MW)]]*1000 ->  | T75: =InputsResults[[#This Row],[O&M Expenditure (2020 $million):Ubnd]]/InputsResults[[#This Row],[Plant Capacity (MW)]]*1000 -> 
D76: 1 | G76: 0 | H76: 0.5 | I76: =IF(ISBLANK(InputsResults[[#This Row],[Project Type]]),NA(),INDEX(Model[CapEx],MATCH(InputsResults[[#This Row],[Project Name]]&InputsResults[[#This Row],[Project Type]],Model[Project Name]&Model[Type],0))) ->  | J76: =IF(ISBLANK(InputsResults[[#This Row],[Project Type]]),NA(),INDEX(Model[CapEx_LBnd],MATCH(InputsResults[[#This Row],[Project Name]]&InputsResults[[#This Row],[Project Type]],Model[Project Name]&Model[Type],0))) ->  | K76: =IF(ISBLANK(InputsResults[[#This Row],[Project Type]]),NA(),INDEX(Model[CapEx_UBnd],MATCH(InputsResults[[#This Row],[Project Name]]&InputsResults[[#This Row],[Project Type]],Model[Project Name]&Model[Type],0))) ->  | L76: =InputsResults[[#This Row],[Capital Expenditure (2020 $million)]]/InputsResults[[#This Row],[Plant Capacity (MW)]]*1000 ->  | M76: =InputsResults[[#This Row],[Capital Expenditure (2020 $million): LBnd]]/InputsResults[[#This Row],[Plant Capacity (MW)]]*1000 ->  | N76: =InputsResults[[#This Row],[Capital Expenditure (2020 $million): Ubnd]]/InputsResults[[#This Row],[Plant Capacity (MW)]]*1000 ->  | O76: =INDEX(Model[OMEx],MATCH(InputsResults[[#This Row],[Project Name]]&InputsResults[[#This Row],[Project Type]],Model[Project Name]&Model[Type],0)) ->  | P76: =INDEX(Model[OMEx_LBnd],MATCH(InputsResults[[#This Row],[Project Name]]&InputsResults[[#This Row],[Project Type]],Model[Project Name]&Model[Type],0)) ->  | Q76: =INDEX(Model[OMEx_Ubnd],MATCH(InputsResults[[#This Row],[Project Name]]&InputsResults[[#This Row],[Project Type]],Model[Project Name]&Model[Type],0)) ->  | R76: =InputsResults[[#This Row],[O&M Expenditure (2020 $million)]]/InputsResults[[#This Row],[Plant Capacity (MW)]]*1000 ->  | S76: =InputsResults[[#This Row],[O&M Expenditure (2020 $million): LBnd]]/InputsResults[[#This Row],[Plant Capacity (MW)]]*1000 ->  | T76: =InputsResults[[#This Row],[O&M Expenditure (2020 $million):Ubnd]]/InputsResults[[#This Row],[Plant Capacity (MW)]]*1000 -> 
D77: 1 | G77: 0 | H77: 0.5 | I77: =IF(ISBLANK(InputsResults[[#This Row],[Project Type]]),NA(),INDEX(Model[CapEx],MATCH(InputsResults[[#This Row],[Project Name]]&InputsResults[[#This Row],[Project Type]],Model[Project Name]&Model[Type],0))) ->  | J77: =IF(ISBLANK(InputsResults[[#This Row],[Project Type]]),NA(),INDEX(Model[CapEx_LBnd],MATCH(InputsResults[[#This Row],[Project Name]]&InputsResults[[#This Row],[Project Type]],Model[Project Name]&Model[Type],0))) ->  | K77: =IF(ISBLANK(InputsResults[[#This Row],[Project Type]]),NA(),INDEX(Model[CapEx_UBnd],MATCH(InputsResults[[#This Row],[Project Name]]&InputsResults[[#This Row],[Project Type]],Model[Project Name]&Model[Type],0))) ->  | L77: =InputsResults[[#This Row],[Capital Expenditure (2020 $million)]]/InputsResults[[#This Row],[Plant Capacity (MW)]]*1000 ->  | M77: =InputsResults[[#This Row],[Capital Expenditure (2020 $million): LBnd]]/InputsResults[[#This Row],[Plant Capacity (MW)]]*1000 ->  | N77: =InputsResults[[#This Row],[Capital Expenditure (2020 $million): Ubnd]]/InputsResults[[#This Row],[Plant Capacity (MW)]]*1000 ->  | O77: =INDEX(Model[OMEx],MATCH(InputsResults[[#This Row],[Project Name]]&InputsResults[[#This Row],[Project Type]],Model[Project Name]&Model[Type],0)) ->  | P77: =INDEX(Model[OMEx_LBnd],MATCH(InputsResults[[#This Row],[Project Name]]&InputsResults[[#This Row],[Project Type]],Model[Project Name]&Model[Type],0)) ->  | Q77: =INDEX(Model[OMEx_Ubnd],MATCH(InputsResults[[#This Row],[Project Name]]&InputsResults[[#This Row],[Project Type]],Model[Project Name]&Model[Type],0)) ->  | R77: =InputsResults[[#This Row],[O&M Expenditure (2020 $million)]]/InputsResults[[#This Row],[Plant Capacity (MW)]]*1000 ->  | S77: =InputsResults[[#This Row],[O&M Expenditure (2020 $million): LBnd]]/InputsResults[[#This Row],[Plant Capacity (MW)]]*1000 ->  | T77: =InputsResults[[#This Row],[O&M Expenditure (2020 $million):Ubnd]]/InputsResults[[#This Row],[Plant Capacity (MW)]]*1000 -> 
D78: 1 | G78: 0 | H78: 0.5 | I78: =IF(ISBLANK(InputsResults[[#This Row],[Project Type]]),NA(),INDEX(Model[CapEx],MATCH(InputsResults[[#This Row],[Project Name]]&InputsResults[[#This Row],[Project Type]],Model[Project Name]&Model[Type],0))) ->  | J78: =IF(ISBLANK(InputsResults[[#This Row],[Project Type]]),NA(),INDEX(Model[CapEx_LBnd],MATCH(InputsResults[[#This Row],[Project Name]]&InputsResults[[#This Row],[Project Type]],Model[Project Name]&Model[Type],0))) ->  | K78: =IF(ISBLANK(InputsResults[[#This Row],[Project Type]]),NA(),INDEX(Model[CapEx_UBnd],MATCH(InputsResults[[#This Row],[Project Name]]&InputsResults[[#This Row],[Project Type]],Model[Project Name]&Model[Type],0))) ->  | L78: =InputsResults[[#This Row],[Capital Expenditure (2020 $million)]]/InputsResults[[#This Row],[Plant Capacity (MW)]]*1000 ->  | M78: =InputsResults[[#This Row],[Capital Expenditure (2020 $million): LBnd]]/InputsResults[[#This Row],[Plant Capacity (MW)]]*1000 ->  | N78: =InputsResults[[#This Row],[Capital Expenditure (2020 $million): Ubnd]]/InputsResults[[#This Row],[Plant Capacity (MW)]]*1000 ->  | O78: =INDEX(Model[OMEx],MATCH(InputsResults[[#This Row],[Project Name]]&InputsResults[[#This Row],[Project Type]],Model[Project Name]&Model[Type],0)) ->  | P78: =INDEX(Model[OMEx_LBnd],MATCH(InputsResults[[#This Row],[Project Name]]&InputsResults[[#This Row],[Project Type]],Model[Project Name]&Model[Type],0)) ->  | Q78: =INDEX(Model[OMEx_Ubnd],MATCH(InputsResults[[#This Row],[Project Name]]&InputsResults[[#This Row],[Project Type]],Model[Project Name]&Model[Type],0)) ->  | R78: =InputsResults[[#This Row],[O&M Expenditure (2020 $million)]]/InputsResults[[#This Row],[Plant Capacity (MW)]]*1000 ->  | S78: =InputsResults[[#This Row],[O&M Expenditure (2020 $million): LBnd]]/InputsResults[[#This Row],[Plant Capacity (MW)]]*1000 ->  | T78: =InputsResults[[#This Row],[O&M Expenditure (2020 $million):Ubnd]]/InputsResults[[#This Row],[Plant Capacity (MW)]]*1000 -> 
D79: 1 | G79: 0 | H79: 0.5 | I79: =IF(ISBLANK(InputsResults[[#This Row],[Project Type]]),NA(),INDEX(Model[CapEx],MATCH(InputsResults[[#This Row],[Project Name]]&InputsResults[[#This Row],[Project Type]],Model[Project Name]&Model[Type],0))) ->  | J79: =IF(ISBLANK(InputsResults[[#This Row],[Project Type]]),NA(),INDEX(Model[CapEx_LBnd],MATCH(InputsResults[[#This Row],[Project Name]]&InputsResults[[#This Row],[Project Type]],Model[Project Name]&Model[Type],0))) ->  | K79: =IF(ISBLANK(InputsResults[[#This Row],[Project Type]]),NA(),INDEX(Model[CapEx_UBnd],MATCH(InputsResults[[#This Row],[Project Name]]&InputsResults[[#This Row],[Project Type]],Model[Project Name]&Model[Type],0))) ->  | L79: =InputsResults[[#This Row],[Capital Expenditure (2020 $million)]]/InputsResults[[#This Row],[Plant Capacity (MW)]]*1000 ->  | M79: =InputsResults[[#This Row],[Capital Expenditure (2020 $million): LBnd]]/InputsResults[[#This Row],[Plant Capacity (MW)]]*1000 ->  | N79: =InputsResults[[#This Row],[Capital Expenditure (2020 $million): Ubnd]]/InputsResults[[#This Row],[Plant Capacity (MW)]]*1000 ->  | O79: =INDEX(Model[OMEx],MATCH(InputsResults[[#This Row],[Project Name]]&InputsResults[[#This Row],[Project Type]],Model[Project Name]&Model[Type],0)) ->  | P79: =INDEX(Model[OMEx_LBnd],MATCH(InputsResults[[#This Row],[Project Name]]&InputsResults[[#This Row],[Project Type]],Model[Project Name]&Model[Type],0)) ->  | Q79: =INDEX(Model[OMEx_Ubnd],MATCH(InputsResults[[#This Row],[Project Name]]&InputsResults[[#This Row],[Project Type]],Model[Project Name]&Model[Type],0)) ->  | R79: =InputsResults[[#This Row],[O&M Expenditure (2020 $million)]]/InputsResults[[#This Row],[Plant Capacity (MW)]]*1000 ->  | S79: =InputsResults[[#This Row],[O&M Expenditure (2020 $million): LBnd]]/InputsResults[[#This Row],[Plant Capacity (MW)]]*1000 ->  | T79: =InputsResults[[#This Row],[O&M Expenditure (2020 $million):Ubnd]]/InputsResults[[#This Row],[Plant Capacity (MW)]]*1000 -> 
D80: 1 | G80: 0 | H80: 0.5 | I80: =IF(ISBLANK(InputsResults[[#This Row],[Project Type]]),NA(),INDEX(Model[CapEx],MATCH(InputsResults[[#This Row],[Project Name]]&InputsResults[[#This Row],[Project Type]],Model[Project Name]&Model[Type],0))) ->  | J80: =IF(ISBLANK(InputsResults[[#This Row],[Project Type]]),NA(),INDEX(Model[CapEx_LBnd],MATCH(InputsResults[[#This Row],[Project Name]]&InputsResults[[#This Row],[Project Type]],Model[Project Name]&Model[Type],0))) ->  | K80: =IF(ISBLANK(InputsResults[[#This Row],[Project Type]]),NA(),INDEX(Model[CapEx_UBnd],MATCH(InputsResults[[#This Row],[Project Name]]&InputsResults[[#This Row],[Project Type]],Model[Project Name]&Model[Type],0))) ->  | L80: =InputsResults[[#This Row],[Capital Expenditure (2020 $million)]]/InputsResults[[#This Row],[Plant Capacity (MW)]]*1000 ->  | M80: =InputsResults[[#This Row],[Capital Expenditure (2020 $million): LBnd]]/InputsResults[[#This Row],[Plant Capacity (MW)]]*1000 ->  | N80: =InputsResults[[#This Row],[Capital Expenditure (2020 $million): Ubnd]]/InputsResults[[#This Row],[Plant Capacity (MW)]]*1000 ->  | O80: =INDEX(Model[OMEx],MATCH(InputsResults[[#This Row],[Project Name]]&InputsResults[[#This Row],[Project Type]],Model[Project Name]&Model[Type],0)) ->  | P80: =INDEX(Model[OMEx_LBnd],MATCH(InputsResults[[#This Row],[Project Name]]&InputsResults[[#This Row],[Project Type]],Model[Project Name]&Model[Type],0)) ->  | Q80: =INDEX(Model[OMEx_Ubnd],MATCH(InputsResults[[#This Row],[Project Name]]&InputsResults[[#This Row],[Project Type]],Model[Project Name]&Model[Type],0)) ->  | R80: =InputsResults[[#This Row],[O&M Expenditure (2020 $million)]]/InputsResults[[#This Row],[Plant Capacity (MW)]]*1000 ->  | S80: =InputsResults[[#This Row],[O&M Expenditure (2020 $million): LBnd]]/InputsResults[[#This Row],[Plant Capacity (MW)]]*1000 ->  | T80: =InputsResults[[#This Row],[O&M Expenditure (2020 $million):Ubnd]]/InputsResults[[#This Row],[Plant Capacity (MW)]]*1000 -> 
D81: 1 | G81: 0 | H81: 0.5 | I81: =IF(ISBLANK(InputsResults[[#This Row],[Project Type]]),NA(),INDEX(Model[CapEx],MATCH(InputsResults[[#This Row],[Project Name]]&InputsResults[[#This Row],[Project Type]],Model[Project Name]&Model[Type],0))) ->  | J81: =IF(ISBLANK(InputsResults[[#This Row],[Project Type]]),NA(),INDEX(Model[CapEx_LBnd],MATCH(InputsResults[[#This Row],[Project Name]]&InputsResults[[#This Row],[Project Type]],Model[Project Name]&Model[Type],0))) ->  | K81: =IF(ISBLANK(InputsResults[[#This Row],[Project Type]]),NA(),INDEX(Model[CapEx_UBnd],MATCH(InputsResults[[#This Row],[Project Name]]&InputsResults[[#This Row],[Project Type]],Model[Project Name]&Model[Type],0))) ->  | L81: =InputsResults[[#This Row],[Capital Expenditure (2020 $million)]]/InputsResults[[#This Row],[Plant Capacity (MW)]]*1000 ->  | M81: =InputsResults[[#This Row],[Capital Expenditure (2020 $million): LBnd]]/InputsResults[[#This Row],[Plant Capacity (MW)]]*1000 ->  | N81: =InputsResults[[#This Row],[Capital Expenditure (2020 $million): Ubnd]]/InputsResults[[#This Row],[Plant Capacity (MW)]]*1000 ->  | O81: =INDEX(Model[OMEx],MATCH(InputsResults[[#This Row],[Project Name]]&InputsResults[[#This Row],[Project Type]],Model[Project Name]&Model[Type],0)) ->  | P81: =INDEX(Model[OMEx_LBnd],MATCH(InputsResults[[#This Row],[Project Name]]&InputsResults[[#This Row],[Project Type]],Model[Project Name]&Model[Type],0)) ->  | Q81: =INDEX(Model[OMEx_Ubnd],MATCH(InputsResults[[#This Row],[Project Name]]&InputsResults[[#This Row],[Project Type]],Model[Project Name]&Model[Type],0)) ->  | R81: =InputsResults[[#This Row],[O&M Expenditure (2020 $million)]]/InputsResults[[#This Row],[Plant Capacity (MW)]]*1000 ->  | S81: =InputsResults[[#This Row],[O&M Expenditure (2020 $million): LBnd]]/InputsResults[[#This Row],[Plant Capacity (MW)]]*1000 ->  | T81: =InputsResults[[#This Row],[O&M Expenditure (2020 $million):Ubnd]]/InputsResults[[#This Row],[Plant Capacity (MW)]]*1000 -> 
D82: 1 | G82: 0 | H82: 0.5 | I82: =IF(ISBLANK(InputsResults[[#This Row],[Project Type]]),NA(),INDEX(Model[CapEx],MATCH(InputsResults[[#This Row],[Project Name]]&InputsResults[[#This Row],[Project Type]],Model[Project Name]&Model[Type],0))) ->  | J82: =IF(ISBLANK(InputsResults[[#This Row],[Project Type]]),NA(),INDEX(Model[CapEx_LBnd],MATCH(InputsResults[[#This Row],[Project Name]]&InputsResults[[#This Row],[Project Type]],Model[Project Name]&Model[Type],0))) ->  | K82: =IF(ISBLANK(InputsResults[[#This Row],[Project Type]]),NA(),INDEX(Model[CapEx_UBnd],MATCH(InputsResults[[#This Row],[Project Name]]&InputsResults[[#This Row],[Project Type]],Model[Project Name]&Model[Type],0))) ->  | L82: =InputsResults[[#This Row],[Capital Expenditure (2020 $million)]]/InputsResults[[#This Row],[Plant Capacity (MW)]]*1000 ->  | M82: =InputsResults[[#This Row],[Capital Expenditure (2020 $million): LBnd]]/InputsResults[[#This Row],[Plant Capacity (MW)]]*1000 ->  | N82: =InputsResults[[#This Row],[Capital Expenditure (2020 $million): Ubnd]]/InputsResults[[#This Row],[Plant Capacity (MW)]]*1000 ->  | O82: =INDEX(Model[OMEx],MATCH(InputsResults[[#This Row],[Project Name]]&InputsResults[[#This Row],[Project Type]],Model[Project Name]&Model[Type],0)) ->  | P82: =INDEX(Model[OMEx_LBnd],MATCH(InputsResults[[#This Row],[Project Name]]&InputsResults[[#This Row],[Project Type]],Model[Project Name]&Model[Type],0)) ->  | Q82: =INDEX(Model[OMEx_Ubnd],MATCH(InputsResults[[#This Row],[Project Name]]&InputsResults[[#This Row],[Project Type]],Model[Project Name]&Model[Type],0)) ->  | R82: =InputsResults[[#This Row],[O&M Expenditure (2020 $million)]]/InputsResults[[#This Row],[Plant Capacity (MW)]]*1000 ->  | S82: =InputsResults[[#This Row],[O&M Expenditure (2020 $million): LBnd]]/InputsResults[[#This Row],[Plant Capacity (MW)]]*1000 ->  | T82: =InputsResults[[#This Row],[O&M Expenditure (2020 $million):Ubnd]]/InputsResults[[#This Row],[Plant Capacity (MW)]]*1000 -> 
D83: 1 | G83: 0 | H83: 0.5 | I83: =IF(ISBLANK(InputsResults[[#This Row],[Project Type]]),NA(),INDEX(Model[CapEx],MATCH(InputsResults[[#This Row],[Project Name]]&InputsResults[[#This Row],[Project Type]],Model[Project Name]&Model[Type],0))) ->  | J83: =IF(ISBLANK(InputsResults[[#This Row],[Project Type]]),NA(),INDEX(Model[CapEx_LBnd],MATCH(InputsResults[[#This Row],[Project Name]]&InputsResults[[#This Row],[Project Type]],Model[Project Name]&Model[Type],0))) ->  | K83: =IF(ISBLANK(InputsResults[[#This Row],[Project Type]]),NA(),INDEX(Model[CapEx_UBnd],MATCH(InputsResults[[#This Row],[Project Name]]&InputsResults[[#This Row],[Project Type]],Model[Project Name]&Model[Type],0))) ->  | L83: =InputsResults[[#This Row],[Capital Expenditure (2020 $million)]]/InputsResults[[#This Row],[Plant Capacity (MW)]]*1000 ->  | M83: =InputsResults[[#This Row],[Capital Expenditure (2020 $million): LBnd]]/InputsResults[[#This Row],[Plant Capacity (MW)]]*1000 ->  | N83: =InputsResults[[#This Row],[Capital Expenditure (2020 $million): Ubnd]]/InputsResults[[#This Row],[Plant Capacity (MW)]]*1000 ->  | O83: =INDEX(Model[OMEx],MATCH(InputsResults[[#This Row],[Project Name]]&InputsResults[[#This Row],[Project Type]],Model[Project Name]&Model[Type],0)) ->  | P83: =INDEX(Model[OMEx_LBnd],MATCH(InputsResults[[#This Row],[Project Name]]&InputsResults[[#This Row],[Project Type]],Model[Project Name]&Model[Type],0)) ->  | Q83: =INDEX(Model[OMEx_Ubnd],MATCH(InputsResults[[#This Row],[Project Name]]&InputsResults[[#This Row],[Project Type]],Model[Project Name]&Model[Type],0)) ->  | R83: =InputsResults[[#This Row],[O&M Expenditure (2020 $million)]]/InputsResults[[#This Row],[Plant Capacity (MW)]]*1000 ->  | S83: =InputsResults[[#This Row],[O&M Expenditure (2020 $million): LBnd]]/InputsResults[[#This Row],[Plant Capacity (MW)]]*1000 ->  | T83: =InputsResults[[#This Row],[O&M Expenditure (2020 $million):Ubnd]]/InputsResults[[#This Row],[Plant Capacity (MW)]]*1000 -> 
D84: 1 | G84: 0 | H84: 0.5 | I84: =IF(ISBLANK(InputsResults[[#This Row],[Project Type]]),NA(),INDEX(Model[CapEx],MATCH(InputsResults[[#This Row],[Project Name]]&InputsResults[[#This Row],[Project Type]],Model[Project Name]&Model[Type],0))) ->  | J84: =IF(ISBLANK(InputsResults[[#This Row],[Project Type]]),NA(),INDEX(Model[CapEx_LBnd],MATCH(InputsResults[[#This Row],[Project Name]]&InputsResults[[#This Row],[Project Type]],Model[Project Name]&Model[Type],0))) ->  | K84: =IF(ISBLANK(InputsResults[[#This Row],[Project Type]]),NA(),INDEX(Model[CapEx_UBnd],MATCH(InputsResults[[#This Row],[Project Name]]&InputsResults[[#This Row],[Project Type]],Model[Project Name]&Model[Type],0))) ->  | L84: =InputsResults[[#This Row],[Capital Expenditure (2020 $million)]]/InputsResults[[#This Row],[Plant Capacity (MW)]]*1000 ->  | M84: =InputsResults[[#This Row],[Capital Expenditure (2020 $million): LBnd]]/InputsResults[[#This Row],[Plant Capacity (MW)]]*1000 ->  | N84: =InputsResults[[#This Row],[Capital Expenditure (2020 $million): Ubnd]]/InputsResults[[#This Row],[Plant Capacity (MW)]]*1000 ->  | O84: =INDEX(Model[OMEx],MATCH(InputsResults[[#This Row],[Project Name]]&InputsResults[[#This Row],[Project Type]],Model[Project Name]&Model[Type],0)) ->  | P84: =INDEX(Model[OMEx_LBnd],MATCH(InputsResults[[#This Row],[Project Name]]&InputsResults[[#This Row],[Project Type]],Model[Project Name]&Model[Type],0)) ->  | Q84: =INDEX(Model[OMEx_Ubnd],MATCH(InputsResults[[#This Row],[Project Name]]&InputsResults[[#This Row],[Project Type]],Model[Project Name]&Model[Type],0)) ->  | R84: =InputsResults[[#This Row],[O&M Expenditure (2020 $million)]]/InputsResults[[#This Row],[Plant Capacity (MW)]]*1000 ->  | S84: =InputsResults[[#This Row],[O&M Expenditure (2020 $million): LBnd]]/InputsResults[[#This Row],[Plant Capacity (MW)]]*1000 ->  | T84: =InputsResults[[#This Row],[O&M Expenditure (2020 $million):Ubnd]]/InputsResults[[#This Row],[Plant Capacity (MW)]]*1000 -> 
D85: 1 | G85: 0 | H85: 0.5 | I85: =IF(ISBLANK(InputsResults[[#This Row],[Project Type]]),NA(),INDEX(Model[CapEx],MATCH(InputsResults[[#This Row],[Project Name]]&InputsResults[[#This Row],[Project Type]],Model[Project Name]&Model[Type],0))) ->  | J85: =IF(ISBLANK(InputsResults[[#This Row],[Project Type]]),NA(),INDEX(Model[CapEx_LBnd],MATCH(InputsResults[[#This Row],[Project Name]]&InputsResults[[#This Row],[Project Type]],Model[Project Name]&Model[Type],0))) ->  | K85: =IF(ISBLANK(InputsResults[[#This Row],[Project Type]]),NA(),INDEX(Model[CapEx_UBnd],MATCH(InputsResults[[#This Row],[Project Name]]&InputsResults[[#This Row],[Project Type]],Model[Project Name]&Model[Type],0))) ->  | L85: =InputsResults[[#This Row],[Capital Expenditure (2020 $million)]]/InputsResults[[#This Row],[Plant Capacity (MW)]]*1000 ->  | M85: =InputsResults[[#This Row],[Capital Expenditure (2020 $million): LBnd]]/InputsResults[[#This Row],[Plant Capacity (MW)]]*1000 ->  | N85: =InputsResults[[#This Row],[Capital Expenditure (2020 $million): Ubnd]]/InputsResults[[#This Row],[Plant Capacity (MW)]]*1000 ->  | O85: =INDEX(Model[OMEx],MATCH(InputsResults[[#This Row],[Project Name]]&InputsResults[[#This Row],[Project Type]],Model[Project Name]&Model[Type],0)) ->  | P85: =INDEX(Model[OMEx_LBnd],MATCH(InputsResults[[#This Row],[Project Name]]&InputsResults[[#This Row],[Project Type]],Model[Project Name]&Model[Type],0)) ->  | Q85: =INDEX(Model[OMEx_Ubnd],MATCH(InputsResults[[#This Row],[Project Name]]&InputsResults[[#This Row],[Project Type]],Model[Project Name]&Model[Type],0)) ->  | R85: =InputsResults[[#This Row],[O&M Expenditure (2020 $million)]]/InputsResults[[#This Row],[Plant Capacity (MW)]]*1000 ->  | S85: =InputsResults[[#This Row],[O&M Expenditure (2020 $million): LBnd]]/InputsResults[[#This Row],[Plant Capacity (MW)]]*1000 ->  | T85: =InputsResults[[#This Row],[O&M Expenditure (2020 $million):Ubnd]]/InputsResults[[#This Row],[Plant Capacity (MW)]]*1000 -> 
D86: 1 | G86: 0 | H86: 0.5 | I86: =IF(ISBLANK(InputsResults[[#This Row],[Project Type]]),NA(),INDEX(Model[CapEx],MATCH(InputsResults[[#This Row],[Project Name]]&InputsResults[[#This Row],[Project Type]],Model[Project Name]&Model[Type],0))) ->  | J86: =IF(ISBLANK(InputsResults[[#This Row],[Project Type]]),NA(),INDEX(Model[CapEx_LBnd],MATCH(InputsResults[[#This Row],[Project Name]]&InputsResults[[#This Row],[Project Type]],Model[Project Name]&Model[Type],0))) ->  | K86: =IF(ISBLANK(InputsResults[[#This Row],[Project Type]]),NA(),INDEX(Model[CapEx_UBnd],MATCH(InputsResults[[#This Row],[Project Name]]&InputsResults[[#This Row],[Project Type]],Model[Project Name]&Model[Type],0))) ->  | L86: =InputsResults[[#This Row],[Capital Expenditure (2020 $million)]]/InputsResults[[#This Row],[Plant Capacity (MW)]]*1000 ->  | M86: =InputsResults[[#This Row],[Capital Expenditure (2020 $million): LBnd]]/InputsResults[[#This Row],[Plant Capacity (MW)]]*1000 ->  | N86: =InputsResults[[#This Row],[Capital Expenditure (2020 $million): Ubnd]]/InputsResults[[#This Row],[Plant Capacity (MW)]]*1000 ->  | O86: =INDEX(Model[OMEx],MATCH(InputsResults[[#This Row],[Project Name]]&InputsResults[[#This Row],[Project Type]],Model[Project Name]&Model[Type],0)) ->  | P86: =INDEX(Model[OMEx_LBnd],MATCH(InputsResults[[#This Row],[Project Name]]&InputsResults[[#This Row],[Project Type]],Model[Project Name]&Model[Type],0)) ->  | Q86: =INDEX(Model[OMEx_Ubnd],MATCH(InputsResults[[#This Row],[Project Name]]&InputsResults[[#This Row],[Project Type]],Model[Project Name]&Model[Type],0)) ->  | R86: =InputsResults[[#This Row],[O&M Expenditure (2020 $million)]]/InputsResults[[#This Row],[Plant Capacity (MW)]]*1000 ->  | S86: =InputsResults[[#This Row],[O&M Expenditure (2020 $million): LBnd]]/InputsResults[[#This Row],[Plant Capacity (MW)]]*1000 ->  | T86: =InputsResults[[#This Row],[O&M Expenditure (2020 $million):Ubnd]]/InputsResults[[#This Row],[Plant Capacity (MW)]]*1000 -> 
D87: 1 | G87: 0 | H87: 0.5 | I87: =IF(ISBLANK(InputsResults[[#This Row],[Project Type]]),NA(),INDEX(Model[CapEx],MATCH(InputsResults[[#This Row],[Project Name]]&InputsResults[[#This Row],[Project Type]],Model[Project Name]&Model[Type],0))) ->  | J87: =IF(ISBLANK(InputsResults[[#This Row],[Project Type]]),NA(),INDEX(Model[CapEx_LBnd],MATCH(InputsResults[[#This Row],[Project Name]]&InputsResults[[#This Row],[Project Type]],Model[Project Name]&Model[Type],0))) ->  | K87: =IF(ISBLANK(InputsResults[[#This Row],[Project Type]]),NA(),INDEX(Model[CapEx_UBnd],MATCH(InputsResults[[#This Row],[Project Name]]&InputsResults[[#This Row],[Project Type]],Model[Project Name]&Model[Type],0))) ->  | L87: =InputsResults[[#This Row],[Capital Expenditure (2020 $million)]]/InputsResults[[#This Row],[Plant Capacity (MW)]]*1000 ->  | M87: =InputsResults[[#This Row],[Capital Expenditure (2020 $million): LBnd]]/InputsResults[[#This Row],[Plant Capacity (MW)]]*1000 ->  | N87: =InputsResults[[#This Row],[Capital Expenditure (2020 $million): Ubnd]]/InputsResults[[#This Row],[Plant Capacity (MW)]]*1000 ->  | O87: =INDEX(Model[OMEx],MATCH(InputsResults[[#This Row],[Project Name]]&InputsResults[[#This Row],[Project Type]],Model[Project Name]&Model[Type],0)) ->  | P87: =INDEX(Model[OMEx_LBnd],MATCH(InputsResults[[#This Row],[Project Name]]&InputsResults[[#This Row],[Project Type]],Model[Project Name]&Model[Type],0)) ->  | Q87: =INDEX(Model[OMEx_Ubnd],MATCH(InputsResults[[#This Row],[Project Name]]&InputsResults[[#This Row],[Project Type]],Model[Project Name]&Model[Type],0)) ->  | R87: =InputsResults[[#This Row],[O&M Expenditure (2020 $million)]]/InputsResults[[#This Row],[Plant Capacity (MW)]]*1000 ->  | S87: =InputsResults[[#This Row],[O&M Expenditure (2020 $million): LBnd]]/InputsResults[[#This Row],[Plant Capacity (MW)]]*1000 ->  | T87: =InputsResults[[#This Row],[O&M Expenditure (2020 $million):Ubnd]]/InputsResults[[#This Row],[Plant Capacity (MW)]]*1000 -> 
D88: 1 | G88: 0 | H88: 0.5 | I88: =IF(ISBLANK(InputsResults[[#This Row],[Project Type]]),NA(),INDEX(Model[CapEx],MATCH(InputsResults[[#This Row],[Project Name]]&InputsResults[[#This Row],[Project Type]],Model[Project Name]&Model[Type],0))) ->  | J88: =IF(ISBLANK(InputsResults[[#This Row],[Project Type]]),NA(),INDEX(Model[CapEx_LBnd],MATCH(InputsResults[[#This Row],[Project Name]]&InputsResults[[#This Row],[Project Type]],Model[Project Name]&Model[Type],0))) ->  | K88: =IF(ISBLANK(InputsResults[[#This Row],[Project Type]]),NA(),INDEX(Model[CapEx_UBnd],MATCH(InputsResults[[#This Row],[Project Name]]&InputsResults[[#This Row],[Project Type]],Model[Project Name]&Model[Type],0))) ->  | L88: =InputsResults[[#This Row],[Capital Expenditure (2020 $million)]]/InputsResults[[#This Row],[Plant Capacity (MW)]]*1000 ->  | M88: =InputsResults[[#This Row],[Capital Expenditure (2020 $million): LBnd]]/InputsResults[[#This Row],[Plant Capacity (MW)]]*1000 ->  | N88: =InputsResults[[#This Row],[Capital Expenditure (2020 $million): Ubnd]]/InputsResults[[#This Row],[Plant Capacity (MW)]]*1000 ->  | O88: =INDEX(Model[OMEx],MATCH(InputsResults[[#This Row],[Project Name]]&InputsResults[[#This Row],[Project Type]],Model[Project Name]&Model[Type],0)) ->  | P88: =INDEX(Model[OMEx_LBnd],MATCH(InputsResults[[#This Row],[Project Name]]&InputsResults[[#This Row],[Project Type]],Model[Project Name]&Model[Type],0)) ->  | Q88: =INDEX(Model[OMEx_Ubnd],MATCH(InputsResults[[#This Row],[Project Name]]&InputsResults[[#This Row],[Project Type]],Model[Project Name]&Model[Type],0)) ->  | R88: =InputsResults[[#This Row],[O&M Expenditure (2020 $million)]]/InputsResults[[#This Row],[Plant Capacity (MW)]]*1000 ->  | S88: =InputsResults[[#This Row],[O&M Expenditure (2020 $million): LBnd]]/InputsResults[[#This Row],[Plant Capacity (MW)]]*1000 ->  | T88: =InputsResults[[#This Row],[O&M Expenditure (2020 $million):Ubnd]]/InputsResults[[#This Row],[Plant Capacity (MW)]]*1000 -> 
D89: 1 | G89: 0 | H89: 0.5 | I89: =IF(ISBLANK(InputsResults[[#This Row],[Project Type]]),NA(),INDEX(Model[CapEx],MATCH(InputsResults[[#This Row],[Project Name]]&InputsResults[[#This Row],[Project Type]],Model[Project Name]&Model[Type],0))) ->  | J89: =IF(ISBLANK(InputsResults[[#This Row],[Project Type]]),NA(),INDEX(Model[CapEx_LBnd],MATCH(InputsResults[[#This Row],[Project Name]]&InputsResults[[#This Row],[Project Type]],Model[Project Name]&Model[Type],0))) ->  | K89: =IF(ISBLANK(InputsResults[[#This Row],[Project Type]]),NA(),INDEX(Model[CapEx_UBnd],MATCH(InputsResults[[#This Row],[Project Name]]&InputsResults[[#This Row],[Project Type]],Model[Project Name]&Model[Type],0))) ->  | L89: =InputsResults[[#This Row],[Capital Expenditure (2020 $million)]]/InputsResults[[#This Row],[Plant Capacity (MW)]]*1000 ->  | M89: =InputsResults[[#This Row],[Capital Expenditure (2020 $million): LBnd]]/InputsResults[[#This Row],[Plant Capacity (MW)]]*1000 ->  | N89: =InputsResults[[#This Row],[Capital Expenditure (2020 $million): Ubnd]]/InputsResults[[#This Row],[Plant Capacity (MW)]]*1000 ->  | O89: =INDEX(Model[OMEx],MATCH(InputsResults[[#This Row],[Project Name]]&InputsResults[[#This Row],[Project Type]],Model[Project Name]&Model[Type],0)) ->  | P89: =INDEX(Model[OMEx_LBnd],MATCH(InputsResults[[#This Row],[Project Name]]&InputsResults[[#This Row],[Project Type]],Model[Project Name]&Model[Type],0)) ->  | Q89: =INDEX(Model[OMEx_Ubnd],MATCH(InputsResults[[#This Row],[Project Name]]&InputsResults[[#This Row],[Project Type]],Model[Project Name]&Model[Type],0)) ->  | R89: =InputsResults[[#This Row],[O&M Expenditure (2020 $million)]]/InputsResults[[#This Row],[Plant Capacity (MW)]]*1000 ->  | S89: =InputsResults[[#This Row],[O&M Expenditure (2020 $million): LBnd]]/InputsResults[[#This Row],[Plant Capacity (MW)]]*1000 ->  | T89: =InputsResults[[#This Row],[O&M Expenditure (2020 $million):Ubnd]]/InputsResults[[#This Row],[Plant Capacity (MW)]]*1000 -> 
D90: 1 | G90: 0 | H90: 0.5 | I90: =IF(ISBLANK(InputsResults[[#This Row],[Project Type]]),NA(),INDEX(Model[CapEx],MATCH(InputsResults[[#This Row],[Project Name]]&InputsResults[[#This Row],[Project Type]],Model[Project Name]&Model[Type],0))) ->  | J90: =IF(ISBLANK(InputsResults[[#This Row],[Project Type]]),NA(),INDEX(Model[CapEx_LBnd],MATCH(InputsResults[[#This Row],[Project Name]]&InputsResults[[#This Row],[Project Type]],Model[Project Name]&Model[Type],0))) ->  | K90: =IF(ISBLANK(InputsResults[[#This Row],[Project Type]]),NA(),INDEX(Model[CapEx_UBnd],MATCH(InputsResults[[#This Row],[Project Name]]&InputsResults[[#This Row],[Project Type]],Model[Project Name]&Model[Type],0))) ->  | L90: =InputsResults[[#This Row],[Capital Expenditure (2020 $million)]]/InputsResults[[#This Row],[Plant Capacity (MW)]]*1000 ->  | M90: =InputsResults[[#This Row],[Capital Expenditure (2020 $million): LBnd]]/InputsResults[[#This Row],[Plant Capacity (MW)]]*1000 ->  | N90: =InputsResults[[#This Row],[Capital Expenditure (2020 $million): Ubnd]]/InputsResults[[#This Row],[Plant Capacity (MW)]]*1000 ->  | O90: =INDEX(Model[OMEx],MATCH(InputsResults[[#This Row],[Project Name]]&InputsResults[[#This Row],[Project Type]],Model[Project Name]&Model[Type],0)) ->  | P90: =INDEX(Model[OMEx_LBnd],MATCH(InputsResults[[#This Row],[Project Name]]&InputsResults[[#This Row],[Project Type]],Model[Project Name]&Model[Type],0)) ->  | Q90: =INDEX(Model[OMEx_Ubnd],MATCH(InputsResults[[#This Row],[Project Name]]&InputsResults[[#This Row],[Project Type]],Model[Project Name]&Model[Type],0)) ->  | R90: =InputsResults[[#This Row],[O&M Expenditure (2020 $million)]]/InputsResults[[#This Row],[Plant Capacity (MW)]]*1000 ->  | S90: =InputsResults[[#This Row],[O&M Expenditure (2020 $million): LBnd]]/InputsResults[[#This Row],[Plant Capacity (MW)]]*1000 ->  | T90: =InputsResults[[#This Row],[O&M Expenditure (2020 $million):Ubnd]]/InputsResults[[#This Row],[Plant Capacity (MW)]]*1000 -> 
D91: 1 | G91: 0 | H91: 0.5 | I91: =IF(ISBLANK(InputsResults[[#This Row],[Project Type]]),NA(),INDEX(Model[CapEx],MATCH(InputsResults[[#This Row],[Project Name]]&InputsResults[[#This Row],[Project Type]],Model[Project Name]&Model[Type],0))) ->  | J91: =IF(ISBLANK(InputsResults[[#This Row],[Project Type]]),NA(),INDEX(Model[CapEx_LBnd],MATCH(InputsResults[[#This Row],[Project Name]]&InputsResults[[#This Row],[Project Type]],Model[Project Name]&Model[Type],0))) ->  | K91: =IF(ISBLANK(InputsResults[[#This Row],[Project Type]]),NA(),INDEX(Model[CapEx_UBnd],MATCH(InputsResults[[#This Row],[Project Name]]&InputsResults[[#This Row],[Project Type]],Model[Project Name]&Model[Type],0))) ->  | L91: =InputsResults[[#This Row],[Capital Expenditure (2020 $million)]]/InputsResults[[#This Row],[Plant Capacity (MW)]]*1000 ->  | M91: =InputsResults[[#This Row],[Capital Expenditure (2020 $million): LBnd]]/InputsResults[[#This Row],[Plant Capacity (MW)]]*1000 ->  | N91: =InputsResults[[#This Row],[Capital Expenditure (2020 $million): Ubnd]]/InputsResults[[#This Row],[Plant Capacity (MW)]]*1000 ->  | O91: =INDEX(Model[OMEx],MATCH(InputsResults[[#This Row],[Project Name]]&InputsResults[[#This Row],[Project Type]],Model[Project Name]&Model[Type],0)) ->  | P91: =INDEX(Model[OMEx_LBnd],MATCH(InputsResults[[#This Row],[Project Name]]&InputsResults[[#This Row],[Project Type]],Model[Project Name]&Model[Type],0)) ->  | Q91: =INDEX(Model[OMEx_Ubnd],MATCH(InputsResults[[#This Row],[Project Name]]&InputsResults[[#This Row],[Project Type]],Model[Project Name]&Model[Type],0)) ->  | R91: =InputsResults[[#This Row],[O&M Expenditure (2020 $million)]]/InputsResults[[#This Row],[Plant Capacity (MW)]]*1000 ->  | S91: =InputsResults[[#This Row],[O&M Expenditure (2020 $million): LBnd]]/InputsResults[[#This Row],[Plant Capacity (MW)]]*1000 ->  | T91: =InputsResults[[#This Row],[O&M Expenditure (2020 $million):Ubnd]]/InputsResults[[#This Row],[Plant Capacity (MW)]]*1000 -> 
D92: 1 | G92: 0 | H92: 0.5 | I92: =IF(ISBLANK(InputsResults[[#This Row],[Project Type]]),NA(),INDEX(Model[CapEx],MATCH(InputsResults[[#This Row],[Project Name]]&InputsResults[[#This Row],[Project Type]],Model[Project Name]&Model[Type],0))) ->  | J92: =IF(ISBLANK(InputsResults[[#This Row],[Project Type]]),NA(),INDEX(Model[CapEx_LBnd],MATCH(InputsResults[[#This Row],[Project Name]]&InputsResults[[#This Row],[Project Type]],Model[Project Name]&Model[Type],0))) ->  | K92: =IF(ISBLANK(InputsResults[[#This Row],[Project Type]]),NA(),INDEX(Model[CapEx_UBnd],MATCH(InputsResults[[#This Row],[Project Name]]&InputsResults[[#This Row],[Project Type]],Model[Project Name]&Model[Type],0))) ->  | L92: =InputsResults[[#This Row],[Capital Expenditure (2020 $million)]]/InputsResults[[#This Row],[Plant Capacity (MW)]]*1000 ->  | M92: =InputsResults[[#This Row],[Capital Expenditure (2020 $million): LBnd]]/InputsResults[[#This Row],[Plant Capacity (MW)]]*1000 ->  | N92: =InputsResults[[#This Row],[Capital Expenditure (2020 $million): Ubnd]]/InputsResults[[#This Row],[Plant Capacity (MW)]]*1000 ->  | O92: =INDEX(Model[OMEx],MATCH(InputsResults[[#This Row],[Project Name]]&InputsResults[[#This Row],[Project Type]],Model[Project Name]&Model[Type],0)) ->  | P92: =INDEX(Model[OMEx_LBnd],MATCH(InputsResults[[#This Row],[Project Name]]&InputsResults[[#This Row],[Project Type]],Model[Project Name]&Model[Type],0)) ->  | Q92: =INDEX(Model[OMEx_Ubnd],MATCH(InputsResults[[#This Row],[Project Name]]&InputsResults[[#This Row],[Project Type]],Model[Project Name]&Model[Type],0)) ->  | R92: =InputsResults[[#This Row],[O&M Expenditure (2020 $million)]]/InputsResults[[#This Row],[Plant Capacity (MW)]]*1000 ->  | S92: =InputsResults[[#This Row],[O&M Expenditure (2020 $million): LBnd]]/InputsResults[[#This Row],[Plant Capacity (MW)]]*1000 ->  | T92: =InputsResults[[#This Row],[O&M Expenditure (2020 $million):Ubnd]]/InputsResults[[#This Row],[Plant Capacity (MW)]]*1000 -> 
D93: 1 | G93: 0 | H93: 0.5 | I93: =IF(ISBLANK(InputsResults[[#This Row],[Project Type]]),NA(),INDEX(Model[CapEx],MATCH(InputsResults[[#This Row],[Project Name]]&InputsResults[[#This Row],[Project Type]],Model[Project Name]&Model[Type],0))) ->  | J93: =IF(ISBLANK(InputsResults[[#This Row],[Project Type]]),NA(),INDEX(Model[CapEx_LBnd],MATCH(InputsResults[[#This Row],[Project Name]]&InputsResults[[#This Row],[Project Type]],Model[Project Name]&Model[Type],0))) ->  | K93: =IF(ISBLANK(InputsResults[[#This Row],[Project Type]]),NA(),INDEX(Model[CapEx_UBnd],MATCH(InputsResults[[#This Row],[Project Name]]&InputsResults[[#This Row],[Project Type]],Model[Project Name]&Model[Type],0))) ->  | L93: =InputsResults[[#This Row],[Capital Expenditure (2020 $million)]]/InputsResults[[#This Row],[Plant Capacity (MW)]]*1000 ->  | M93: =InputsResults[[#This Row],[Capital Expenditure (2020 $million): LBnd]]/InputsResults[[#This Row],[Plant Capacity (MW)]]*1000 ->  | N93: =InputsResults[[#This Row],[Capital Expenditure (2020 $million): Ubnd]]/InputsResults[[#This Row],[Plant Capacity (MW)]]*1000 ->  | O93: =INDEX(Model[OMEx],MATCH(InputsResults[[#This Row],[Project Name]]&InputsResults[[#This Row],[Project Type]],Model[Project Name]&Model[Type],0)) ->  | P93: =INDEX(Model[OMEx_LBnd],MATCH(InputsResults[[#This Row],[Project Name]]&InputsResults[[#This Row],[Project Type]],Model[Project Name]&Model[Type],0)) ->  | Q93: =INDEX(Model[OMEx_Ubnd],MATCH(InputsResults[[#This Row],[Project Name]]&InputsResults[[#This Row],[Project Type]],Model[Project Name]&Model[Type],0)) ->  | R93: =InputsResults[[#This Row],[O&M Expenditure (2020 $million)]]/InputsResults[[#This Row],[Plant Capacity (MW)]]*1000 ->  | S93: =InputsResults[[#This Row],[O&M Expenditure (2020 $million): LBnd]]/InputsResults[[#This Row],[Plant Capacity (MW)]]*1000 ->  | T93: =InputsResults[[#This Row],[O&M Expenditure (2020 $million):Ubnd]]/InputsResults[[#This Row],[Plant Capacity (MW)]]*1000 -> 
D94: 1 | G94: 0 | H94: 0.5 | I94: =IF(ISBLANK(InputsResults[[#This Row],[Project Type]]),NA(),INDEX(Model[CapEx],MATCH(InputsResults[[#This Row],[Project Name]]&InputsResults[[#This Row],[Project Type]],Model[Project Name]&Model[Type],0))) ->  | J94: =IF(ISBLANK(InputsResults[[#This Row],[Project Type]]),NA(),INDEX(Model[CapEx_LBnd],MATCH(InputsResults[[#This Row],[Project Name]]&InputsResults[[#This Row],[Project Type]],Model[Project Name]&Model[Type],0))) ->  | K94: =IF(ISBLANK(InputsResults[[#This Row],[Project Type]]),NA(),INDEX(Model[CapEx_UBnd],MATCH(InputsResults[[#This Row],[Project Name]]&InputsResults[[#This Row],[Project Type]],Model[Project Name]&Model[Type],0))) ->  | L94: =InputsResults[[#This Row],[Capital Expenditure (2020 $million)]]/InputsResults[[#This Row],[Plant Capacity (MW)]]*1000 ->  | M94: =InputsResults[[#This Row],[Capital Expenditure (2020 $million): LBnd]]/InputsResults[[#This Row],[Plant Capacity (MW)]]*1000 ->  | N94: =InputsResults[[#This Row],[Capital Expenditure (2020 $million): Ubnd]]/InputsResults[[#This Row],[Plant Capacity (MW)]]*1000 ->  | O94: =INDEX(Model[OMEx],MATCH(InputsResults[[#This Row],[Project Name]]&InputsResults[[#This Row],[Project Type]],Model[Project Name]&Model[Type],0)) ->  | P94: =INDEX(Model[OMEx_LBnd],MATCH(InputsResults[[#This Row],[Project Name]]&InputsResults[[#This Row],[Project Type]],Model[Project Name]&Model[Type],0)) ->  | Q94: =INDEX(Model[OMEx_Ubnd],MATCH(InputsResults[[#This Row],[Project Name]]&InputsResults[[#This Row],[Project Type]],Model[Project Name]&Model[Type],0)) ->  | R94: =InputsResults[[#This Row],[O&M Expenditure (2020 $million)]]/InputsResults[[#This Row],[Plant Capacity (MW)]]*1000 ->  | S94: =InputsResults[[#This Row],[O&M Expenditure (2020 $million): LBnd]]/InputsResults[[#This Row],[Plant Capacity (MW)]]*1000 ->  | T94: =InputsResults[[#This Row],[O&M Expenditure (2020 $million):Ubnd]]/InputsResults[[#This Row],[Plant Capacity (MW)]]*1000 -> 
D95: 1 | G95: 0 | H95: 0.5 | I95: =IF(ISBLANK(InputsResults[[#This Row],[Project Type]]),NA(),INDEX(Model[CapEx],MATCH(InputsResults[[#This Row],[Project Name]]&InputsResults[[#This Row],[Project Type]],Model[Project Name]&Model[Type],0))) ->  | J95: =IF(ISBLANK(InputsResults[[#This Row],[Project Type]]),NA(),INDEX(Model[CapEx_LBnd],MATCH(InputsResults[[#This Row],[Project Name]]&InputsResults[[#This Row],[Project Type]],Model[Project Name]&Model[Type],0))) ->  | K95: =IF(ISBLANK(InputsResults[[#This Row],[Project Type]]),NA(),INDEX(Model[CapEx_UBnd],MATCH(InputsResults[[#This Row],[Project Name]]&InputsResults[[#This Row],[Project Type]],Model[Project Name]&Model[Type],0))) ->  | L95: =InputsResults[[#This Row],[Capital Expenditure (2020 $million)]]/InputsResults[[#This Row],[Plant Capacity (MW)]]*1000 ->  | M95: =InputsResults[[#This Row],[Capital Expenditure (2020 $million): LBnd]]/InputsResults[[#This Row],[Plant Capacity (MW)]]*1000 ->  | N95: =InputsResults[[#This Row],[Capital Expenditure (2020 $million): Ubnd]]/InputsResults[[#This Row],[Plant Capacity (MW)]]*1000 ->  | O95: =INDEX(Model[OMEx],MATCH(InputsResults[[#This Row],[Project Name]]&InputsResults[[#This Row],[Project Type]],Model[Project Name]&Model[Type],0)) ->  | P95: =INDEX(Model[OMEx_LBnd],MATCH(InputsResults[[#This Row],[Project Name]]&InputsResults[[#This Row],[Project Type]],Model[Project Name]&Model[Type],0)) ->  | Q95: =INDEX(Model[OMEx_Ubnd],MATCH(InputsResults[[#This Row],[Project Name]]&InputsResults[[#This Row],[Project Type]],Model[Project Name]&Model[Type],0)) ->  | R95: =InputsResults[[#This Row],[O&M Expenditure (2020 $million)]]/InputsResults[[#This Row],[Plant Capacity (MW)]]*1000 ->  | S95: =InputsResults[[#This Row],[O&M Expenditure (2020 $million): LBnd]]/InputsResults[[#This Row],[Plant Capacity (MW)]]*1000 ->  | T95: =InputsResults[[#This Row],[O&M Expenditure (2020 $million):Ubnd]]/InputsResults[[#This Row],[Plant Capacity (MW)]]*1000 -> 
D96: 1 | G96: 0 | H96: 0.5 | I96: =IF(ISBLANK(InputsResults[[#This Row],[Project Type]]),NA(),INDEX(Model[CapEx],MATCH(InputsResults[[#This Row],[Project Name]]&InputsResults[[#This Row],[Project Type]],Model[Project Name]&Model[Type],0))) ->  | J96: =IF(ISBLANK(InputsResults[[#This Row],[Project Type]]),NA(),INDEX(Model[CapEx_LBnd],MATCH(InputsResults[[#This Row],[Project Name]]&InputsResults[[#This Row],[Project Type]],Model[Project Name]&Model[Type],0))) ->  | K96: =IF(ISBLANK(InputsResults[[#This Row],[Project Type]]),NA(),INDEX(Model[CapEx_UBnd],MATCH(InputsResults[[#This Row],[Project Name]]&InputsResults[[#This Row],[Project Type]],Model[Project Name]&Model[Type],0))) ->  | L96: =InputsResults[[#This Row],[Capital Expenditure (2020 $million)]]/InputsResults[[#This Row],[Plant Capacity (MW)]]*1000 ->  | M96: =InputsResults[[#This Row],[Capital Expenditure (2020 $million): LBnd]]/InputsResults[[#This Row],[Plant Capacity (MW)]]*1000 ->  | N96: =InputsResults[[#This Row],[Capital Expenditure (2020 $million): Ubnd]]/InputsResults[[#This Row],[Plant Capacity (MW)]]*1000 ->  | O96: =INDEX(Model[OMEx],MATCH(InputsResults[[#This Row],[Project Name]]&InputsResults[[#This Row],[Project Type]],Model[Project Name]&Model[Type],0)) ->  | P96: =INDEX(Model[OMEx_LBnd],MATCH(InputsResults[[#This Row],[Project Name]]&InputsResults[[#This Row],[Project Type]],Model[Project Name]&Model[Type],0)) ->  | Q96: =INDEX(Model[OMEx_Ubnd],MATCH(InputsResults[[#This Row],[Project Name]]&InputsResults[[#This Row],[Project Type]],Model[Project Name]&Model[Type],0)) ->  | R96: =InputsResults[[#This Row],[O&M Expenditure (2020 $million)]]/InputsResults[[#This Row],[Plant Capacity (MW)]]*1000 ->  | S96: =InputsResults[[#This Row],[O&M Expenditure (2020 $million): LBnd]]/InputsResults[[#This Row],[Plant Capacity (MW)]]*1000 ->  | T96: =InputsResults[[#This Row],[O&M Expenditure (2020 $million):Ubnd]]/InputsResults[[#This Row],[Plant Capacity (MW)]]*1000 -> 
D97: 1 | G97: 0 | H97: 0.5 | I97: =IF(ISBLANK(InputsResults[[#This Row],[Project Type]]),NA(),INDEX(Model[CapEx],MATCH(InputsResults[[#This Row],[Project Name]]&InputsResults[[#This Row],[Project Type]],Model[Project Name]&Model[Type],0))) ->  | J97: =IF(ISBLANK(InputsResults[[#This Row],[Project Type]]),NA(),INDEX(Model[CapEx_LBnd],MATCH(InputsResults[[#This Row],[Project Name]]&InputsResults[[#This Row],[Project Type]],Model[Project Name]&Model[Type],0))) ->  | K97: =IF(ISBLANK(InputsResults[[#This Row],[Project Type]]),NA(),INDEX(Model[CapEx_UBnd],MATCH(InputsResults[[#This Row],[Project Name]]&InputsResults[[#This Row],[Project Type]],Model[Project Name]&Model[Type],0))) ->  | L97: =InputsResults[[#This Row],[Capital Expenditure (2020 $million)]]/InputsResults[[#This Row],[Plant Capacity (MW)]]*1000 ->  | M97: =InputsResults[[#This Row],[Capital Expenditure (2020 $million): LBnd]]/InputsResults[[#This Row],[Plant Capacity (MW)]]*1000 ->  | N97: =InputsResults[[#This Row],[Capital Expenditure (2020 $million): Ubnd]]/InputsResults[[#This Row],[Plant Capacity (MW)]]*1000 ->  | O97: =INDEX(Model[OMEx],MATCH(InputsResults[[#This Row],[Project Name]]&InputsResults[[#This Row],[Project Type]],Model[Project Name]&Model[Type],0)) ->  | P97: =INDEX(Model[OMEx_LBnd],MATCH(InputsResults[[#This Row],[Project Name]]&InputsResults[[#This Row],[Project Type]],Model[Project Name]&Model[Type],0)) ->  | Q97: =INDEX(Model[OMEx_Ubnd],MATCH(InputsResults[[#This Row],[Project Name]]&InputsResults[[#This Row],[Project Type]],Model[Project Name]&Model[Type],0)) ->  | R97: =InputsResults[[#This Row],[O&M Expenditure (2020 $million)]]/InputsResults[[#This Row],[Plant Capacity (MW)]]*1000 ->  | S97: =InputsResults[[#This Row],[O&M Expenditure (2020 $million): LBnd]]/InputsResults[[#This Row],[Plant Capacity (MW)]]*1000 ->  | T97: =InputsResults[[#This Row],[O&M Expenditure (2020 $million):Ubnd]]/InputsResults[[#This Row],[Plant Capacity (MW)]]*1000 -> 
D98: 1 | G98: 0 | H98: 0.5 | I98: =IF(ISBLANK(InputsResults[[#This Row],[Project Type]]),NA(),INDEX(Model[CapEx],MATCH(InputsResults[[#This Row],[Project Name]]&InputsResults[[#This Row],[Project Type]],Model[Project Name]&Model[Type],0))) ->  | J98: =IF(ISBLANK(InputsResults[[#This Row],[Project Type]]),NA(),INDEX(Model[CapEx_LBnd],MATCH(InputsResults[[#This Row],[Project Name]]&InputsResults[[#This Row],[Project Type]],Model[Project Name]&Model[Type],0))) ->  | K98: =IF(ISBLANK(InputsResults[[#This Row],[Project Type]]),NA(),INDEX(Model[CapEx_UBnd],MATCH(InputsResults[[#This Row],[Project Name]]&InputsResults[[#This Row],[Project Type]],Model[Project Name]&Model[Type],0))) ->  | L98: =InputsResults[[#This Row],[Capital Expenditure (2020 $million)]]/InputsResults[[#This Row],[Plant Capacity (MW)]]*1000 ->  | M98: =InputsResults[[#This Row],[Capital Expenditure (2020 $million): LBnd]]/InputsResults[[#This Row],[Plant Capacity (MW)]]*1000 ->  | N98: =InputsResults[[#This Row],[Capital Expenditure (2020 $million): Ubnd]]/InputsResults[[#This Row],[Plant Capacity (MW)]]*1000 ->  | O98: =INDEX(Model[OMEx],MATCH(InputsResults[[#This Row],[Project Name]]&InputsResults[[#This Row],[Project Type]],Model[Project Name]&Model[Type],0)) ->  | P98: =INDEX(Model[OMEx_LBnd],MATCH(InputsResults[[#This Row],[Project Name]]&InputsResults[[#This Row],[Project Type]],Model[Project Name]&Model[Type],0)) ->  | Q98: =INDEX(Model[OMEx_Ubnd],MATCH(InputsResults[[#This Row],[Project Name]]&InputsResults[[#This Row],[Project Type]],Model[Project Name]&Model[Type],0)) ->  | R98: =InputsResults[[#This Row],[O&M Expenditure (2020 $million)]]/InputsResults[[#This Row],[Plant Capacity (MW)]]*1000 ->  | S98: =InputsResults[[#This Row],[O&M Expenditure (2020 $million): LBnd]]/InputsResults[[#This Row],[Plant Capacity (MW)]]*1000 ->  | T98: =InputsResults[[#This Row],[O&M Expenditure (2020 $million):Ubnd]]/InputsResults[[#This Row],[Plant Capacity (MW)]]*1000 -> 
D99: 1 | G99: 0 | H99: 0.5 | I99: =IF(ISBLANK(InputsResults[[#This Row],[Project Type]]),NA(),INDEX(Model[CapEx],MATCH(InputsResults[[#This Row],[Project Name]]&InputsResults[[#This Row],[Project Type]],Model[Project Name]&Model[Type],0))) ->  | J99: =IF(ISBLANK(InputsResults[[#This Row],[Project Type]]),NA(),INDEX(Model[CapEx_LBnd],MATCH(InputsResults[[#This Row],[Project Name]]&InputsResults[[#This Row],[Project Type]],Model[Project Name]&Model[Type],0))) ->  | K99: =IF(ISBLANK(InputsResults[[#This Row],[Project Type]]),NA(),INDEX(Model[CapEx_UBnd],MATCH(InputsResults[[#This Row],[Project Name]]&InputsResults[[#This Row],[Project Type]],Model[Project Name]&Model[Type],0))) ->  | L99: =InputsResults[[#This Row],[Capital Expenditure (2020 $million)]]/InputsResults[[#This Row],[Plant Capacity (MW)]]*1000 ->  | M99: =InputsResults[[#This Row],[Capital Expenditure (2020 $million): LBnd]]/InputsResults[[#This Row],[Plant Capacity (MW)]]*1000 ->  | N99: =InputsResults[[#This Row],[Capital Expenditure (2020 $million): Ubnd]]/InputsResults[[#This Row],[Plant Capacity (MW)]]*1000 ->  | O99: =INDEX(Model[OMEx],MATCH(InputsResults[[#This Row],[Project Name]]&InputsResults[[#This Row],[Project Type]],Model[Project Name]&Model[Type],0)) ->  | P99: =INDEX(Model[OMEx_LBnd],MATCH(InputsResults[[#This Row],[Project Name]]&InputsResults[[#This Row],[Project Type]],Model[Project Name]&Model[Type],0)) ->  | Q99: =INDEX(Model[OMEx_Ubnd],MATCH(InputsResults[[#This Row],[Project Name]]&InputsResults[[#This Row],[Project Type]],Model[Project Name]&Model[Type],0)) ->  | R99: =InputsResults[[#This Row],[O&M Expenditure (2020 $million)]]/InputsResults[[#This Row],[Plant Capacity (MW)]]*1000 ->  | S99: =InputsResults[[#This Row],[O&M Expenditure (2020 $million): LBnd]]/InputsResults[[#This Row],[Plant Capacity (MW)]]*1000 ->  | T99: =InputsResults[[#This Row],[O&M Expenditure (2020 $million):Ubnd]]/InputsResults[[#This Row],[Plant Capacity (MW)]]*1000 -> 
D100: 1 | G100: 0 | H100: 0.5 | I100: =IF(ISBLANK(InputsResults[[#This Row],[Project Type]]),NA(),INDEX(Model[CapEx],MATCH(InputsResults[[#This Row],[Project Name]]&InputsResults[[#This Row],[Project Type]],Model[Project Name]&Model[Type],0))) ->  | J100: =IF(ISBLANK(InputsResults[[#This Row],[Project Type]]),NA(),INDEX(Model[CapEx_LBnd],MATCH(InputsResults[[#This Row],[Project Name]]&InputsResults[[#This Row],[Project Type]],Model[Project Name]&Model[Type],0))) ->  | K100: =IF(ISBLANK(InputsResults[[#This Row],[Project Type]]),NA(),INDEX(Model[CapEx_UBnd],MATCH(InputsResults[[#This Row],[Project Name]]&InputsResults[[#This Row],[Project Type]],Model[Project Name]&Model[Type],0))) ->  | L100: =InputsResults[[#This Row],[Capital Expenditure (2020 $million)]]/InputsResults[[#This Row],[Plant Capacity (MW)]]*1000 ->  | M100: =InputsResults[[#This Row],[Capital Expenditure (2020 $million): LBnd]]/InputsResults[[#This Row],[Plant Capacity (MW)]]*1000 ->  | N100: =InputsResults[[#This Row],[Capital Expenditure (2020 $million): Ubnd]]/InputsResults[[#This Row],[Plant Capacity (MW)]]*1000 ->  | O100: =INDEX(Model[OMEx],MATCH(InputsResults[[#This Row],[Project Name]]&InputsResults[[#This Row],[Project Type]],Model[Project Name]&Model[Type],0)) ->  | P100: =INDEX(Model[OMEx_LBnd],MATCH(InputsResults[[#This Row],[Project Name]]&InputsResults[[#This Row],[Project Type]],Model[Project Name]&Model[Type],0)) ->  | Q100: =INDEX(Model[OMEx_Ubnd],MATCH(InputsResults[[#This Row],[Project Name]]&InputsResults[[#This Row],[Project Type]],Model[Project Name]&Model[Type],0)) ->  | R100: =InputsResults[[#This Row],[O&M Expenditure (2020 $million)]]/InputsResults[[#This Row],[Plant Capacity (MW)]]*1000 ->  | S100: =InputsResults[[#This Row],[O&M Expenditure (2020 $million): LBnd]]/InputsResults[[#This Row],[Plant Capacity (MW)]]*1000 ->  | T100: =InputsResults[[#This Row],[O&M Expenditure (2020 $million):Ubnd]]/InputsResults[[#This Row],[Plant Capacity (MW)]]*1000 -> 
D101: 1 | G101: 0 | H101: 0.5 | I101: =IF(ISBLANK(InputsResults[[#This Row],[Project Type]]),NA(),INDEX(Model[CapEx],MATCH(InputsResults[[#This Row],[Project Name]]&InputsResults[[#This Row],[Project Type]],Model[Project Name]&Model[Type],0))) ->  | J101: =IF(ISBLANK(InputsResults[[#This Row],[Project Type]]),NA(),INDEX(Model[CapEx_LBnd],MATCH(InputsResults[[#This Row],[Project Name]]&InputsResults[[#This Row],[Project Type]],Model[Project Name]&Model[Type],0))) ->  | K101: =IF(ISBLANK(InputsResults[[#This Row],[Project Type]]),NA(),INDEX(Model[CapEx_UBnd],MATCH(InputsResults[[#This Row],[Project Name]]&InputsResults[[#This Row],[Project Type]],Model[Project Name]&Model[Type],0))) ->  | L101: =InputsResults[[#This Row],[Capital Expenditure (2020 $million)]]/InputsResults[[#This Row],[Plant Capacity (MW)]]*1000 ->  | M101: =InputsResults[[#This Row],[Capital Expenditure (2020 $million): LBnd]]/InputsResults[[#This Row],[Plant Capacity (MW)]]*1000 ->  | N101: =InputsResults[[#This Row],[Capital Expenditure (2020 $million): Ubnd]]/InputsResults[[#This Row],[Plant Capacity (MW)]]*1000 ->  | O101: =INDEX(Model[OMEx],MATCH(InputsResults[[#This Row],[Project Name]]&InputsResults[[#This Row],[Project Type]],Model[Project Name]&Model[Type],0)) ->  | P101: =INDEX(Model[OMEx_LBnd],MATCH(InputsResults[[#This Row],[Project Name]]&InputsResults[[#This Row],[Project Type]],Model[Project Name]&Model[Type],0)) ->  | Q101: =INDEX(Model[OMEx_Ubnd],MATCH(InputsResults[[#This Row],[Project Name]]&InputsResults[[#This Row],[Project Type]],Model[Project Name]&Model[Type],0)) ->  | R101: =InputsResults[[#This Row],[O&M Expenditure (2020 $million)]]/InputsResults[[#This Row],[Plant Capacity (MW)]]*1000 ->  | S101: =InputsResults[[#This Row],[O&M Expenditure (2020 $million): LBnd]]/InputsResults[[#This Row],[Plant Capacity (MW)]]*1000 ->  | T101: =InputsResults[[#This Row],[O&M Expenditure (2020 $million):Ubnd]]/InputsResults[[#This Row],[Plant Capacity (MW)]]*1000 -> 
D102: 1 | G102: 0 | H102: 0.5 | I102: =IF(ISBLANK(InputsResults[[#This Row],[Project Type]]),NA(),INDEX(Model[CapEx],MATCH(InputsResults[[#This Row],[Project Name]]&InputsResults[[#This Row],[Project Type]],Model[Project Name]&Model[Type],0))) ->  | J102: =IF(ISBLANK(InputsResults[[#This Row],[Project Type]]),NA(),INDEX(Model[CapEx_LBnd],MATCH(InputsResults[[#This Row],[Project Name]]&InputsResults[[#This Row],[Project Type]],Model[Project Name]&Model[Type],0))) ->  | K102: =IF(ISBLANK(InputsResults[[#This Row],[Project Type]]),NA(),INDEX(Model[CapEx_UBnd],MATCH(InputsResults[[#This Row],[Project Name]]&InputsResults[[#This Row],[Project Type]],Model[Project Name]&Model[Type],0))) ->  | L102: =InputsResults[[#This Row],[Capital Expenditure (2020 $million)]]/InputsResults[[#This Row],[Plant Capacity (MW)]]*1000 ->  | M102: =InputsResults[[#This Row],[Capital Expenditure (2020 $million): LBnd]]/InputsResults[[#This Row],[Plant Capacity (MW)]]*1000 ->  | N102: =InputsResults[[#This Row],[Capital Expenditure (2020 $million): Ubnd]]/InputsResults[[#This Row],[Plant Capacity (MW)]]*1000 ->  | O102: =INDEX(Model[OMEx],MATCH(InputsResults[[#This Row],[Project Name]]&InputsResults[[#This Row],[Project Type]],Model[Project Name]&Model[Type],0)) ->  | P102: =INDEX(Model[OMEx_LBnd],MATCH(InputsResults[[#This Row],[Project Name]]&InputsResults[[#This Row],[Project Type]],Model[Project Name]&Model[Type],0)) ->  | Q102: =INDEX(Model[OMEx_Ubnd],MATCH(InputsResults[[#This Row],[Project Name]]&InputsResults[[#This Row],[Project Type]],Model[Project Name]&Model[Type],0)) ->  | R102: =InputsResults[[#This Row],[O&M Expenditure (2020 $million)]]/InputsResults[[#This Row],[Plant Capacity (MW)]]*1000 ->  | S102: =InputsResults[[#This Row],[O&M Expenditure (2020 $million): LBnd]]/InputsResults[[#This Row],[Plant Capacity (MW)]]*1000 ->  | T102: =InputsResults[[#This Row],[O&M Expenditure (2020 $million):Ubnd]]/InputsResults[[#This Row],[Plant Capacity (MW)]]*1000 -> 
D103: 1 | G103: 0 | H103: 0.5 | I103: =IF(ISBLANK(InputsResults[[#This Row],[Project Type]]),NA(),INDEX(Model[CapEx],MATCH(InputsResults[[#This Row],[Project Name]]&InputsResults[[#This Row],[Project Type]],Model[Project Name]&Model[Type],0))) ->  | J103: =IF(ISBLANK(InputsResults[[#This Row],[Project Type]]),NA(),INDEX(Model[CapEx_LBnd],MATCH(InputsResults[[#This Row],[Project Name]]&InputsResults[[#This Row],[Project Type]],Model[Project Name]&Model[Type],0))) ->  | K103: =IF(ISBLANK(InputsResults[[#This Row],[Project Type]]),NA(),INDEX(Model[CapEx_UBnd],MATCH(InputsResults[[#This Row],[Project Name]]&InputsResults[[#This Row],[Project Type]],Model[Project Name]&Model[Type],0))) ->  | L103: =InputsResults[[#This Row],[Capital Expenditure (2020 $million)]]/InputsResults[[#This Row],[Plant Capacity (MW)]]*1000 ->  | M103: =InputsResults[[#This Row],[Capital Expenditure (2020 $million): LBnd]]/InputsResults[[#This Row],[Plant Capacity (MW)]]*1000 ->  | N103: =InputsResults[[#This Row],[Capital Expenditure (2020 $million): Ubnd]]/InputsResults[[#This Row],[Plant Capacity (MW)]]*1000 ->  | O103: =INDEX(Model[OMEx],MATCH(InputsResults[[#This Row],[Project Name]]&InputsResults[[#This Row],[Project Type]],Model[Project Name]&Model[Type],0)) ->  | P103: =INDEX(Model[OMEx_LBnd],MATCH(InputsResults[[#This Row],[Project Name]]&InputsResults[[#This Row],[Project Type]],Model[Project Name]&Model[Type],0)) ->  | Q103: =INDEX(Model[OMEx_Ubnd],MATCH(InputsResults[[#This Row],[Project Name]]&InputsResults[[#This Row],[Project Type]],Model[Project Name]&Model[Type],0)) ->  | R103: =InputsResults[[#This Row],[O&M Expenditure (2020 $million)]]/InputsResults[[#This Row],[Plant Capacity (MW)]]*1000 ->  | S103: =InputsResults[[#This Row],[O&M Expenditure (2020 $million): LBnd]]/InputsResults[[#This Row],[Plant Capacity (MW)]]*1000 ->  | T103: =InputsResults[[#This Row],[O&M Expenditure (2020 $million):Ubnd]]/InputsResults[[#This Row],[Plant Capacity (MW)]]*1000 -> 
D104: 1 | G104: 0 | H104: 0.5 | I104: =IF(ISBLANK(InputsResults[[#This Row],[Project Type]]),NA(),INDEX(Model[CapEx],MATCH(InputsResults[[#This Row],[Project Name]]&InputsResults[[#This Row],[Project Type]],Model[Project Name]&Model[Type],0))) ->  | J104: =IF(ISBLANK(InputsResults[[#This Row],[Project Type]]),NA(),INDEX(Model[CapEx_LBnd],MATCH(InputsResults[[#This Row],[Project Name]]&InputsResults[[#This Row],[Project Type]],Model[Project Name]&Model[Type],0))) ->  | K104: =IF(ISBLANK(InputsResults[[#This Row],[Project Type]]),NA(),INDEX(Model[CapEx_UBnd],MATCH(InputsResults[[#This Row],[Project Name]]&InputsResults[[#This Row],[Project Type]],Model[Project Name]&Model[Type],0))) ->  | L104: =InputsResults[[#This Row],[Capital Expenditure (2020 $million)]]/InputsResults[[#This Row],[Plant Capacity (MW)]]*1000 ->  | M104: =InputsResults[[#This Row],[Capital Expenditure (2020 $million): LBnd]]/InputsResults[[#This Row],[Plant Capacity (MW)]]*1000 ->  | N104: =InputsResults[[#This Row],[Capital Expenditure (2020 $million): Ubnd]]/InputsResults[[#This Row],[Plant Capacity (MW)]]*1000 ->  | O104: =INDEX(Model[OMEx],MATCH(InputsResults[[#This Row],[Project Name]]&InputsResults[[#This Row],[Project Type]],Model[Project Name]&Model[Type],0)) ->  | P104: =INDEX(Model[OMEx_LBnd],MATCH(InputsResults[[#This Row],[Project Name]]&InputsResults[[#This Row],[Project Type]],Model[Project Name]&Model[Type],0)) ->  | Q104: =INDEX(Model[OMEx_Ubnd],MATCH(InputsResults[[#This Row],[Project Name]]&InputsResults[[#This Row],[Project Type]],Model[Project Name]&Model[Type],0)) ->  | R104: =InputsResults[[#This Row],[O&M Expenditure (2020 $million)]]/InputsResults[[#This Row],[Plant Capacity (MW)]]*1000 ->  | S104: =InputsResults[[#This Row],[O&M Expenditure (2020 $million): LBnd]]/InputsResults[[#This Row],[Plant Capacity (MW)]]*1000 ->  | T104: =InputsResults[[#This Row],[O&M Expenditure (2020 $million):Ubnd]]/InputsResults[[#This Row],[Plant Capacity (MW)]]*1000 -> 
D105: 1 | G105: 0 | H105: 0.5 | I105: =IF(ISBLANK(InputsResults[[#This Row],[Project Type]]),NA(),INDEX(Model[CapEx],MATCH(InputsResults[[#This Row],[Project Name]]&InputsResults[[#This Row],[Project Type]],Model[Project Name]&Model[Type],0))) ->  | J105: =IF(ISBLANK(InputsResults[[#This Row],[Project Type]]),NA(),INDEX(Model[CapEx_LBnd],MATCH(InputsResults[[#This Row],[Project Name]]&InputsResults[[#This Row],[Project Type]],Model[Project Name]&Model[Type],0))) ->  | K105: =IF(ISBLANK(InputsResults[[#This Row],[Project Type]]),NA(),INDEX(Model[CapEx_UBnd],MATCH(InputsResults[[#This Row],[Project Name]]&InputsResults[[#This Row],[Project Type]],Model[Project Name]&Model[Type],0))) ->  | L105: =InputsResults[[#This Row],[Capital Expenditure (2020 $million)]]/InputsResults[[#This Row],[Plant Capacity (MW)]]*1000 ->  | M105: =InputsResults[[#This Row],[Capital Expenditure (2020 $million): LBnd]]/InputsResults[[#This Row],[Plant Capacity (MW)]]*1000 ->  | N105: =InputsResults[[#This Row],[Capital Expenditure (2020 $million): Ubnd]]/InputsResults[[#This Row],[Plant Capacity (MW)]]*1000 ->  | O105: =INDEX(Model[OMEx],MATCH(InputsResults[[#This Row],[Project Name]]&InputsResults[[#This Row],[Project Type]],Model[Project Name]&Model[Type],0)) ->  | P105: =INDEX(Model[OMEx_LBnd],MATCH(InputsResults[[#This Row],[Project Name]]&InputsResults[[#This Row],[Project Type]],Model[Project Name]&Model[Type],0)) ->  | Q105: =INDEX(Model[OMEx_Ubnd],MATCH(InputsResults[[#This Row],[Project Name]]&InputsResults[[#This Row],[Project Type]],Model[Project Name]&Model[Type],0)) ->  | R105: =InputsResults[[#This Row],[O&M Expenditure (2020 $million)]]/InputsResults[[#This Row],[Plant Capacity (MW)]]*1000 ->  | S105: =InputsResults[[#This Row],[O&M Expenditure (2020 $million): LBnd]]/InputsResults[[#This Row],[Plant Capacity (MW)]]*1000 ->  | T105: =InputsResults[[#This Row],[O&M Expenditure (2020 $million):Ubnd]]/InputsResults[[#This Row],[Plant Capacity (MW)]]*1000 -> 
D106: 1 | G106: 0 | H106: 0.5 | I106: =IF(ISBLANK(InputsResults[[#This Row],[Project Type]]),NA(),INDEX(Model[CapEx],MATCH(InputsResults[[#This Row],[Project Name]]&InputsResults[[#This Row],[Project Type]],Model[Project Name]&Model[Type],0))) ->  | J106: =IF(ISBLANK(InputsResults[[#This Row],[Project Type]]),NA(),INDEX(Model[CapEx_LBnd],MATCH(InputsResults[[#This Row],[Project Name]]&InputsResults[[#This Row],[Project Type]],Model[Project Name]&Model[Type],0))) ->  | K106: =IF(ISBLANK(InputsResults[[#This Row],[Project Type]]),NA(),INDEX(Model[CapEx_UBnd],MATCH(InputsResults[[#This Row],[Project Name]]&InputsResults[[#This Row],[Project Type]],Model[Project Name]&Model[Type],0))) ->  | L106: =InputsResults[[#This Row],[Capital Expenditure (2020 $million)]]/InputsResults[[#This Row],[Plant Capacity (MW)]]*1000 ->  | M106: =InputsResults[[#This Row],[Capital Expenditure (2020 $million): LBnd]]/InputsResults[[#This Row],[Plant Capacity (MW)]]*1000 ->  | N106: =InputsResults[[#This Row],[Capital Expenditure (2020 $million): Ubnd]]/InputsResults[[#This Row],[Plant Capacity (MW)]]*1000 ->  | O106: =INDEX(Model[OMEx],MATCH(InputsResults[[#This Row],[Project Name]]&InputsResults[[#This Row],[Project Type]],Model[Project Name]&Model[Type],0)) ->  | P106: =INDEX(Model[OMEx_LBnd],MATCH(InputsResults[[#This Row],[Project Name]]&InputsResults[[#This Row],[Project Type]],Model[Project Name]&Model[Type],0)) ->  | Q106: =INDEX(Model[OMEx_Ubnd],MATCH(InputsResults[[#This Row],[Project Name]]&InputsResults[[#This Row],[Project Type]],Model[Project Name]&Model[Type],0)) ->  | R106: =InputsResults[[#This Row],[O&M Expenditure (2020 $million)]]/InputsResults[[#This Row],[Plant Capacity (MW)]]*1000 ->  | S106: =InputsResults[[#This Row],[O&M Expenditure (2020 $million): LBnd]]/InputsResults[[#This Row],[Plant Capacity (MW)]]*1000 ->  | T106: =InputsResults[[#This Row],[O&M Expenditure (2020 $million):Ubnd]]/InputsResults[[#This Row],[Plant Capacity (MW)]]*1000 -> 
D107: 1 | G107: 0 | H107: 0.5 | I107: =IF(ISBLANK(InputsResults[[#This Row],[Project Type]]),NA(),INDEX(Model[CapEx],MATCH(InputsResults[[#This Row],[Project Name]]&InputsResults[[#This Row],[Project Type]],Model[Project Name]&Model[Type],0))) ->  | J107: =IF(ISBLANK(InputsResults[[#This Row],[Project Type]]),NA(),INDEX(Model[CapEx_LBnd],MATCH(InputsResults[[#This Row],[Project Name]]&InputsResults[[#This Row],[Project Type]],Model[Project Name]&Model[Type],0))) ->  | K107: =IF(ISBLANK(InputsResults[[#This Row],[Project Type]]),NA(),INDEX(Model[CapEx_UBnd],MATCH(InputsResults[[#This Row],[Project Name]]&InputsResults[[#This Row],[Project Type]],Model[Project Name]&Model[Type],0))) ->  | L107: =InputsResults[[#This Row],[Capital Expenditure (2020 $million)]]/InputsResults[[#This Row],[Plant Capacity (MW)]]*1000 ->  | M107: =InputsResults[[#This Row],[Capital Expenditure (2020 $million): LBnd]]/InputsResults[[#This Row],[Plant Capacity (MW)]]*1000 ->  | N107: =InputsResults[[#This Row],[Capital Expenditure (2020 $million): Ubnd]]/InputsResults[[#This Row],[Plant Capacity (MW)]]*1000 ->  | O107: =INDEX(Model[OMEx],MATCH(InputsResults[[#This Row],[Project Name]]&InputsResults[[#This Row],[Project Type]],Model[Project Name]&Model[Type],0)) ->  | P107: =INDEX(Model[OMEx_LBnd],MATCH(InputsResults[[#This Row],[Project Name]]&InputsResults[[#This Row],[Project Type]],Model[Project Name]&Model[Type],0)) ->  | Q107: =INDEX(Model[OMEx_Ubnd],MATCH(InputsResults[[#This Row],[Project Name]]&InputsResults[[#This Row],[Project Type]],Model[Project Name]&Model[Type],0)) ->  | R107: =InputsResults[[#This Row],[O&M Expenditure (2020 $million)]]/InputsResults[[#This Row],[Plant Capacity (MW)]]*1000 ->  | S107: =InputsResults[[#This Row],[O&M Expenditure (2020 $million): LBnd]]/InputsResults[[#This Row],[Plant Capacity (MW)]]*1000 ->  | T107: =InputsResults[[#This Row],[O&M Expenditure (2020 $million):Ubnd]]/InputsResults[[#This Row],[Plant Capacity (MW)]]*1000 -> 

Sheet ResultCharts
A1: Charts of the first 10 project rows in TABLE 1

Sheet Coeff
A1: TABLE 4: COEFFICIENTS TABLE | R1: TABLE 3: PROJECT EQUATIONS
A2: Type | B2: Equation | C2: Variable | D2: Estimate | E2: Std. Error | F2: t value | G2: Pr(>|t|) | H2: R2 | I2: pseudoR2 | J2: ssiz | K2: scal | L2: stde | M2: mult0 | N2: RMSE | O2: RMSEAll
A3: Non-Powered Dam (NPD) | B3: NPD1 | C3: (Intercept) | D3: 1.374427074 | E3: 0.7035396553 | F3: 1.953588634 | G3: 0.0514246251 | H3: 0.8518529846 | I3: 0.8560359591 | J3: 426 | K3: 1.26435794 | L3: 0.495102428 | M3: 0.7711860908 | N3: 51787.17537 | O3: 51787.17537 | R3: Project Types | S3: Model Equation
A4: Non-Powered Dam (NPD) | B4: NPD1 | C4: lgEFlow | D4: 0.8401574806 | E4: 0.04530865033 | F4: 18.54298185 | G4: 2.772446143e-56 | H4: 0.8518529846 | I4: 0.8560359591 | J4: 426 | K4: 1.26435794 | L4: 0.495102428 | M4: 0.7711860908 | N4: 51787.17537 | O4: 51787.17537 | R4: Non-Powered Dam (NPD) | S4: NPD3
A5: Non-Powered Dam (NPD) | B5: NPD1 | C5: lgHead | D5: 0.6791536936 | E5: 0.07920810111 | F5: 8.574295861 | G5: 2.023109107e-16 | H5: 0.8518529846 | I5: 0.8560359591 | J5: 426 | K5: 1.26435794 | L5: 0.495102428 | M5: 0.7711860908 | N5: 51787.17537 | O5: 51787.17537 | R5: New Stream Development (NSD) | S5: NSD1
A6: Non-Powered Dam (NPD) | B6: NPD1 | C6: C | D6: 0.3936109682 | E6: 0.09212253914 | F6: 4.272689093 | G6: 2.399805084e-05 | H6: 0.8518529846 | I6: 0.8560359591 | J6: 426 | K6: 1.26435794 | L6: 0.495102428 | M6: 0.7711860908 | N6: 51787.17537 | O6: 51787.17537 | R6: Canal/Conduit | S6: Canal3
A7: Non-Powered Dam (NPD) | B7: NPD1 | C7: E | D7: 0.2263221132 | E7: 0.09531401706 | F7: 2.374489295 | G7: 0.01802937782 | H7: 0.8518529846 | I7: 0.8560359591 | J7: 426 | K7: 1.26435794 | L7: 0.495102428 | M7: 0.7711860908 | N7: 51787.17537 | O7: 51787.17537 | R7: Pumped Storage Hydro (PSH) | S7: PSH4
A8: Non-Powered Dam (NPD) | B8: NPD1 | C8: Hd30 | D8: -0.2345911562 | E8: 0.176488164 | F8: -1.329217501 | G8: 0.1845100188 | H8: 0.8518529846 | I8: 0.8560359591 | J8: 426 | K8: 1.26435794 | L8: 0.495102428 | M8: 0.7711860908 | N8: 51787.17537 | O8: 51787.17537 | R8: Capacity Expansion | S8: CXP1
A9: Non-Powered Dam (NPD) | B9: NPD1 | C9: Hd60 | D9: -0.2667148324 | E9: 0.1294855607 | F9: -2.059803663 | G9: 0.04004344018 | H9: 0.8518529846 | I9: 0.8560359591 | J9: 426 | K9: 1.26435794 | L9: 0.495102428 | M9: 0.7711860908 | N9: 51787.17537 | O9: 51787.17537 | R9: Generator Rewind | S9: GRW1
A10: Non-Powered Dam (NPD) | B10: NPD1 | C10: Hd100 | D10: -0.1694311178 | E10: 0.1085577649 | F10: -1.560746189 | G10: 0.119349563 | H10: 0.8518529846 | I10: 0.8560359591 | J10: 426 | K10: 1.26435794 | L10: 0.495102428 | M10: 0.7711860908 | N10: 51787.17537 | O10: 51787.17537 | R10: Existing Plant (O&M) | S10: O&M
A11: Non-Powered Dam (NPD) | B11: NPD1 | C11: Cap1 | D11: -0.257145926 | E11: 0.2365100374 | F11: -1.08725164 | G11: 0.2775597307 | H11: 0.8518529846 | I11: 0.8560359591 | J11: 426 | K11: 1.26435794 | L11: 0.495102428 | M11: 0.7711860908 | N11: 51787.17537 | O11: 51787.17537 | R11: Click the "Model Equation" column cells to select model
A12: Non-Powered Dam (NPD) | B12: NPD1 | C12: Cap10 | D12: -0.2903253972 | E12: 0.1439534752 | F12: -2.016800198 | G12: 0.04436303418 | H12: 0.8518529846 | I12: 0.8560359591 | J12: 426 | K12: 1.26435794 | L12: 0.495102428 | M12: 0.7711860908 | N12: 51787.17537 | O12: 51787.17537 | R12: See "Read_Me" sheet for more information
A13: Non-Powered Dam (NPD) | B13: NPD1 | C13: Cap30 | D13: -0.2309555543 | E13: 0.1080845052 | F13: -2.1368054 | G13: 0.03320082677 | H13: 0.8518529846 | I13: 0.8560359591 | J13: 426 | K13: 1.26435794 | L13: 0.495102428 | M13: 0.7711860908 | N13: 51787.17537 | O13: 51787.17537 | R13: DO NOT CHANGE OR MOVE TABLE
A14: Non-Powered Dam (NPD) | B14: NPD1 | C14: dmy40 | D14: 0.3887205509 | E14: 0.08570722241 | F14: 4.535446838 | G14: 7.54350455e-06 | H14: 0.8518529846 | I14: 0.8560359591 | J14: 426 | K14: 1.26435794 | L14: 0.495102428 | M14: 0.7711860908 | N14: 51787.17537 | O14: 51787.17537
A15: Non-Powered Dam (NPD) | B15: NPD1 | C15: dmy40x | D15: 0.5243473931 | E15: 0.0644931724 | F15: 8.130277572 | G15: 5.045651306e-15 | H15: 0.8518529846 | I15: 0.8560359591 | J15: 426 | K15: 1.26435794 | L15: 0.495102428 | M15: 0.7711860908 | N15: 51787.17537 | O15: 51787.17537
A16: Non-Powered Dam (NPD) | B16: NPD2 | C16: (Intercept) | D16: 2.233648819 | E16: 1.160007747 | F16: 1.925546468 | G16: 0.05554463696 | H16: 0.8102533148 | I16: 0.8199163405 | J16: 217 | K16: 1.287429212 | L16: 0.4942104819 | M16: 0.9754314 | N16: 48649.70441 | O16: 52877.32429
A17: Non-Powered Dam (NPD) | B17: NPD2 | C17: lgEFlow | D17: 0.7724469415 | E17: 0.07795683982 | F17: 9.908648725 | G17: 3.684381864e-19 | H17: 0.8102533148 | I17: 0.8199163405 | J17: 217 | K17: 1.287429212 | L17: 0.4942104819 | M17: 0.9754314 | N17: 48649.70441 | O17: 52877.32429 | R17: Model Variable Definitions | S17: Variable
A18: Non-Powered Dam (NPD) | B18: NPD2 | C18: lgHead | D18: 0.6112731938 | E18: 0.1232851461 | F18: 4.958206345 | G18: 1.489188247e-06 | H18: 0.8102533148 | I18: 0.8199163405 | J18: 217 | K18: 1.287429212 | L18: 0.4942104819 | M18: 0.9754314 | N18: 48649.70441 | O18: 52877.32429 | R18: Estimated Flow (cfs) | S18: Eflow
A19: Non-Powered Dam (NPD) | B19: NPD2 | C19: C | D19: 0.6304246033 | E19: 0.1119825422 | F19: 5.629668614 | G19: 5.891471793e-08 | H19: 0.8102533148 | I19: 0.8199163405 | J19: 217 | K19: 1.287429212 | L19: 0.4942104819 | M19: 0.9754314 | N19: 48649.70441 | O19: 52877.32429 | R19: <= 1MW Capacity Indicator | S19: Cap1
A20: Non-Powered Dam (NPD) | B20: NPD2 | C20: E | D20: 0.2385592712 | E20: 0.1252604344 | F20: 1.904506179 | G20: 0.05824438005 | H20: 0.8102533148 | I20: 0.8199163405 | J20: 217 | K20: 1.287429212 | L20: 0.4942104819 | M20: 0.9754314 | N20: 48649.70441 | O20: 52877.32429 | R20: >1MW & <= 10MW Capacity Indicator | S20: Cap10
A21: Non-Powered Dam (NPD) | B21: NPD2 | C21: Hd30 | D21: -0.262368704 | E21: 0.2533378563 | F21: -1.035647446 | G21: 0.30158676 | H21: 0.8102533148 | I21: 0.8199163405 | J21: 217 | K21: 1.287429212 | L21: 0.4942104819 | M21: 0.9754314 | N21: 48649.70441 | O21: 52877.32429 | R21: >10MW & <= 30MW Capacity Indicator | S21: Cap30
A22: Non-Powered Dam (NPD) | B22: NPD2 | C22: Hd60 | D22: -0.1902176467 | E22: 0.1795177476 | F22: -1.059603573 | G22: 0.2905718458 | H22: 0.8102533148 | I22: 0.8199163405 | J22: 217 | K22: 1.287429212 | L22: 0.4942104819 | M22: 0.9754314 | N22: 48649.70441 | O22: 52877.32429 | R22: >30MW & <= 100MW Capacity Indicator | S22: Cap100
A23: Non-Powered Dam (NPD) | B23: NPD2 | C23: Hd100 | D23: -0.309438621 | E23: 0.1571792836 | F23: -1.968698507 | G23: 0.05033535663 | H23: 0.8102533148 | I23: 0.8199163405 | J23: 217 | K23: 1.287429212 | L23: 0.4942104819 | M23: 0.9754314 | N23: 48649.70441 | O23: 52877.32429 | R23: <= 1MW Added Capacity Indicator | S23: addCap1
A24: Non-Powered Dam (NPD) | B24: NPD2 | C24: Cap1 | D24: -0.7161857673 | E24: 0.5364003789 | F24: -1.335170137 | G24: 0.1833014013 | H24: 0.8102533148 | I24: 0.8199163405 | J24: 217 | K24: 1.287429212 | L24: 0.4942104819 | M24: 0.9754314 | N24: 48649.70441 | O24: 52877.32429 | R24: >1MW & <= 10MW Added Capacity Indicator | S24: addCap10
A25: Non-Powered Dam (NPD) | B25: NPD2 | C25: Cap10 | D25: -0.3605053099 | E25: 0.2092372047 | F25: -1.722950325 | G25: 0.08640546237 | H25: 0.8102533148 | I25: 0.8199163405 | J25: 217 | K25: 1.287429212 | L25: 0.4942104819 | M25: 0.9754314 | N25: 48649.70441 | O25: 52877.32429 | R25: >10MW & <= 30MW Added Capacity Indicator | S25: addCap30
A26: Non-Powered Dam (NPD) | B26: NPD2 | C26: Cap30 | D26: -0.3242797324 | E26: 0.1384295609 | F26: -2.342561302 | G26: 0.02011060998 | H26: 0.8102533148 | I26: 0.8199163405 | J26: 217 | K26: 1.287429212 | L26: 0.4942104819 | M26: 0.9754314 | N26: 48649.70441 | O26: 52877.32429 | R26: <= 30ft Head Indicator | S26: Hd30
A27: Non-Powered Dam (NPD) | B27: NPD2 | C27: dmy40 | D27: 0.234389232 | E27: 0.2006760055 | F27: 1.167998294 | G27: 0.2441640485 | H27: 0.8102533148 | I27: 0.8199163405 | J27: 217 | K27: 1.287429212 | L27: 0.4942104819 | M27: 0.9754314 | N27: 48649.70441 | O27: 52877.32429 | R27: >30ft & <= 60ft Head Indicator | S27: Hd60
A28: Non-Powered Dam (NPD) | B28: NPD3 | C28: (Intercept) | D28: 0.7014214417 | E28: 0.6471287747 | F28: 1.083897779 | G28: 0.2790597653 | H28: 0.8767799288 | I28: 0.8803515251 | J28: 415 | K28: 1.26550518 | L28: 0.4496474993 | M28: 0.7968527913 | N28: 49657.9845 | O28: 51199.83868 | R28: >60ft & <= 100ft Head Indicator | S28: Hd100
A29: Non-Powered Dam (NPD) | B29: NPD3 | C29: lgEFlow | D29: 0.8767388638 | E29: 0.04176584539 | F29: 20.99176625 | G29: 1.359131714e-66 | H29: 0.8767799288 | I29: 0.8803515251 | J29: 415 | K29: 1.26550518 | L29: 0.4496474993 | M29: 0.7968527913 | N29: 49657.9845 | O29: 51199.83868 | R29: (2021 minus Year)+1 | S29: tyr
A30: Non-Powered Dam (NPD) | B30: NPD3 | C30: lgHead | D30: 0.7442310757 | E30: 0.07296902732 | F30: 10.19927362 | G30: 7.077053689e-22 | H30: 0.8767799288 | I30: 0.8803515251 | J30: 415 | K30: 1.26550518 | L30: 0.4496474993 | M30: 0.7968527913 | N30: 49657.9845 | O30: 51199.83868 | R30: 40 year | S30: dmy40
A31: Non-Powered Dam (NPD) | B31: NPD3 | C31: C | D31: 0.4140144515 | E31: 0.08383403771 | F31: 4.938500671 | G31: 1.156475078e-06 | H31: 0.8767799288 | I31: 0.8803515251 | J31: 415 | K31: 1.26550518 | L31: 0.4496474993 | M31: 0.7968527913 | N31: 49657.9845 | O31: 51199.83868 | R31: >40 years | S31: dmy40x
A32: Non-Powered Dam (NPD) | B32: NPD3 | C32: E | D32: 0.1755431096 | E32: 0.08733303393 | F32: 2.010042497 | G32: 0.04509428722 | H32: 0.8767799288 | I32: 0.8803515251 | J32: 415 | K32: 1.26550518 | L32: 0.4496474993 | M32: 0.7968527913 | N32: 49657.9845 | O32: 51199.83868 | R32: Intercept Term | S32: (Intercept)
A33: Non-Powered Dam (NPD) | B33: NPD3 | C33: Hd30 | D33: -0.1251064253 | E33: 0.1622102383 | F33: -0.7712609672 | G33: 0.4410053527 | H33: 0.8767799288 | I33: 0.8803515251 | J33: 415 | K33: 1.26550518 | L33: 0.4496474993 | M33: 0.7968527913 | N33: 49657.9845 | O33: 51199.83868 | R33: Nat Log of Capacity | S33: lgCapacity
A34: Non-Powered Dam (NPD) | B34: NPD3 | C34: Hd60 | D34: -0.1759411873 | E34: 0.1190891899 | F34: -1.477390075 | G34: 0.1403540864 | H34: 0.8767799288 | I34: 0.8803515251 | J34: 415 | K34: 1.26550518 | L34: 0.4496474993 | M34: 0.7968527913 | N34: 49657.9845 | O34: 51199.83868 | R34: Nat Log of Added Capacity | S34: lgAdded_Capacity
A35: Non-Powered Dam (NPD) | B35: NPD3 | C35: Hd100 | D35: -0.1276239961 | E35: 0.1002333657 | F35: -1.273268589 | G35: 0.2036585273 | H35: 0.8767799288 | I35: 0.8803515251 | J35: 415 | K35: 1.26550518 | L35: 0.4496474993 | M35: 0.7968527913 | N35: 49657.9845 | O35: 51199.83868 | R35: Nat Log of Head | S35: lgHead
A36: Non-Powered Dam (NPD) | B36: NPD3 | C36: Cap1 | D36: -0.2228361462 | E36: 0.2168078112 | F36: -1.027804971 | G36: 0.304659598 | H36: 0.8767799288 | I36: 0.8803515251 | J36: 415 | K36: 1.26550518 | L36: 0.4496474993 | M36: 0.7968527913 | N36: 49657.9845 | O36: 51199.83868 | R36: Nat Log of Eflow | S36: lgEFlow
A37: Non-Powered Dam (NPD) | B37: NPD3 | C37: Cap10 | D37: -0.1918834271 | E37: 0.1319214257 | F37: -1.454528149 | G37: 0.1465802651 | H37: 0.8767799288 | I37: 0.8803515251 | J37: 415 | K37: 1.26550518 | L37: 0.4496474993 | M37: 0.7968527913 | N37: 49657.9845 | O37: 51199.83868 | R37: Nat Log of tyr | S37: lgtyr
A38: Non-Powered Dam (NPD) | B38: NPD3 | C38: Cap30 | D38: -0.2150960031 | E38: 0.09863159088 | F38: -2.180802329 | G38: 0.02977709591 | H38: 0.8767799288 | I38: 0.8803515251 | J38: 415 | K38: 1.26550518 | L38: 0.4496474993 | M38: 0.7968527913 | N38: 49657.9845 | O38: 51199.83868 | R38: Construction (Yes=1; No=0) | S38: C
A39: Non-Powered Dam (NPD) | B39: NPD3 | C39: dmy40 | D39: 0.3351375983 | E39: 0.07855730432 | F39: 4.266154513 | G39: 2.482286568e-05 | H39: 0.8767799288 | I39: 0.8803515251 | J39: 415 | K39: 1.26550518 | L39: 0.4496474993 | M39: 0.7968527913 | N39: 49657.9845 | O39: 51199.83868 | R39: Engineering (Yes=1; No=0) | S39: E
A40: Non-Powered Dam (NPD) | B40: NPD3 | C40: dmy40x | D40: 0.5182001459 | E40: 0.05930931127 | F40: 8.737247741 | G40: 6.531516046e-17 | H40: 0.8767799288 | I40: 0.8803515251 | J40: 415 | K40: 1.26550518 | L40: 0.4496474993 | M40: 0.7968527913 | N40: 49657.9845 | O40: 51199.83868 | R40: Plant Capacity Factor | S40: capFactor
A41: Non-Powered Dam (NPD) | B41: NPD4 | C41: (Intercept) | D41: 0.3464051146 | E41: 0.6328166206 | F41: 0.5474020488 | G41: 0.5844238961 | H41: 0.8838856609 | I41: 0.8874401815 | J41: 393 | K41: 1.262086749 | L41: 0.4277685185 | M41: 0.8386141351 | N41: 49618.04458 | O41: 53352.05529 | R41: Plant age (years) divided by 20 | S41: I(age/20)
A42: Non-Powered Dam (NPD) | B42: NPD4 | C42: lgEFlow | D42: 0.8839782427 | E42: 0.04092886901 | F42: 21.59791522 | G42: 4.497029983e-68 | H42: 0.8838856609 | I42: 0.8874401815 | J42: 393 | K42: 1.262086749 | L42: 0.4277685185 | M42: 0.8386141351 | N42: 49618.04458 | O42: 53352.05529 | R42: Square of Plant age (years) divided by 20 | S42: I((age/20)^2)
A43: Non-Powered Dam (NPD) | B43: NPD4 | C43: lgHead | D43: 0.7970923659 | E43: 0.07108700574 | F43: 11.21291237 | G43: 2.113764579e-25 | H43: 0.8838856609 | I43: 0.8874401815 | J43: 393 | K43: 1.262086749 | L43: 0.4277685185 | M43: 0.8386141351 | N43: 49618.04458 | O43: 53352.05529 | R43: Major Expense Indicator (>$500/kW & <=$1000/kW) | S43: majExp500x | T43: Not included for calculations
A44: Non-Powered Dam (NPD) | B44: NPD4 | C44: C | D44: 0.3508077054 | E44: 0.0822834285 | F44: 4.263406518 | G44: 2.54307132e-05 | H44: 0.8838856609 | I44: 0.8874401815 | J44: 393 | K44: 1.262086749 | L44: 0.4277685185 | M44: 0.8386141351 | N44: 49618.04458 | O44: 53352.05529 | R44: Major Expense Indicator (>$1000/kW) | S44: majExp1000x | T44: Not included for calculations
A45: Non-Powered Dam (NPD) | B45: NPD4 | C45: E | D45: 0.1720311437 | E45: 0.0847990927 | F45: 2.028690852 | G45: 0.0431866345 | H45: 0.8838856609 | I45: 0.8874401815 | J45: 393 | K45: 1.262086749 | L45: 0.4277685185 | M45: 0.8386141351 | N45: 49618.04458 | O45: 53352.05529 | R45: NOTE: Eflow is calculated from Capacity & Head using the equation below:
A46: Non-Powered Dam (NPD) | B46: NPD4 | C46: Hd30 | D46: -0.03917507211 | E46: 0.1573879498 | F46: -0.248907697 | G46: 0.8035666551 | H46: 0.8838856609 | I46: 0.8874401815 | J46: 393 | K46: 1.262086749 | L46: 0.4277685185 | M46: 0.8386141351 | N46: 49618.04458 | O46: 53352.05529 | R46: 3.28084*35.3147*1000*Capacity/(0.9*9.81*Head
A47: Non-Powered Dam (NPD) | B47: NPD4 | C47: Hd60 | D47: -0.09094270835 | E47: 0.1154139528 | F47: -0.7879697916 | G47: 0.4312056202 | H47: 0.8838856609 | I47: 0.8874401815 | J47: 393 | K47: 1.262086749 | L47: 0.4277685185 | M47: 0.8386141351 | N47: 49618.04458 | O47: 53352.05529
A48: Non-Powered Dam (NPD) | B48: NPD4 | C48: Hd100 | D48: -0.08396499564 | E48: 0.09732192669 | F48: -0.8627551725 | G48: 0.3888162526 | H48: 0.8838856609 | I48: 0.8874401815 | J48: 393 | K48: 1.262086749 | L48: 0.4277685185 | M48: 0.8386141351 | N48: 49618.04458 | O48: 53352.05529 | R48: Column Description | S48: Column Name
A49: Non-Powered Dam (NPD) | B49: NPD4 | C49: Cap1 | D49: -0.2330995059 | E49: 0.2142395039 | F49: -1.088032327 | G49: 0.2772704283 | H49: 0.8838856609 | I49: 0.8874401815 | J49: 393 | K49: 1.262086749 | L49: 0.4277685185 | M49: 0.8386141351 | N49: 49618.04458 | O49: 53352.05529 | R49: Project Category | S49: Type
A50: Non-Powered Dam (NPD) | B50: NPD4 | C50: Cap10 | D50: -0.1465206085 | E50: 0.1287094475 | F50: -1.138382701 | G50: 0.2556778988 | H50: 0.8838856609 | I50: 0.8874401815 | J50: 393 | K50: 1.262086749 | L50: 0.4277685185 | M50: 0.8386141351 | N50: 49618.04458 | O50: 53352.05529 | R50: Equation identifier | S50: Equation
A51: Non-Powered Dam (NPD) | B51: NPD4 | C51: Cap30 | D51: -0.1837627859 | E51: 0.09592315936 | F51: -1.915729081 | G51: 0.05614973153 | H51: 0.8838856609 | I51: 0.8874401815 | J51: 393 | K51: 1.262086749 | L51: 0.4277685185 | M51: 0.8386141351 | N51: 49618.04458 | O51: 53352.05529 | R51: Variable identifier (see above table) | S51: Variable
A52: Non-Powered Dam (NPD) | B52: NPD4 | C52: dmy40 | D52: 0.3220366293 | E52: 0.07599054864 | F52: 4.237851089 | G52: 2.835668957e-05 | H52: 0.8838856609 | I52: 0.8874401815 | J52: 393 | K52: 1.262086749 | L52: 0.4277685185 | M52: 0.8386141351 | N52: 49618.04458 | O52: 53352.05529 | R52: Estimated model parameter | S52: Estimate
A53: Non-Powered Dam (NPD) | B53: NPD4 | C53: dmy40x | D53: 0.4704042301 | E53: 0.05785682479 | F53: 8.13048818 | G53: 6.108338839e-15 | H53: 0.8838856609 | I53: 0.8874401815 | J53: 393 | K53: 1.262086749 | L53: 0.4277685185 | M53: 0.8386141351 | N53: 49618.04458 | O53: 53352.05529 | R53: Standard error of parameter | S53: Std. Error
A54: New Stream Development (NSD) | B54: NSD1 | C54: (Intercept) | D54: -4.611981737 | E54: 1.713946926 | F54: -2.690854465 | G54: 0.008715779406 | H54: 0.890772328 | I54: 0.9053360176 | J54: 91 | K54: 1.538123922 | L54: 0.5847826195 | M54: 0.6410090615 | N54: 409076.245 | O54: 409076.245 | R54: T-Statistics value of parameter | S54: t value
A55: New Stream Development (NSD) | B55: NSD1 | C55: lgEFlow | D55: 1.182205667 | E55: 0.1099999365 | F55: 10.74733045 | G55: 4.716686725e-17 | H55: 0.890772328 | I55: 0.9053360176 | J55: 91 | K55: 1.538123922 | L55: 0.5847826195 | M55: 0.6410090615 | N55: 409076.245 | O55: 409076.245 | R55: Probability Statistics of parameter | S55: Pr(>|t|)
A56: New Stream Development (NSD) | B56: NSD1 | C56: lgHead | D56: 1.27362577 | E56: 0.1468033083 | F56: 8.675729347 | G56: 4.59740452e-13 | H56: 0.890772328 | I56: 0.9053360176 | J56: 91 | K56: 1.538123922 | L56: 0.5847826195 | M56: 0.6410090615 | N56: 409076.245 | O56: 409076.245 | R56: Default model R-Squared (<=100%) | S56: R2
A57: New Stream Development (NSD) | B57: NSD1 | C57: C | D57: 0.0739243468 | E57: 0.1589415462 | F57: 0.4651039868 | G57: 0.6431528718 | H57: 0.890772328 | I57: 0.9053360176 | J57: 91 | K57: 1.538123922 | L57: 0.5847826195 | M57: 0.6410090615 | N57: 409076.245 | O57: 409076.245 | R57: Generalized model R-Squared (<=100%) | S57: pseudoR2
A58: New Stream Development (NSD) | B58: NSD1 | C58: E | D58: -0.2362726354 | E58: 0.1874694962 | F58: -1.260325761 | G58: 0.2113093008 | H58: 0.890772328 | I58: 0.9053360176 | J58: 91 | K58: 1.538123922 | L58: 0.5847826195 | M58: 0.6410090615 | N58: 409076.245 | O58: 409076.245 | R58: Number of data points in model | S58: ssiz
A59: New Stream Development (NSD) | B59: NSD1 | C59: Hd30 | D59: 0.7376169084 | E59: 0.3561706986 | F59: 2.0709646 | G59: 0.0416696056 | H59: 0.890772328 | I59: 0.9053360176 | J59: 91 | K59: 1.538123922 | L59: 0.5847826195 | M59: 0.6410090615 | N59: 409076.245 | O59: 409076.245 | R59: Bias-correction scaling value for log-log model | S59: scal
A60: New Stream Development (NSD) | B60: NSD1 | C60: Hd60 | D60: 0.3317107069 | E60: 0.3264663731 | F60: 1.016063933 | G60: 0.3127403293 | H60: 0.890772328 | I60: 0.9053360176 | J60: 91 | K60: 1.538123922 | L60: 0.5847826195 | M60: 0.6410090615 | N60: 409076.245 | O60: 409076.245 | R60: Alternative model scaling value for log-log model | S60: mult0
A61: New Stream Development (NSD) | B61: NSD1 | C61: Hd100 | D61: 0.1567456263 | E61: 0.3036090266 | F61: 0.5162745918 | G61: 0.6071232101 | H61: 0.890772328 | I61: 0.9053360176 | J61: 91 | K61: 1.538123922 | L61: 0.5847826195 | M61: 0.6410090615 | N61: 409076.245 | O61: 409076.245 | R61: Model root-mean squared error | S61: RMSE
A62: New Stream Development (NSD) | B62: NSD1 | C62: Cap1 | D62: 1.362956609 | E62: 0.6212090125 | F62: 2.194038691 | G62: 0.03120939274 | H62: 0.890772328 | I62: 0.9053360176 | J62: 91 | K62: 1.538123922 | L62: 0.5847826195 | M62: 0.6410090615 | N62: 409076.245 | O62: 409076.245 | R62: Model root means squared error applied to all valid data | S62: RMSEAll
A63: New Stream Development (NSD) | B63: NSD1 | C63: Cap10 | D63: 0.7653635101 | E63: 0.3861711086 | F63: 1.981928459 | G63: 0.05100993827 | H63: 0.890772328 | I63: 0.9053360176 | J63: 91 | K63: 1.538123922 | L63: 0.5847826195 | M63: 0.6410090615 | N63: 409076.245 | O63: 409076.245
A64: New Stream Development (NSD) | B64: NSD1 | C64: Cap30 | D64: 0.5908393014 | E64: 0.2627325525 | F64: 2.248824121 | G64: 0.02734525411 | H64: 0.890772328 | I64: 0.9053360176 | J64: 91 | K64: 1.538123922 | L64: 0.5847826195 | M64: 0.6410090615 | N64: 409076.245 | O64: 409076.245
A65: New Stream Development (NSD) | B65: NSD1 | C65: dmy40 | D65: -0.03391692749 | E65: 0.2240802543 | F65: -0.1513606257 | G65: 0.8800820367 | H65: 0.890772328 | I65: 0.9053360176 | J65: 91 | K65: 1.538123922 | L65: 0.5847826195 | M65: 0.6410090615 | N65: 409076.245 | O65: 409076.245
A66: New Stream Development (NSD) | B66: NSD1 | C66: dmy40x | D66: 0.9508858385 | E66: 0.1933269752 | F66: 4.918536782 | G66: 4.739740404e-06 | H66: 0.890772328 | I66: 0.9053360176 | J66: 91 | K66: 1.538123922 | L66: 0.5847826195 | M66: 0.6410090615 | N66: 409076.245 | O66: 409076.245
A67: New Stream Development (NSD) | B67: NSD2 | C67: (Intercept) | D67: -5.38815072 | E67: 1.877631701 | F67: -2.869652615 | G67: 0.005966426826 | H67: 0.9104123978 | I67: 0.9263069723 | J67: 63 | K67: 1.235721342 | L67: 0.4983615244 | M67: 0.9049838323 | N67: 537215.5619 | O67: 451451.2091
A68: New Stream Development (NSD) | B68: NSD2 | C68: lgEFlow | D68: 1.250631027 | E68: 0.1204619464 | F68: 10.38195932 | G68: 3.537907637e-14 | H68: 0.9104123978 | I68: 0.9263069723 | J68: 63 | K68: 1.235721342 | L68: 0.4983615244 | M68: 0.9049838323 | N68: 537215.5619 | O68: 451451.2091
A69: New Stream Development (NSD) | B69: NSD2 | C69: lgHead | D69: 1.31205869 | E69: 0.1564672543 | F69: 8.385516161 | G69: 3.645399155e-11 | H69: 0.9104123978 | I69: 0.9263069723 | J69: 63 | K69: 1.235721342 | L69: 0.4983615244 | M69: 0.9049838323 | N69: 537215.5619 | O69: 451451.2091
A70: New Stream Development (NSD) | B70: NSD2 | C70: C | D70: 0.174035818 | E70: 0.1491266132 | F70: 1.167033934 | G70: 0.2486244663 | H70: 0.9104123978 | I70: 0.9263069723 | J70: 63 | K70: 1.235721342 | L70: 0.4983615244 | M70: 0.9049838323 | N70: 537215.5619 | O70: 451451.2091
A71: New Stream Development (NSD) | B71: NSD2 | C71: E | D71: 0.445854423 | E71: 0.2779520507 | F71: 1.604069558 | G71: 0.1148743987 | H71: 0.9104123978 | I71: 0.9263069723 | J71: 63 | K71: 1.235721342 | L71: 0.4983615244 | M71: 0.9049838323 | N71: 537215.5619 | O71: 451451.2091
A72: New Stream Development (NSD) | B72: NSD2 | C72: Hd30 | D72: -0.06069438845 | E72: 0.3981949072 | F72: -0.152423819 | G72: 0.8794540996 | H72: 0.9104123978 | I72: 0.9263069723 | J72: 63 | K72: 1.235721342 | L72: 0.4983615244 | M72: 0.9049838323 | N72: 537215.5619 | O72: 451451.2091
A73: New Stream Development (NSD) | B73: NSD2 | C73: Hd60 | D73: 0.470469092 | E73: 0.3947197166 | F73: 1.191906743 | G73: 0.2388146862 | H73: 0.9104123978 | I73: 0.9263069723 | J73: 63 | K73: 1.235721342 | L73: 0.4983615244 | M73: 0.9049838323 | N73: 537215.5619 | O73: 451451.2091
A74: New Stream Development (NSD) | B74: NSD2 | C74: Hd100 | D74: -0.1030197523 | E74: 0.3264615318 | F74: -0.3155647519 | G74: 0.7536206295 | H74: 0.9104123978 | I74: 0.9263069723 | J74: 63 | K74: 1.235721342 | L74: 0.4983615244 | M74: 0.9049838323 | N74: 537215.5619 | O74: 451451.2091
A75: New Stream Development (NSD) | B75: NSD2 | C75: Cap1 | D75: 1.32517465 | E75: 0.6308303357 | F75: 2.10068314 | G75: 0.04063199401 | H75: 0.9104123978 | I75: 0.9263069723 | J75: 63 | K75: 1.235721342 | L75: 0.4983615244 | M75: 0.9049838323 | N75: 537215.5619 | O75: 451451.2091
A76: New Stream Development (NSD) | B76: NSD2 | C76: Cap10 | D76: 0.8882222158 | E76: 0.4059425683 | F76: 2.188048963 | G76: 0.03327289826 | H76: 0.9104123978 | I76: 0.9263069723 | J76: 63 | K76: 1.235721342 | L76: 0.4983615244 | M76: 0.9049838323 | N76: 537215.5619 | O76: 451451.2091
A77: New Stream Development (NSD) | B77: NSD2 | C77: Cap30 | D77: 0.7204882754 | E77: 0.2693612999 | F77: 2.674802489 | G77: 0.01002402404 | H77: 0.9104123978 | I77: 0.9263069723 | J77: 63 | K77: 1.235721342 | L77: 0.4983615244 | M77: 0.9049838323 | N77: 537215.5619 | O77: 451451.2091
A78: New Stream Development (NSD) | B78: NSD2 | C78: dmy40 | D78: -0.5351200825 | E78: 0.3816779991 | F78: -1.402019723 | G78: 0.1669667143 | H78: 0.9104123978 | I78: 0.9263069723 | J78: 63 | K78: 1.235721342 | L78: 0.4983615244 | M78: 0.9049838323 | N78: 537215.5619 | O78: 451451.2091
A79: New Stream Development (NSD) | B79: NSD3 | C79: (Intercept) | D79: -5.210452579 | E79: 1.459521356 | F79: -3.569973512 | G79: 0.0006405560625 | H79: 0.923947011 | I79: 0.9348117237 | J79: 85 | K79: 1.369739526 | L79: 0.4865708431 | M79: 0.7579274394 | N79: 445288.8955 | O79: 431527.0161
A80: New Stream Development (NSD) | B80: NSD3 | C80: lgEFlow | D80: 1.22866641 | E80: 0.09330264675 | F80: 13.1686126 | G80: 7.455351135e-21 | H80: 0.923947011 | I80: 0.9348117237 | J80: 85 | K80: 1.369739526 | L80: 0.4865708431 | M80: 0.7579274394 | N80: 445288.8955 | O80: 431527.0161
A81: New Stream Development (NSD) | B81: NSD3 | C81: lgHead | D81: 1.307717255 | E81: 0.1247961554 | F81: 10.47882646 | G81: 3.940754193e-16 | H81: 0.923947011 | I81: 0.9348117237 | J81: 85 | K81: 1.369739526 | L81: 0.4865708431 | M81: 0.7579274394 | N81: 445288.8955 | O81: 431527.0161
A82: New Stream Development (NSD) | B82: NSD3 | C82: C | D82: 0.1277232013 | E82: 0.132855981 | F82: 0.9613658366 | G82: 0.3395858078 | H82: 0.923947011 | I82: 0.9348117237 | J82: 85 | K82: 1.369739526 | L82: 0.4865708431 | M82: 0.7579274394 | N82: 445288.8955 | O82: 431527.0161
A83: New Stream Development (NSD) | B83: NSD3 | C83: E | D83: -0.08816678374 | E83: 0.1701112479 | F83: -0.5182889716 | G83: 0.6058458022 | H83: 0.923947011 | I83: 0.9348117237 | J83: 85 | K83: 1.369739526 | L83: 0.4865708431 | M83: 0.7579274394 | N83: 445288.8955 | O83: 431527.0161
A84: New Stream Development (NSD) | B84: NSD3 | C84: Hd30 | D84: 0.3592286504 | E84: 0.3070590171 | F84: 1.169900998 | G84: 0.2458989133 | H84: 0.923947011 | I84: 0.9348117237 | J84: 85 | K84: 1.369739526 | L84: 0.4865708431 | M84: 0.7579274394 | N84: 445288.8955 | O84: 431527.0161
A85: New Stream Development (NSD) | B85: NSD3 | C85: Hd60 | D85: 0.1252332014 | E85: 0.2989948999 | F85: 0.418847283 | G85: 0.6765746204 | H85: 0.923947011 | I85: 0.9348117237 | J85: 85 | K85: 1.369739526 | L85: 0.4865708431 | M85: 0.7579274394 | N85: 445288.8955 | O85: 431527.0161
A86: New Stream Development (NSD) | B86: NSD3 | C86: Hd100 | D86: 0.2340550916 | E86: 0.2542709233 | F86: 0.9204949138 | G86: 0.3603880968 | H86: 0.923947011 | I86: 0.9348117237 | J86: 85 | K86: 1.369739526 | L86: 0.4865708431 | M86: 0.7579274394 | N86: 445288.8955 | O86: 431527.0161
A87: New Stream Development (NSD) | B87: NSD3 | C87: Cap1 | D87: 1.366812748 | E87: 0.5364129359 | F87: 2.54806075 | G87: 0.01296662613 | H87: 0.923947011 | I87: 0.9348117237 | J87: 85 | K87: 1.369739526 | L87: 0.4865708431 | M87: 0.7579274394 | N87: 445288.8955 | O87: 431527.0161
A88: New Stream Development (NSD) | B88: NSD3 | C88: Cap10 | D88: 0.9140952328 | E88: 0.3298336458 | F88: 2.771382618 | G88: 0.007098743986 | H88: 0.923947011 | I88: 0.9348117237 | J88: 85 | K88: 1.369739526 | L88: 0.4865708431 | M88: 0.7579274394 | N88: 445288.8955 | O88: 431527.0161
A89: New Stream Development (NSD) | B89: NSD3 | C89: Cap30 | D89: 0.6845408199 | E89: 0.2222473684 | F89: 3.080085154 | G89: 0.002929490707 | H89: 0.923947011 | I89: 0.9348117237 | J89: 85 | K89: 1.369739526 | L89: 0.4865708431 | M89: 0.7579274394 | N89: 445288.8955 | O89: 431527.0161
A90: New Stream Development (NSD) | B90: NSD3 | C90: dmy40 | D90: -0.0004749454263 | E90: 0.1866460463 | F90: -0.002544631595 | G90: 0.9979767172 | H90: 0.923947011 | I90: 0.9348117237 | J90: 85 | K90: 1.369739526 | L90: 0.4865708431 | M90: 0.7579274394 | N90: 445288.8955 | O90: 431527.0161
A91: New Stream Development (NSD) | B91: NSD3 | C91: dmy40x | D91: 0.9057334553 | E91: 0.1727005344 | F91: 5.244531862 | G91: 1.507623318e-06 | H91: 0.923947011 | I91: 0.9348117237 | J91: 85 | K91: 1.369739526 | L91: 0.4865708431 | M91: 0.7579274394 | N91: 445288.8955 | O91: 431527.0161
A92: New Stream Development (NSD) | B92: NSD4 | C92: (Intercept) | D92: -4.150324642 | E92: 1.259175652 | F92: -3.296064879 | G92: 0.001624953112 | H92: 0.9464697156 | I92: 0.9551503023 | J92: 75 | K92: 1.066390777 | L92: 0.3927338956 | M92: 1.008617305 | N92: 125968.0197 | O92: 507346.0237
A93: New Stream Development (NSD) | B93: NSD4 | C93: lgEFlow | D93: 1.15136514 | E93: 0.08114910208 | F93: 14.18826715 | G93: 3.890812511e-21 | H93: 0.9464697156 | I93: 0.9551503023 | J93: 75 | K93: 1.066390777 | L93: 0.3927338956 | M93: 1.008617305 | N93: 125968.0197 | O93: 507346.0237
A94: New Stream Development (NSD) | B94: NSD4 | C94: lgHead | D94: 1.226736074 | E94: 0.1074183664 | F94: 11.42017063 | G94: 6.880831878e-17 | H94: 0.9464697156 | I94: 0.9551503023 | J94: 75 | K94: 1.066390777 | L94: 0.3927338956 | M94: 1.008617305 | N94: 125968.0197 | O94: 507346.0237
A95: New Stream Development (NSD) | B95: NSD4 | C95: C | D95: 0.1928526738 | E95: 0.1092288887 | F95: 1.765583044 | G95: 0.0823896307 | H95: 0.9464697156 | I95: 0.9551503023 | J95: 75 | K95: 1.066390777 | L95: 0.3927338956 | M95: 1.008617305 | N95: 125968.0197 | O95: 507346.0237
A96: New Stream Development (NSD) | B96: NSD4 | C96: E | D96: 0.05252812012 | E96: 0.1531241756 | F96: 0.3430426314 | G96: 0.7327268257 | H96: 0.9464697156 | I96: 0.9551503023 | J96: 75 | K96: 1.066390777 | L96: 0.3927338956 | M96: 1.008617305 | N96: 125968.0197 | O96: 507346.0237
A97: New Stream Development (NSD) | B97: NSD4 | C97: Hd30 | D97: 0.1270241797 | E97: 0.2742665223 | F97: 0.4631413949 | G97: 0.6448846677 | H97: 0.9464697156 | I97: 0.9551503023 | J97: 75 | K97: 1.066390777 | L97: 0.3927338956 | M97: 1.008617305 | N97: 125968.0197 | O97: 507346.0237
A98: New Stream Development (NSD) | B98: NSD4 | C98: Hd60 | D98: 0.2493286033 | E98: 0.2549759021 | F98: 0.9778516372 | G98: 0.3319478976 | H98: 0.9464697156 | I98: 0.9551503023 | J98: 75 | K98: 1.066390777 | L98: 0.3927338956 | M98: 1.008617305 | N98: 125968.0197 | O98: 507346.0237
A99: New Stream Development (NSD) | B99: NSD4 | C99: Hd100 | D99: -0.4235032579 | E99: 0.2709279596 | F99: -1.563158186 | G99: 0.1231056789 | H99: 0.9464697156 | I99: 0.9551503023 | J99: 75 | K99: 1.066390777 | L99: 0.3927338956 | M99: 1.008617305 | N99: 125968.0197 | O99: 507346.0237
A100: New Stream Development (NSD) | B100: NSD4 | C100: Cap1 | D100: 0.8013446299 | E100: 0.4840085234 | F100: 1.655641566 | G100: 0.1028479289 | H100: 0.9464697156 | I100: 0.9551503023 | J100: 75 | K100: 1.066390777 | L100: 0.3927338956 | M100: 1.008617305 | N100: 125968.0197 | O100: 507346.0237
A101: New Stream Development (NSD) | B101: NSD4 | C101: Cap10 | D101: 0.7131458171 | E101: 0.2783441065 | F101: 2.562101371 | G101: 0.01284817317 | H101: 0.9464697156 | I101: 0.9551503023 | J101: 75 | K101: 1.066390777 | L101: 0.3927338956 | M101: 1.008617305 | N101: 125968.0197 | O101: 507346.0237
A102: New Stream Development (NSD) | B102: NSD4 | C102: Cap30 | D102: 0.5755816529 | E102: 0.1871434503 | F102: 3.075617405 | G102: 0.003123571982 | H102: 0.9464697156 | I102: 0.9551503023 | J102: 75 | K102: 1.066390777 | L102: 0.3927338956 | M102: 1.008617305 | N102: 125968.0197 | O102: 507346.0237
A103: New Stream Development (NSD) | B103: NSD4 | C103: dmy40 | D103: 0.009640505586 | E103: 0.1518291622 | F103: 0.06349574382 | G103: 0.9495760202 | H103: 0.9464697156 | I103: 0.9551503023 | J103: 75 | K103: 1.066390777 | L103: 0.3927338956 | M103: 1.008617305 | N103: 125968.0197 | O103: 507346.0237
A104: New Stream Development (NSD) | B104: NSD4 | C104: dmy40x | D104: 0.5594521064 | E104: 0.1666360895 | F104: 3.357328584 | G104: 0.001348866955 | H104: 0.9464697156 | I104: 0.9551503023 | J104: 75 | K104: 1.066390777 | L104: 0.3927338956 | M104: 1.008617305 | N104: 125968.0197 | O104: 507346.0237
A105: Canal/Conduit | B105: Canal1 | C105: (Intercept) | D105: 3.512325193 | E105: 1.183874003 | F105: 2.966806588 | G105: 0.003884677984 | H105: 0.8321219835 | I105: 0.852470834 | J105: 100 | K105: 1.000807372 | L105: 0.5695728104 | M105: 0.9518492184 | N105: 6778.049712 | O105: 6778.049712
A106: Canal/Conduit | B106: Canal1 | C106: lgEFlow | D106: 0.7221705024 | E106: 0.070805607 | F106: 10.1993406 | G106: 1.586448418e-16 | H106: 0.8321219835 | I106: 0.852470834 | J106: 100 | K106: 1.000807372 | L106: 0.5695728104 | M106: 0.9518492184 | N106: 6778.049712 | O106: 6778.049712
A107: Canal/Conduit | B107: Canal1 | C107: lgHead | D107: 0.7351559838 | E107: 0.1118109369 | F107: 6.574991713 | G107: 3.468535506e-09 | H107: 0.8321219835 | I107: 0.852470834 | J107: 100 | K107: 1.000807372 | L107: 0.5695728104 | M107: 0.9518492184 | N107: 6778.049712 | O107: 6778.049712
A108: Canal/Conduit | B108: Canal1 | C108: C | D108: -0.1525254704 | E108: 0.2293709466 | F108: -0.6649729299 | G108: 0.5078267369 | H108: 0.8321219835 | I108: 0.852470834 | J108: 100 | K108: 1.000807372 | L108: 0.5695728104 | M108: 0.9518492184 | N108: 6778.049712 | O108: 6778.049712
A109: Canal/Conduit | B109: Canal1 | C109: E | D109: 0.005221351568 | E109: 0.2330741839 | F109: 0.02240210169 | G109: 0.9821785048 | H109: 0.8321219835 | I109: 0.852470834 | J109: 100 | K109: 1.000807372 | L109: 0.5695728104 | M109: 0.9518492184 | N109: 6778.049712 | O109: 6778.049712
A110: Canal/Conduit | B110: Canal1 | C110: Hd30 | D110: 0.2757830209 | E110: 0.3399719217 | F110: 0.8111935233 | G110: 0.4194682542 | H110: 0.8321219835 | I110: 0.852470834 | J110: 100 | K110: 1.000807372 | L110: 0.5695728104 | M110: 0.9518492184 | N110: 6778.049712 | O110: 6778.049712
A111: Canal/Conduit | B111: Canal1 | C111: Hd60 | D111: -0.04109993731 | E111: 0.2770784846 | F111: -0.1483331965 | G111: 0.8824230839 | H111: 0.8321219835 | I111: 0.852470834 | J111: 100 | K111: 1.000807372 | L111: 0.5695728104 | M111: 0.9518492184 | N111: 6778.049712 | O111: 6778.049712
A112: Canal/Conduit | B112: Canal1 | C112: Hd100 | D112: 0.3578813067 | E112: 0.2290113753 | F112: 1.56272284 | G112: 0.1217481926 | H112: 0.8321219835 | I112: 0.852470834 | J112: 100 | K112: 1.000807372 | L112: 0.5695728104 | M112: 0.9518492184 | N112: 6778.049712 | O112: 6778.049712
A113: Canal/Conduit | B113: Canal1 | C113: Cap1 | D113: -2.066271271 | E113: 0.7596392966 | F113: -2.720068959 | G113: 0.007880095976 | H113: 0.8321219835 | I113: 0.852470834 | J113: 100 | K113: 1.000807372 | L113: 0.5695728104 | M113: 0.9518492184 | N113: 6778.049712 | O113: 6778.049712
A114: Canal/Conduit | B114: Canal1 | C114: Cap10 | D114: -1.96425831 | E114: 0.7007108436 | F114: -2.803236638 | G114: 0.006237187284 | H114: 0.8321219835 | I114: 0.852470834 | J114: 100 | K114: 1.000807372 | L114: 0.5695728104 | M114: 0.9518492184 | N114: 6778.049712 | O114: 6778.049712
A115: Canal/Conduit | B115: Canal1 | C115: Cap30 | D115: -1.591107621 | E115: 0.7833962855 | F115: -2.031037994 | G115: 0.04530369867 | H115: 0.8321219835 | I115: 0.852470834 | J115: 100 | K115: 1.000807372 | L115: 0.5695728104 | M115: 0.9518492184 | N115: 6778.049712 | O115: 6778.049712
A116: Canal/Conduit | B116: Canal1 | C116: dmy40 | D116: 0.07508104256 | E116: 0.2507670604 | F116: 0.2994055218 | G116: 0.7653447542 | H116: 0.8321219835 | I116: 0.852470834 | J116: 100 | K116: 1.000807372 | L116: 0.5695728104 | M116: 0.9518492184 | N116: 6778.049712 | O116: 6778.049712
A117: Canal/Conduit | B117: Canal1 | C117: dmy40x | D117: 0.2618652886 | E117: 0.2163870374 | F117: 1.210170867 | G117: 0.2294910937 | H117: 0.8321219835 | I117: 0.852470834 | J117: 100 | K117: 1.000807372 | L117: 0.5695728104 | M117: 0.9518492184 | N117: 6778.049712 | O117: 6778.049712
A118: Canal/Conduit | B118: Canal2 | C118: (Intercept) | D118: 3.344314471 | E118: 1.568270422 | F118: 2.132485842 | G118: 0.03822102437 | H118: 0.7429902306 | I118: 0.7842953721 | J118: 57 | K118: 0.928408954 | L118: 0.6482108436 | M118: 1.026345063 | N118: 5146.994735 | O118: 109668.1222
A119: Canal/Conduit | B119: Canal2 | C119: lgEFlow | D119: 0.6885244332 | E119: 0.1030244462 | F119: 6.683117055 | G119: 2.474189779e-08 | H119: 0.7429902306 | I119: 0.7842953721 | J119: 57 | K119: 0.928408954 | L119: 0.6482108436 | M119: 1.026345063 | N119: 5146.994735 | O119: 109668.1222
A120: Canal/Conduit | B120: Canal2 | C120: lgHead | D120: 0.5773450051 | E120: 0.1701022332 | F120: 3.394105969 | G120: 0.001407204609 | H120: 0.7429902306 | I120: 0.7842953721 | J120: 57 | K120: 0.928408954 | L120: 0.6482108436 | M120: 1.026345063 | N120: 5146.994735 | O120: 109668.1222
A121: Canal/Conduit | B121: Canal2 | C121: C | D121: -0.545177162 | E121: 0.3673001306 | F121: -1.484282516 | G121: 0.1444101149 | H121: 0.7429902306 | I121: 0.7842953721 | J121: 57 | K121: 0.928408954 | L121: 0.6482108436 | M121: 1.026345063 | N121: 5146.994735 | O121: 109668.1222
A122: Canal/Conduit | B122: Canal2 | C122: E | D122: -0.4127985446 | E122: 0.3608988122 | F122: -1.14380688 | G122: 0.2584960498 | H122: 0.7429902306 | I122: 0.7842953721 | J122: 57 | K122: 0.928408954 | L122: 0.6482108436 | M122: 1.026345063 | N122: 5146.994735 | O122: 109668.1222
A123: Canal/Conduit | B123: Canal2 | C123: Hd30 | D123: 0.2501059584 | E123: 0.4811296274 | F123: 0.5198307154 | G123: 0.6056214209 | H123: 0.7429902306 | I123: 0.7842953721 | J123: 57 | K123: 0.928408954 | L123: 0.6482108436 | M123: 1.026345063 | N123: 5146.994735 | O123: 109668.1222
A124: Canal/Conduit | B124: Canal2 | C124: Hd60 | D124: -0.0145325369 | E124: 0.4156035335 | F124: -0.03496730834 | G124: 0.9722538976 | H124: 0.7429902306 | I124: 0.7842953721 | J124: 57 | K124: 0.928408954 | L124: 0.6482108436 | M124: 1.026345063 | N124: 5146.994735 | O124: 109668.1222
A125: Canal/Conduit | B125: Canal2 | C125: Hd100 | D125: 0.4965742149 | E125: 0.327371705 | F125: 1.516851357 | G125: 0.1360020617 | H125: 0.7429902306 | I125: 0.7842953721 | J125: 57 | K125: 0.928408954 | L125: 0.6482108436 | M125: 1.026345063 | N125: 5146.994735 | O125: 109668.1222
A126: Canal/Conduit | B126: Canal2 | C126: Cap1 | D126: -0.7318820162 | E126: 0.8455521104 | F126: -0.8655670151 | G126: 0.3911245428 | H126: 0.7429902306 | I126: 0.7842953721 | J126: 57 | K126: 0.928408954 | L126: 0.6482108436 | M126: 1.026345063 | N126: 5146.994735 | O126: 109668.1222
A127: Canal/Conduit | B127: Canal2 | C127: Cap10 | D127: -0.5643024354 | E127: 0.739930232 | F127: -0.7626427615 | G127: 0.449487279 | H127: 0.7429902306 | I127: 0.7842953721 | J127: 57 | K127: 0.928408954 | L127: 0.6482108436 | M127: 1.026345063 | N127: 5146.994735 | O127: 109668.1222
A128: Canal/Conduit | B128: Canal3 | C128: (Intercept) | D128: 2.117599139 | E128: 1.072187401 | F128: 1.975027068 | G128: 0.05175834974 | H128: 0.8774781073 | I128: 0.8936348404 | J128: 92 | K128: 1.000772289 | L128: 0.4966080526 | M128: 1.034254433 | N128: 6465.799572 | O128: 6705.274173
A129: Canal/Conduit | B129: Canal3 | C129: lgEFlow | D129: 0.8252202036 | E129: 0.06462850914 | F129: 12.76867151 | G129: 6.726491994e-21 | H129: 0.8774781073 | I129: 0.8936348404 | J129: 92 | K129: 1.000772289 | L129: 0.4966080526 | M129: 1.034254433 | N129: 6465.799572 | O129: 6705.274173
A130: Canal/Conduit | B130: Canal3 | C130: lgHead | D130: 0.8294250619 | E130: 0.10223298 | F130: 8.113087007 | G130: 5.248675266e-12 | H130: 0.8774781073 | I130: 0.8936348404 | J130: 92 | K130: 1.000772289 | L130: 0.4966080526 | M130: 1.034254433 | N130: 6465.799572 | O130: 6705.274173
A131: Canal/Conduit | B131: Canal3 | C131: C | D131: -0.1120200823 | E131: 0.200859659 | F131: -0.5577032387 | G131: 0.5786240112 | H131: 0.8774781073 | I131: 0.8936348404 | J131: 92 | K131: 1.000772289 | L131: 0.4966080526 | M131: 1.034254433 | N131: 6465.799572 | O131: 6705.274173
A132: Canal/Conduit | B132: Canal3 | C132: E | D132: -0.1707680834 | E132: 0.2072642465 | F132: -0.8239148152 | G132: 0.412468494 | H132: 0.8774781073 | I132: 0.8936348404 | J132: 92 | K132: 1.000772289 | L132: 0.4966080526 | M132: 1.034254433 | N132: 6465.799572 | O132: 6705.274173
A133: Canal/Conduit | B133: Canal3 | C133: Hd30 | D133: 0.2385244065 | E133: 0.2994711019 | F133: 0.796485554 | G133: 0.4281369705 | H133: 0.8774781073 | I133: 0.8936348404 | J133: 92 | K133: 1.000772289 | L133: 0.4966080526 | M133: 1.034254433 | N133: 6465.799572 | O133: 6705.274173
A134: Canal/Conduit | B134: Canal3 | C134: Hd60 | D134: 0.06145343004 | E134: 0.2457968779 | F134: 0.2500171303 | G134: 0.8032231104 | H134: 0.8774781073 | I134: 0.8936348404 | J134: 92 | K134: 1.000772289 | L134: 0.4966080526 | M134: 1.034254433 | N134: 6465.799572 | O134: 6705.274173
A135: Canal/Conduit | B135: Canal3 | C135: Hd100 | D135: 0.3702811959 | E135: 0.2084836931 | F135: 1.776067905 | G135: 0.07957220166 | H135: 0.8774781073 | I135: 0.8936348404 | J135: 92 | K135: 1.000772289 | L135: 0.4966080526 | M135: 1.034254433 | N135: 6465.799572 | O135: 6705.274173
A136: Canal/Conduit | B136: Canal3 | C136: Cap1 | D136: -1.491303187 | E136: 0.6709873916 | F136: -2.222550238 | G136: 0.02910541103 | H136: 0.8774781073 | I136: 0.8936348404 | J136: 92 | K136: 1.000772289 | L136: 0.4966080526 | M136: 1.034254433 | N136: 6465.799572 | O136: 6705.274173
A137: Canal/Conduit | B137: Canal3 | C137: Cap10 | D137: -1.603892942 | E137: 0.6156252341 | F137: -2.605307342 | G137: 0.01096532493 | H137: 0.8774781073 | I137: 0.8936348404 | J137: 92 | K137: 1.000772289 | L137: 0.4966080526 | M137: 1.034254433 | N137: 6465.799572 | O137: 6705.274173
A138: Canal/Conduit | B138: Canal3 | C138: Cap30 | D138: -1.440332956 | E138: 0.6838307837 | F138: -2.106271011 | G138: 0.03835565918 | H138: 0.8774781073 | I138: 0.8936348404 | J138: 92 | K138: 1.000772289 | L138: 0.4966080526 | M138: 1.034254433 | N138: 6465.799572 | O138: 6705.274173
A139: Canal/Conduit | B139: Canal3 | C139: dmy40 | D139: 0.03141355447 | E139: 0.2190423854 | F139: 0.1434131317 | G139: 0.8863290944 | H139: 0.8774781073 | I139: 0.8936348404 | J139: 92 | K139: 1.000772289 | L139: 0.4966080526 | M139: 1.034254433 | N139: 6465.799572 | O139: 6705.274173
A140: Canal/Conduit | B140: Canal3 | C140: dmy40x | D140: 0.1839216024 | E140: 0.1922962884 | F140: 0.9564490502 | G140: 0.3417632058 | H140: 0.8774781073 | I140: 0.8936348404 | J140: 92 | K140: 1.000772289 | L140: 0.4966080526 | M140: 1.034254433 | N140: 6465.799572 | O140: 6705.274173
A141: Canal/Conduit | B141: Canal4 | C141: (Intercept) | D141: 1.452944366 | E141: 0.9544964346 | F141: 1.522210365 | G141: 0.1325933957 | H141: 0.9150834943 | I141: 0.9278209702 | J141: 81 | K141: 1.000729672 | L141: 0.4237591452 | M141: 1.097085269 | N141: 6441.566439 | O141: 6854.785488
A142: Canal/Conduit | B142: Canal4 | C142: lgEFlow | D142: 0.8912067449 | E142: 0.06005165334 | F142: 14.84066958 | G142: 5.176061073e-23 | H142: 0.9150834943 | I142: 0.9278209702 | J142: 81 | K142: 1.000729672 | L142: 0.4237591452 | M142: 1.097085269 | N142: 6441.566439 | O142: 6854.785488
A143: Canal/Conduit | B143: Canal4 | C143: lgHead | D143: 0.8434397575 | E143: 0.08871376321 | F143: 9.507428465 | G143: 4.128453618e-14 | H143: 0.9150834943 | I143: 0.9278209702 | J143: 81 | K143: 1.000729672 | L143: 0.4237591452 | M143: 1.097085269 | N143: 6441.566439 | O143: 6854.785488
A144: Canal/Conduit | B144: Canal4 | C144: C | D144: 0.07513170111 | E144: 0.1857083966 | F144: 0.4045681428 | G144: 0.6870647527 | H144: 0.9150834943 | I144: 0.9278209702 | J144: 81 | K144: 1.000729672 | L144: 0.4237591452 | M144: 1.097085269 | N144: 6441.566439 | O144: 6854.785488
A145: Canal/Conduit | B145: Canal4 | C145: E | D145: -0.1174141856 | E145: 0.1931759678 | F145: -0.6078094856 | G145: 0.5453384778 | H145: 0.9150834943 | I145: 0.9278209702 | J145: 81 | K145: 1.000729672 | L145: 0.4237591452 | M145: 1.097085269 | N145: 6441.566439 | O145: 6854.785488
A146: Canal/Conduit | B146: Canal4 | C146: Hd30 | D146: -0.03048920588 | E146: 0.2681177711 | F146: -0.1137157218 | G146: 0.9097982249 | H146: 0.9150834943 | I146: 0.9278209702 | J146: 81 | K146: 1.000729672 | L146: 0.4237591452 | M146: 1.097085269 | N146: 6441.566439 | O146: 6854.785488
A147: Canal/Conduit | B147: Canal4 | C147: Hd60 | D147: -0.08374935519 | E147: 0.2216828471 | F147: -0.3777890635 | G147: 0.7067639829 | H147: 0.9150834943 | I147: 0.9278209702 | J147: 81 | K147: 1.000729672 | L147: 0.4237591452 | M147: 1.097085269 | N147: 6441.566439 | O147: 6854.785488
A148: Canal/Conduit | B148: Canal4 | C148: Hd100 | D148: 0.1452926795 | E148: 0.1914481629 | F148: 0.7589139396 | G148: 0.4505266994 | H148: 0.9150834943 | I148: 0.9278209702 | J148: 81 | K148: 1.000729672 | L148: 0.4237591452 | M148: 1.097085269 | N148: 6441.566439 | O148: 6854.785488
A149: Canal/Conduit | B149: Canal4 | C149: Cap1 | D149: -1.25606572 | E149: 0.582138599 | F149: -2.157674687 | G149: 0.03448883964 | H149: 0.9150834943 | I149: 0.9278209702 | J149: 81 | K149: 1.000729672 | L149: 0.4237591452 | M149: 1.097085269 | N149: 6441.566439 | O149: 6854.785488
A150: Canal/Conduit | B150: Canal4 | C150: Cap10 | D150: -1.531973279 | E150: 0.5317199974 | F150: -2.881165437 | G150: 0.005296234516 | H150: 0.9150834943 | I150: 0.9278209702 | J150: 81 | K150: 1.000729672 | L150: 0.4237591452 | M150: 1.097085269 | N150: 6441.566439 | O150: 6854.785488
A151: Canal/Conduit | B151: Canal4 | C151: Cap30 | D151: -1.484699068 | E151: 0.5857349975 | F151: -2.534762434 | G151: 0.01355872519 | H151: 0.9150834943 | I151: 0.9278209702 | J151: 81 | K151: 1.000729672 | L151: 0.4237591452 | M151: 1.097085269 | N151: 6441.566439 | O151: 6854.785488
A152: Canal/Conduit | B152: Canal4 | C152: dmy40 | D152: 0.06575503402 | E152: 0.188139498 | F152: 0.3495014855 | G152: 0.7277929282 | H152: 0.9150834943 | I152: 0.9278209702 | J152: 81 | K152: 1.000729672 | L152: 0.4237591452 | M152: 1.097085269 | N152: 6441.566439 | O152: 6854.785488
A153: Canal/Conduit | B153: Canal4 | C153: dmy40x | D153: 0.4037212026 | E153: 0.1798515212 | F153: 2.244747221 | G153: 0.02804111497 | H153: 0.9150834943 | I153: 0.9278209702 | J153: 81 | K153: 1.000729672 | L153: 0.4237591452 | M153: 1.097085269 | N153: 6441.566439 | O153: 6854.785488
A154: Pumped Storage Hydro (PSH) | B154: PSH1 | C154: (Intercept) | D154: 0.358544926 | E154: 0.9867379431 | F154: 0.3633638784 | G154: 0.7170368415 | H154: 0.6365273622 | I154: 0.6524691445 | J154: 115 | K154: 1.220479657 | L154: 0.4878459149 | M154: 0.7903730539 | N154: 796511.4954 | O154: 796511.4954
A155: Pumped Storage Hydro (PSH) | B155: PSH1 | C155: lgEFlow | D155: 0.7888050224 | E155: 0.06765372216 | F155: 11.65944751 | G155: 6.961916638e-21 | H155: 0.6365273622 | I155: 0.6524691445 | J155: 115 | K155: 1.220479657 | L155: 0.4878459149 | M155: 0.7903730539 | N155: 796511.4954 | O155: 796511.4954
A156: Pumped Storage Hydro (PSH) | B156: PSH1 | C156: lgHead | D156: 0.9331957806 | E156: 0.07978353757 | F156: 11.69659568 | G156: 5.733795241e-21 | H156: 0.6365273622 | I156: 0.6524691445 | J156: 115 | K156: 1.220479657 | L156: 0.4878459149 | M156: 0.7903730539 | N156: 796511.4954 | O156: 796511.4954
A157: Pumped Storage Hydro (PSH) | B157: PSH1 | C157: C | D157: -0.4083575113 | E157: 0.1336717243 | F157: -3.054928133 | G157: 0.002830249497 | H157: 0.6365273622 | I157: 0.6524691445 | J157: 115 | K157: 1.220479657 | L157: 0.4878459149 | M157: 0.7903730539 | N157: 796511.4954 | O157: 796511.4954
A158: Pumped Storage Hydro (PSH) | B158: PSH1 | C158: E | D158: 0.03665650416 | E158: 0.1747621722 | F158: 0.2097507927 | G158: 0.8342537259 | H158: 0.6365273622 | I158: 0.6524691445 | J158: 115 | K158: 1.220479657 | L158: 0.4878459149 | M158: 0.7903730539 | N158: 796511.4954 | O158: 796511.4954
A159: Pumped Storage Hydro (PSH) | B159: PSH1 | C159: dmy40 | D159: 0.2463377149 | E159: 0.1456917277 | F159: 1.6908147 | G159: 0.09372983749 | H159: 0.6365273622 | I159: 0.6524691445 | J159: 115 | K159: 1.220479657 | L159: 0.4878459149 | M159: 0.7903730539 | N159: 796511.4954 | O159: 796511.4954
A160: Pumped Storage Hydro (PSH) | B160: PSH2 | C160: (Intercept) | D160: 1.008821593 | E160: 1.100782578 | F160: 0.9164585383 | G160: 0.3619030998 | H160: 0.5910262374 | I160: 0.6086165068 | J160: 94 | K160: 1.208951474 | L160: 0.4995353251 | M160: 0.7995604565 | N160: 791370.6706 | O160: 851790.951
A161: Pumped Storage Hydro (PSH) | B161: PSH2 | C161: lgEFlow | D161: 0.7721583773 | E161: 0.07393357624 | F161: 10.44394735 | G161: 3.895813485e-17 | H161: 0.5910262374 | I161: 0.6086165068 | J161: 94 | K161: 1.208951474 | L161: 0.4995353251 | M161: 0.7995604565 | N161: 791370.6706 | O161: 851790.951
A162: Pumped Storage Hydro (PSH) | B162: PSH2 | C162: lgHead | D162: 0.8569438574 | E162: 0.0951305777 | F162: 9.008080032 | G162: 3.614582583e-14 | H162: 0.5910262374 | I162: 0.6086165068 | J162: 94 | K162: 1.208951474 | L162: 0.4995353251 | M162: 0.7995604565 | N162: 791370.6706 | O162: 851790.951
A163: Pumped Storage Hydro (PSH) | B163: PSH2 | C163: C | D163: -0.1525944829 | E163: 0.1620823867 | F163: -0.9414624625 | G163: 0.3490163538 | H163: 0.5910262374 | I163: 0.6086165068 | J163: 94 | K163: 1.208951474 | L163: 0.4995353251 | M163: 0.7995604565 | N163: 791370.6706 | O163: 851790.951
A164: Pumped Storage Hydro (PSH) | B164: PSH2 | C164: E | D164: 0.04571772049 | E164: 0.1891823275 | F164: 0.241659573 | G164: 0.8095998831 | H164: 0.5910262374 | I164: 0.6086165068 | J164: 94 | K164: 1.208951474 | L164: 0.4995353251 | M164: 0.7995604565 | N164: 791370.6706 | O164: 851790.951
A165: Pumped Storage Hydro (PSH) | B165: PSH3 | C165: (Intercept) | D165: 0.358544926 | E165: 0.9867379431 | F165: 0.3633638784 | G165: 0.7170368415 | H165: 0.6365273622 | I165: 0.6524691445 | J165: 115 | K165: 1.220479657 | L165: 0.4878459149 | M165: 0.7903730539 | N165: 796511.4954 | O165: 796511.4954
A166: Pumped Storage Hydro (PSH) | B166: PSH3 | C166: lgEFlow | D166: 0.7888050224 | E166: 0.06765372216 | F166: 11.65944751 | G166: 6.961916638e-21 | H166: 0.6365273622 | I166: 0.6524691445 | J166: 115 | K166: 1.220479657 | L166: 0.4878459149 | M166: 0.7903730539 | N166: 796511.4954 | O166: 796511.4954
A167: Pumped Storage Hydro (PSH) | B167: PSH3 | C167: lgHead | D167: 0.9331957806 | E167: 0.07978353757 | F167: 11.69659568 | G167: 5.733795241e-21 | H167: 0.6365273622 | I167: 0.6524691445 | J167: 115 | K167: 1.220479657 | L167: 0.4878459149 | M167: 0.7903730539 | N167: 796511.4954 | O167: 796511.4954
A168: Pumped Storage Hydro (PSH) | B168: PSH3 | C168: C | D168: -0.4083575113 | E168: 0.1336717243 | F168: -3.054928133 | G168: 0.002830249497 | H168: 0.6365273622 | I168: 0.6524691445 | J168: 115 | K168: 1.220479657 | L168: 0.4878459149 | M168: 0.7903730539 | N168: 796511.4954 | O168: 796511.4954
A169: Pumped Storage Hydro (PSH) | B169: PSH3 | C169: E | D169: 0.03665650416 | E169: 0.1747621722 | F169: 0.2097507927 | G169: 0.8342537259 | H169: 0.6365273622 | I169: 0.6524691445 | J169: 115 | K169: 1.220479657 | L169: 0.4878459149 | M169: 0.7903730539 | N169: 796511.4954 | O169: 796511.4954
A170: Pumped Storage Hydro (PSH) | B170: PSH3 | C170: dmy40 | D170: 0.2463377149 | E170: 0.1456917277 | F170: 1.6908147 | G170: 0.09372983749 | H170: 0.6365273622 | I170: 0.6524691445 | J170: 115 | K170: 1.220479657 | L170: 0.4878459149 | M170: 0.7903730539 | N170: 796511.4954 | O170: 796511.4954
A171: Pumped Storage Hydro (PSH) | B171: PSH4 | C171: (Intercept) | D171: -0.3075994917 | E171: 0.950324936 | F171: -0.3236782285 | G171: 0.7468076052 | H171: 0.6768051556 | I171: 0.6911058124 | J171: 114 | K171: 1.207090527 | L171: 0.4614269262 | M171: 0.8136850889 | N171: 782523.2997 | O171: 787356.7877
A172: Pumped Storage Hydro (PSH) | B172: PSH4 | C172: lgEFlow | D172: 0.830414069 | E172: 0.06496015692 | F172: 12.78343693 | G172: 2.400863601e-23 | H172: 0.6768051556 | I172: 0.6911058124 | J172: 114 | K172: 1.207090527 | L172: 0.4614269262 | M172: 0.8136850889 | N172: 782523.2997 | O172: 787356.7877
A173: Pumped Storage Hydro (PSH) | B173: PSH4 | C173: lgHead | D173: 0.9734050896 | E173: 0.07623306422 | F173: 12.76880445 | G173: 2.587548207e-23 | H173: 0.6768051556 | I173: 0.6911058124 | J173: 114 | K173: 1.207090527 | L173: 0.4614269262 | M173: 0.8136850889 | N173: 782523.2997 | O173: 787356.7877
A174: Pumped Storage Hydro (PSH) | B174: PSH4 | C174: C | D174: -0.3954571551 | E174: 0.126480364 | F174: -3.126628851 | G174: 0.00227227485 | H174: 0.6768051556 | I174: 0.6911058124 | J174: 114 | K174: 1.207090527 | L174: 0.4614269262 | M174: 0.8136850889 | N174: 782523.2997 | O174: 787356.7877
A175: Pumped Storage Hydro (PSH) | B175: PSH4 | C175: E | D175: 0.04268205847 | E175: 0.1653059724 | F175: 0.2582003412 | G175: 0.7967436903 | H175: 0.6768051556 | I175: 0.6911058124 | J175: 114 | K175: 1.207090527 | L175: 0.4614269262 | M175: 0.8136850889 | N175: 782523.2997 | O175: 787356.7877
A176: Pumped Storage Hydro (PSH) | B176: PSH4 | C176: dmy40 | D176: 0.2398468735 | E176: 0.1378129296 | F176: 1.740380051 | G176: 0.08464060107 | H176: 0.6768051556 | I176: 0.6911058124 | J176: 114 | K176: 1.207090527 | L176: 0.4614269262 | M176: 0.8136850889 | N176: 782523.2997 | O176: 787356.7877
A177: Capacity Expansion | B177: CXP1 | C177: (Intercept) | D177: 11.49312387 | E177: 1.301743289 | F177: 8.829024872 | G177: 1.550807217e-10 | H177: 0.7946411573 | I177: 0.8427038651 | J177: 48 | K177: 1.476153955 | L177: 0.6006360906 | M177: NA | N177: 31996.09483 | O177: NA
A178: Capacity Expansion | B178: CXP1 | C178: lgAdded_Capacity | D178: 0.4161193708 | E178: 0.2136616849 | F178: 1.947561965 | G178: 0.05929920321 | H178: 0.7946411573 | I178: 0.8427038651 | J178: 48 | K178: 1.476153955 | L178: 0.6006360906 | M178: NA | N178: 31996.09483 | O178: NA
A179: Capacity Expansion | B179: CXP1 | C179: lgHead | D179: -0.3752037281 | E179: 0.1916927213 | F179: -1.957318596 | G179: 0.0580981521 | H179: 0.7946411573 | I179: 0.8427038651 | J179: 48 | K179: 1.476153955 | L179: 0.6006360906 | M179: NA | N179: 31996.09483 | O179: NA
A180: Capacity Expansion | B180: CXP1 | C180: C | D180: 0.5681001408 | E180: 0.2924629821 | F180: 1.942468537 | G180: 0.05993469625 | H180: 0.7946411573 | I180: 0.8427038651 | J180: 48 | K180: 1.476153955 | L180: 0.6006360906 | M180: NA | N180: 31996.09483 | O180: NA
A181: Capacity Expansion | B181: CXP1 | C181: E | D181: -0.251946141 | E181: 0.3636150299 | F181: -0.6928925381 | G181: 0.4928230385 | H181: 0.7946411573 | I181: 0.8427038651 | J181: 48 | K181: 1.476153955 | L181: 0.6006360906 | M181: NA | N181: 31996.09483 | O181: NA
A182: Capacity Expansion | B182: CXP1 | C182: Hd30 | D182: -0.654132411 | E182: 0.5088069538 | F182: -1.28562003 | G182: 0.2067844489 | H182: 0.7946411573 | I182: 0.8427038651 | J182: 48 | K182: 1.476153955 | L182: 0.6006360906 | M182: NA | N182: 31996.09483 | O182: NA
A183: Capacity Expansion | B183: CXP1 | C183: Hd60 | D183: 0.2536395905 | E183: 0.3666622865 | F183: 0.6917526012 | G183: 0.4935302334 | H183: 0.7946411573 | I183: 0.8427038651 | J183: 48 | K183: 1.476153955 | L183: 0.6006360906 | M183: NA | N183: 31996.09483 | O183: NA
A184: Capacity Expansion | B184: CXP1 | C184: addCap1 | D184: -1.470055887 | E184: 0.9552777517 | F184: -1.538877969 | G184: 0.1325784881 | H184: 0.7946411573 | I184: 0.8427038651 | J184: 48 | K184: 1.476153955 | L184: 0.6006360906 | M184: NA | N184: 31996.09483 | O184: NA
A185: Capacity Expansion | B185: CXP1 | C185: addCap10 | D185: -0.6695340943 | E185: 0.636030125 | F185: -1.052676702 | G185: 0.2995038648 | H185: 0.7946411573 | I185: 0.8427038651 | J185: 48 | K185: 1.476153955 | L185: 0.6006360906 | M185: NA | N185: 31996.09483 | O185: NA
A186: Capacity Expansion | B186: CXP1 | C186: addCap30 | D186: -0.4291578599 | E186: 0.5349597523 | F186: -0.8022245749 | G186: 0.427687288 | H186: 0.7946411573 | I186: 0.8427038651 | J186: 48 | K186: 1.476153955 | L186: 0.6006360906 | M186: NA | N186: 31996.09483 | O186: NA
A187: Capacity Expansion | B187: CXP1 | C187: dmy40 | D187: 0.01238104902 | E187: 0.5054022547 | F187: 0.02449741549 | G187: 0.980591135 | H187: 0.7946411573 | I187: 0.8427038651 | J187: 48 | K187: 1.476153955 | L187: 0.6006360906 | M187: NA | N187: 31996.09483 | O187: NA
A188: Capacity Expansion | B188: CXP1 | C188: dmy40x | D188: -0.4227492875 | E188: 0.4043164906 | F188: -1.04559002 | G188: 0.3027204798 | H188: 0.7946411573 | I188: 0.8427038651 | J188: 48 | K188: 1.476153955 | L188: 0.6006360906 | M188: NA | N188: 31996.09483 | O188: NA
A189: Capacity Expansion | B189: CXP2 | C189: (Intercept) | D189: 12.07666658 | E189: 1.882088019 | F189: 6.416632197 | G189: 2.325091755e-06 | H189: 0.6630071678 | I189: 0.7641050175 | J189: 31 | K189: 1.406375101 | L189: 0.5887712258 | M189: NA | N189: 42248.59086 | O189: NA
A190: Capacity Expansion | B190: CXP2 | C190: lgAdded_Capacity | D190: 0.3987996349 | E190: 0.3110949044 | F190: 1.281922748 | G190: 0.2138424042 | H190: 0.6630071678 | I190: 0.7641050175 | J190: 31 | K190: 1.406375101 | L190: 0.5887712258 | M190: NA | N190: 42248.59086 | O190: NA
A191: Capacity Expansion | B191: CXP2 | C191: lgHead | D191: -0.4619516443 | E191: 0.2281759893 | F191: -2.024540994 | G191: 0.05581796084 | H191: 0.6630071678 | I191: 0.7641050175 | J191: 31 | K191: 1.406375101 | L191: 0.5887712258 | M191: NA | N191: 42248.59086 | O191: NA
A192: Capacity Expansion | B192: CXP2 | C192: C | D192: 0.4506653106 | E192: 0.301886917 | F192: 1.492828225 | G192: 0.1503546814 | H192: 0.6630071678 | I192: 0.7641050175 | J192: 31 | K192: 1.406375101 | L192: 0.5887712258 | M192: NA | N192: 42248.59086 | O192: NA
A193: Capacity Expansion | B193: CXP2 | C193: E | D193: 0.009806408851 | E193: 0.3819362644 | F193: 0.02567551124 | G193: 0.9797585812 | H193: 0.6630071678 | I193: 0.7641050175 | J193: 31 | K193: 1.406375101 | L193: 0.5887712258 | M193: NA | N193: 42248.59086 | O193: NA
A194: Capacity Expansion | B194: CXP2 | C194: Hd30 | D194: -1.384936536 | E194: 0.7588584676 | F194: -1.825026135 | G194: 0.08225598016 | H194: 0.6630071678 | I194: 0.7641050175 | J194: 31 | K194: 1.406375101 | L194: 0.5887712258 | M194: NA | N194: 42248.59086 | O194: NA
A195: Capacity Expansion | B195: CXP2 | C195: Hd60 | D195: 0.2004415814 | E195: 0.5107258326 | F195: 0.3924641532 | G195: 0.6986703711 | H195: 0.6630071678 | I195: 0.7641050175 | J195: 31 | K195: 1.406375101 | L195: 0.5887712258 | M195: NA | N195: 42248.59086 | O195: NA
A196: Capacity Expansion | B196: CXP2 | C196: addCap10 | D196: -0.7601287699 | E196: 0.8045890188 | F196: -0.9447416657 | G196: 0.3555346745 | H196: 0.6630071678 | I196: 0.7641050175 | J196: 31 | K196: 1.406375101 | L196: 0.5887712258 | M196: NA | N196: 42248.59086 | O196: NA
A197: Capacity Expansion | B197: CXP2 | C197: addCap30 | D197: -0.3806246215 | E197: 0.5882917867 | F197: -0.6469997204 | G197: 0.5246418834 | H197: 0.6630071678 | I197: 0.7641050175 | J197: 31 | K197: 1.406375101 | L197: 0.5887712258 | M197: NA | N197: 42248.59086 | O197: NA
A198: Capacity Expansion | B198: CXP2 | C198: dmy40 | D198: -1.344119913 | E198: 0.7871532123 | F198: -1.707570893 | G198: 0.1024592837 | H198: 0.6630071678 | I198: 0.7641050175 | J198: 31 | K198: 1.406375101 | L198: 0.5887712258 | M198: NA | N198: 42248.59086 | O198: NA
A199: Capacity Expansion | B199: CXP3 | C199: (Intercept) | D199: 11.49312387 | E199: 1.301743289 | F199: 8.829024872 | G199: 1.550807217e-10 | H199: 0.7946411573 | I199: 0.8427038651 | J199: 48 | K199: 1.476153955 | L199: 0.6006360906 | M199: NA | N199: 31996.09483 | O199: NA
A200: Capacity Expansion | B200: CXP3 | C200: lgAdded_Capacity | D200: 0.4161193708 | E200: 0.2136616849 | F200: 1.947561965 | G200: 0.05929920321 | H200: 0.7946411573 | I200: 0.8427038651 | J200: 48 | K200: 1.476153955 | L200: 0.6006360906 | M200: NA | N200: 31996.09483 | O200: NA
... 61 more rows

Sheet Calc (hidden)
A1: Input Data | M1: Capital Expenditure Model | R1: Annual O&M Expenditure Model | W1: Endogenous Variable Calculations
A2: Unique Project Name | B2: Project Type (Drop-down) | C2: Project Capacity (MW) | D2: Added Capacity (MW) | E2: Project Head (ft) | F2: Project Stage | G2: Year ( Fixed at 2021) | H2: Construction (Yes=1; No=0) | I2: Engineering (Yes=1; No=0) | J2: Plant Age (Years) | K2: Capacity Factor | L2: Major Expense Indicator | M2: Estimated Capital Expenditure (2020$million) | R2: Estimated O&M Expenditure (2020$million) | W2: Model Equation | X2: Estimated Flow (cfs) | Y2: <= 1MW Capacity Indicator | Z2: >1MW & <= 10MW Capacity Indicator | AA2: >10MW & <= 30MW Capacity Indicator | AB2: >30MW & <= 100MW Capacity Indicator | AC2: <= 500MW Capacity Indicator | AD2: <= 1MW Capacity Indicator | AE2: >1MW & <= 10MW Capacity Indicator | AF2: >10MW & <= 30MW Capacity Indicator | AG2: <= 30ft Head Indicator | AH2: >30ft & <= 60ft Head Indicator | AI2: >60ft & <= 100ft Head Indicator | AJ2: (2021 minus Year)+1 | AK2: 40 year | AL2: >40 years | AM2: Intercept Term | AN2: Nat Log of Capacity | AO2: Nat Log of Added Capacity | AP2: Nat Log of Head | AQ2: Nat Log of Eflow | AR2: Nat Log of tyr | AS2: Zero for calculations | AT2: Zero for calculations | AU2: Capacity factor | AV2: Natural log of Capacity Factor | AW2: Plant age | AX2: Square of Natural log of (Capacity Factor*Plant Age)
A3: Project Name | B3: Type | C3: Capacity | D3: Added_Capacity | E3: Head | F3: Stage | G3: Year | H3: C | I3: E | J3: Plant_Age | K3: Cap_Factor | L3: Expens_Type | M3: fitCapEx | N3: fiterrCapEx | O3: CapEx | P3: CapEx_LBnd | Q3: CapEx_UBnd | R3: fitOMEx | S3: fiterrOMEx | T3: OMEx | U3: OMEx_LBnd | V3: OMEx_Ubnd | W3: Equation | X3: Eflow | Y3: Cap1 | Z3: Cap10 | AA3: Cap30 | AB3: Cap100 | AC3: Cap500 | AD3: addCap1 | AE3: addCap10 | AF3: addCap30 | AG3: Hd30 | AH3: Hd60 | AI3: Hd100 | AJ3: tyr | AK3: dmy40 | AL3: dmy40x | AM3: (Intercept) | AN3: lgCapacity | AO3: lgAdded_Capacity | AP3: lgHead | AQ3: lgEFlow | AR3: lgtyr | AS3: majExp500x | AT3: majExp1000x | AU3: capFactor | AV3: I(log(capFactor)) | AW3: age | AX3: I(log(age * avgcapFactor)^2)
A4: =INDEX(InputsResults[Project Name],ROW()-ROW($A$3)) -> Site 1 | B4: =INDEX(InputsResults[Project Type],ROW()-ROW($A$3)) -> Non-Powered Dam (NPD) | C4: =INDEX(InputsResults[Plant Capacity (MW)],ROW()-ROW($A$3)) -> 22.4 | D4: =INDEX(InputsResults[Added_Capacity],ROW()-ROW($A$3)) -> 1 | E4: =INDEX(InputsResults[Head (ft)],ROW()-ROW($A$3)) -> 19.84 | F4: =INDEX(InputsResults[Stage],ROW()-ROW($A$3)) -> Engineering | G4: 2021 | H4: =IF(Model[[#This Row],[Stage]]="Construction",1,0) -> 0 | I4: =IF(Model[[#This Row],[Stage]]="Engineering",1,0) -> 1 | J4: =INDEX(InputsResults[Plant Age (Years)],ROW()-ROW($A$3)) -> 0 | K4: =INDEX(InputsResults[Capacity Factor (Rate)],ROW()-ROW($A$3)) -> 0.5 | L4: 0 | M4: =IF(NOT(Model[[#This Row],[Equation]]="O&M"), SUMPRODUCT(_xlfn._xlws.FILTER(Coeff[Estimate],Coeff[Equation]=Model[[#This Row],[Equation]]),INDEX(Model[#This Row],,MATCH(_xlfn._xlws.FILTER(Coeff[Variable],Coeff[Equation]=Model[[#This Row],[Equation]]),Model[#Headers],0))),NA()) -> 11.18003954 | N4: =IF(NOT(Model[[#This Row],[Equation]]="O&M"), (_xlfn.T.INV.2T((1-IF(ISNUMBER(confdINTV),confdINTV,NA())),INDEX(Coeff[ssiz],MATCH(Model[[#This Row],[Equation]],Coeff[Equation],0)))*INDEX(Coeff[stde],MATCH(Model[[#This Row],[Equation]],Coeff[Equation],0))*(1 + MMULT(MMULT(TRANSPOSE(INDEX(Model[#This Row],,MATCH(_xlfn._xlws.FILTER(Coeff[Variable],Coeff[Equation]=Model[[#This Row],[Equation]]),Model[#Headers],0))),INDEX(XXINV!$C$2:$O$296,MATCH(Model[[#This Row],[Equation]],XXINV!$A$2:$A$296,0),1):INDEX(XXINV!$C$2:$O$296,MATCH(Model[[#This Row],[Equation]],XXINV!$A$2:$A$296,0)+SUM(1*(Coeff[Equation]=Model[[#This Row],[Equation]]))-1,SUM(1*(Coeff[Equation]=Model[[#This Row],[Equation]])))),(INDEX(Model[#This Row],,MATCH(_xlfn._xlws.FILTER(Coeff[Variable],Coeff[Equation]=Model[[#This Row],[Equation]]),Model[#Headers],0)))))),NA()) -> 0.4671933623 | O4: =INDEX(Coeff[scal],MATCH(Model[[#This Row],[Equation]],Coeff[Equation],0))*EXP(Model[[#This Row],[fitCapEx]])/1000 -> 90.71798753 | P4: =INDEX(Coeff[scal],MATCH(Model[[#This Row],[Equation]],Coeff[Equation],0))*EXP(Model[[#This Row],[fitCapEx]]-Model[[#This Row],[fiterrCapEx]])/1000 -> 56.85830491 | Q4: =INDEX(Coeff[scal],MATCH(Model[[#This Row],[Equation]],Coeff[Equation],0))*EXP(Model[[#This Row],[fitCapEx]]+Model[[#This Row],[fiterrCapEx]])/1000 -> 144.7414459 | R4: =SUMPRODUCT(_xlfn._xlws.FILTER(Coeff[Estimate],Coeff[Equation]="O&M"),INDEX(Model[#This Row],,MATCH(_xlfn._xlws.FILTER(Coeff[Variable],Coeff[Equation]="O&M"),Model[#Headers],0))) -> 6.806557497 | S4: =(_xlfn.T.INV.2T((1-IF(ISNUMBER(confdINTV),confdINTV,NA())),INDEX(Coeff[ssiz],MATCH("O&M",Coeff[Equation],0)))*INDEX(Coeff[stde],MATCH("O&M",Coeff[Equation],0))*(1 + MMULT(MMULT(TRANSPOSE(INDEX(Model[#This Row],,MATCH(_xlfn._xlws.FILTER(Coeff[Variable],Coeff[Equation]="O&M"),Model[#Headers],0))),INDEX(XXINV!$C$2:$O$296,MATCH("O&M",XXINV!$A$2:$A$296,0),1):INDEX(XXINV!$C$2:$O$296,SUM(1*(Coeff[Equation]="O&M"))+MATCH("O&M",XXINV!$A$2:$A$296,0)-1,SUM(1*(Coeff[Equation]="O&M")))),(INDEX(Model[#This Row],,MATCH(_xlfn._xlws.FILTER(Coeff[Variable],Coeff[Equation]="O&M"),Model[#Headers],0)))))) -> 0.5841593059 | T4: =INDEX(Coeff[scal],MATCH("O&M",Coeff[Equation],0))*EXP(Model[[#This Row],[fitOMEx]])/1000 -> 1.092033166 | U4: =INDEX(Coeff[scal],MATCH("O&M",Coeff[Equation],0))*EXP(Model[[#This Row],[fitOMEx]]-Model[[#This Row],[fiterrOMEx]])/1000 -> 0.6088897532 | V4: =INDEX(Coeff[scal],MATCH("O&M",Coeff[Equation],0))*EXP(Model[[#This Row],[fitOMEx]]+Model[[#This Row],[fiterrOMEx]])/1000 -> 1.958542462 | W4: =INDEX('Coeff'!$S$4:$S$10,MATCH(Model[[#This Row],[Type]],'Coeff'!$R$4:$R$10,0)) -> NPD3 | X4: =3.28084*35.3147*1000*Model[[#This Row],[Capacity]]/(0.9*9.81*Model[[#This Row],[Head]]) -> 14816.15136 | Y4: =IF(Model[[#This Row],[Capacity]]<=1,1,0) -> 0 | Z4: =IF(AND(Model[[#This Row],[Capacity]]>1,Model[[#This Row],[Capacity]]<=10),1,0) -> 0 | AA4: =IF(AND(Model[[#This Row],[Capacity]]>10,Model[[#This Row],[Capacity]]<=30),1,0) -> 1 | AB4: =IF(AND(Model[[#This Row],[Capacity]]>30,Model[[#This Row],[Capacity]]<=100),1,0) -> 0 | AC4: =IF(AND(Model[[#This Row],[Capacity]]>100,Model[[#This Row],[Capacity]]<=500),1,0) -> 0 | AD4: =IF(Model[[#This Row],[Added_Capacity]]<=1,1,0) -> 1 | AE4: =IF(AND(Model[[#This Row],[Added_Capacity]]>1,Model[[#This Row],[Added_Capacity]]<=10),1,0) -> 0 | AF4: =IF(AND(Model[[#This Row],[Added_Capacity]]>10,Model[[#This Row],[Added_Capacity]]<=30),1,0) -> 0 | AG4: =IF(Model[[#This Row],[Head]]<=30,1,0) -> 1 | AH4: =IF(AND(Model[[#This Row],[Head]]>30,Model[[#This Row],[Head]]<=60),1,0) -> 0 | AI4: =IF(AND(Model[[#This Row],[Head]]>60,Model[[#This Row],[Head]]<=100),1,0) -> 0 | AJ4: =2021-Model[[#This Row],[Year]]+1 -> 1 | AK4: =IF(AND(ROUND(Model[[#This Row],[tyr]]/20,0)>2,ROUND(Model[[#This Row],[tyr]]/20,0)<3),1,0) -> 0 | AL4: =IF(ROUND(Model[[#This Row],[tyr]]/20,0)>=3,1,0) -> 0 | AM4: =1 -> 1 | AN4: =LN(Model[[#This Row],[Capacity]]) -> 3.109060959 | AO4: =LN(Model[[#This Row],[Added_Capacity]]) -> 0 | AP4: =LN(Model[[#This Row],[Head]]) -> 2.987700102 | AQ4: =LN(Model[[#This Row],[Eflow]]) -> 9.603473173 | AR4: =LN(Model[[#This Row],[tyr]]) -> 0 | AS4: =Model[[#This Row],[Expens_Type]] -> 0 | AT4: =Model[[#This Row],[Expens_Type]] -> 0 | AU4: =Model[[#This Row],[Cap_Factor]] -> 0.5 | AV4: =IF(Model[[#This Row],[capFactor]]>0,LN(Model[[#This Row],[capFactor]]),0) -> -0.6931471806 | AW4: =Model[[#This Row],[Plant_Age]] -> 0 | AX4: =IF(AND(Model[[#This Row],[capFactor]],Model[[#This Row],[age]]),LN(Model[[#This Row],[capFactor]]*Model[[#This Row],[age]])^2,0) -> 0
A5: =INDEX(InputsResults[Project Name],ROW()-ROW($A$3)) -> Site 2 | B5: =INDEX(InputsResults[Project Type],ROW()-ROW($A$3)) -> Non-Powered Dam (NPD) | C5: =INDEX(InputsResults[Plant Capacity (MW)],ROW()-ROW($A$3)) -> 0.5 | D5: =INDEX(InputsResults[Added_Capacity],ROW()-ROW($A$3)) -> 0 | E5: =INDEX(InputsResults[Head (ft)],ROW()-ROW($A$3)) -> 22 | F5: =INDEX(InputsResults[Stage],ROW()-ROW($A$3)) -> Engineering | G5: 2021 | H5: =IF(Model[[#This Row],[Stage]]="Construction",1,0) -> 0 | I5: =IF(Model[[#This Row],[Stage]]="Engineering",1,0) -> 1 | J5: =INDEX(InputsResults[Plant Age (Years)],ROW()-ROW($A$3)) -> 0 | K5: =INDEX(InputsResults[Capacity Factor (Rate)],ROW()-ROW($A$3)) -> 0.5 | L5: 0 | M5: =IF(NOT(Model[[#This Row],[Equation]]="O&M"), SUMPRODUCT(_xlfn._xlws.FILTER(Coeff[Estimate],Coeff[Equation]=Model[[#This Row],[Equation]]),INDEX(Model[#This Row],,MATCH(_xlfn._xlws.FILTER(Coeff[Variable],Coeff[Equation]=Model[[#This Row],[Equation]]),Model[#Headers],0))),NA()) -> 7.825062088 | N5: =IF(NOT(Model[[#This Row],[Equation]]="O&M"), (_xlfn.T.INV.2T((1-IF(ISNUMBER(confdINTV),confdINTV,NA())),INDEX(Coeff[ssiz],MATCH(Model[[#This Row],[Equation]],Coeff[Equation],0)))*INDEX(Coeff[stde],MATCH(Model[[#This Row],[Equation]],Coeff[Equation],0))*(1 + MMULT(MMULT(TRANSPOSE(INDEX(Model[#This Row],,MATCH(_xlfn._xlws.FILTER(Coeff[Variable],Coeff[Equation]=Model[[#This Row],[Equation]]),Model[#Headers],0))),INDEX(XXINV!$C$2:$O$296,MATCH(Model[[#This Row],[Equation]],XXINV!$A$2:$A$296,0),1):INDEX(XXINV!$C$2:$O$296,MATCH(Model[[#This Row],[Equation]],XXINV!$A$2:$A$296,0)+SUM(1*(Coeff[Equation]=Model[[#This Row],[Equation]]))-1,SUM(1*(Coeff[Equation]=Model[[#This Row],[Equation]])))),(INDEX(Model[#This Row],,MATCH(_xlfn._xlws.FILTER(Coeff[Variable],Coeff[Equation]=Model[[#This Row],[Equation]]),Model[#Headers],0)))))),NA()) -> 0.4732042871 | O5: =INDEX(Coeff[scal],MATCH(Model[[#This Row],[Equation]],Coeff[Equation],0))*EXP(Model[[#This Row],[fitCapEx]])/1000 -> 3.16697921 | P5: =INDEX(Coeff[scal],MATCH(Model[[#This Row],[Equation]],Coeff[Equation],0))*EXP(Model[[#This Row],[fitCapEx]]-Model[[#This Row],[fiterrCapEx]])/1000 -> 1.973036874 | Q5: =INDEX(Coeff[scal],MATCH(Model[[#This Row],[Equation]],Coeff[Equation],0))*EXP(Model[[#This Row],[fitCapEx]]+Model[[#This Row],[fiterrCapEx]])/1000 -> 5.083410986 | R5: =SUMPRODUCT(_xlfn._xlws.FILTER(Coeff[Estimate],Coeff[Equation]="O&M"),INDEX(Model[#This Row],,MATCH(_xlfn._xlws.FILTER(Coeff[Variable],Coeff[Equation]="O&M"),Model[#Headers],0))) -> 4.072340256 | S5: =(_xlfn.T.INV.2T((1-IF(ISNUMBER(confdINTV),confdINTV,NA())),INDEX(Coeff[ssiz],MATCH("O&M",Coeff[Equation],0)))*INDEX(Coeff[stde],MATCH("O&M",Coeff[Equation],0))*(1 + MMULT(MMULT(TRANSPOSE(INDEX(Model[#This Row],,MATCH(_xlfn._xlws.FILTER(Coeff[Variable],Coeff[Equation]="O&M"),Model[#Headers],0))),INDEX(XXINV!$C$2:$O$296,MATCH("O&M",XXINV!$A$2:$A$296,0),1):INDEX(XXINV!$C$2:$O$296,SUM(1*(Coeff[Equation]="O&M"))+MATCH("O&M",XXINV!$A$2:$A$296,0)-1,SUM(1*(Coeff[Equation]="O&M")))),(INDEX(Model[#This Row],,MATCH(_xlfn._xlws.FILTER(Coeff[Variable],Coeff[Equation]="O&M"),Model[#Headers],0)))))) -> 0.605788447 | T5: =INDEX(Coeff[scal],MATCH("O&M",Coeff[Equation],0))*EXP(Model[[#This Row],[fitOMEx]])/1000 -> 0.07092190107 | U5: =INDEX(Coeff[scal],MATCH("O&M",Coeff[Equation],0))*EXP(Model[[#This Row],[fitOMEx]]-Model[[#This Row],[fiterrOMEx]])/1000 -> 0.03869811302 | V5: =INDEX(Coeff[scal],MATCH("O&M",Coeff[Equation],0))*EXP(Model[[#This Row],[fitOMEx]]+Model[[#This Row],[fiterrOMEx]])/1000 -> 0.1299783286 | W5: =INDEX('Coeff'!$S$4:$S$10,MATCH(Model[[#This Row],[Type]],'Coeff'!$R$4:$R$10,0)) -> NPD3 | X5: =3.28084*35.3147*1000*Model[[#This Row],[Capacity]]/(0.9*9.81*Model[[#This Row],[Head]]) -> 298.2472028 | Y5: =IF(Model[[#This Row],[Capacity]]<=1,1,0) -> 1 | Z5: =IF(AND(Model[[#This Row],[Capacity]]>1,Model[[#This Row],[Capacity]]<=10),1,0) -> 0 | AA5: =IF(AND(Model[[#This Row],[Capacity]]>10,Model[[#This Row],[Capacity]]<=30),1,0) -> 0 | AB5: =IF(AND(Model[[#This Row],[Capacity]]>30,Model[[#This Row],[Capacity]]<=100),1,0) -> 0 | AC5: =IF(AND(Model[[#This Row],[Capacity]]>100,Model[[#This Row],[Capacity]]<=500),1,0) -> 0 | AD5: =IF(Model[[#This Row],[Added_Capacity]]<=1,1,0) -> 1 | AE5: =IF(AND(Model[[#This Row],[Added_Capacity]]>1,Model[[#This Row],[Added_Capacity]]<=10),1,0) -> 0 | AF5: =IF(AND(Model[[#This Row],[Added_Capacity]]>10,Model[[#This Row],[Added_Capacity]]<=30),1,0) -> 0 | AG5: =IF(Model[[#This Row],[Head]]<=30,1,0) -> 1 | AH5: =IF(AND(Model[[#This Row],[Head]]>30,Model[[#This Row],[Head]]<=60),1,0) -> 0 | AI5: =IF(AND(Model[[#This Row],[Head]]>60,Model[[#This Row],[Head]]<=100),1,0) -> 0 | AJ5: =2021-Model[[#This Row],[Year]]+1 -> 1 | AK5: =IF(AND(ROUND(Model[[#This Row],[tyr]]/20,0)>2,ROUND(Model[[#This Row],[tyr]]/20,0)<3),1,0) -> 0 | AL5: =IF(ROUND(Model[[#This Row],[tyr]]/20,0)>=3,1,0) -> 0 | AM5: =1 -> 1 | AN5: =LN(Model[[#This Row],[Capacity]]) -> -0.6931471806 | AO5: =LN(Model[[#This Row],[Added_Capacity]]) ->  | AP5: =LN(Model[[#This Row],[Head]]) -> 3.091042453 | AQ5: =LN(Model[[#This Row],[Eflow]]) -> 5.697922682 | AR5: =LN(Model[[#This Row],[tyr]]) -> 0 | AS5: 0 | AT5: 0 | AU5: =Model[[#This Row],[Cap_Factor]] -> 0.5 | AV5: =IF(Model[[#This Row],[capFactor]]>0,LN(Model[[#This Row],[capFactor]]),0) -> -0.6931471806 | AW5: =Model[[#This Row],[Plant_Age]] -> 0 | AX5: =IF(AND(Model[[#This Row],[capFactor]],Model[[#This Row],[age]]),LN(Model[[#This Row],[capFactor]]*Model[[#This Row],[age]])^2,0) -> 0
A6: =INDEX(InputsResults[Project Name],ROW()-ROW($A$3)) -> Site 3 | B6: =INDEX(InputsResults[Project Type],ROW()-ROW($A$3)) -> Non-Powered Dam (NPD) | C6: =INDEX(InputsResults[Plant Capacity (MW)],ROW()-ROW($A$3)) -> 10 | D6: =INDEX(InputsResults[Added_Capacity],ROW()-ROW($A$3)) -> 1 | E6: =INDEX(InputsResults[Head (ft)],ROW()-ROW($A$3)) -> 9.456 | F6: =INDEX(InputsResults[Stage],ROW()-ROW($A$3)) -> Engineering | G6: 2021 | H6: =IF(Model[[#This Row],[Stage]]="Construction",1,0) -> 0 | I6: =IF(Model[[#This Row],[Stage]]="Engineering",1,0) -> 1 | J6: =INDEX(InputsResults[Plant Age (Years)],ROW()-ROW($A$3)) -> 0 | K6: =INDEX(InputsResults[Capacity Factor (Rate)],ROW()-ROW($A$3)) -> 0.5 | L6: 0 | M6: =IF(NOT(Model[[#This Row],[Equation]]="O&M"), SUMPRODUCT(_xlfn._xlws.FILTER(Coeff[Estimate],Coeff[Equation]=Model[[#This Row],[Equation]]),INDEX(Model[#This Row],,MATCH(_xlfn._xlws.FILTER(Coeff[Variable],Coeff[Equation]=Model[[#This Row],[Equation]]),Model[#Headers],0))),NA()) -> 10.59437836 | N6: =IF(NOT(Model[[#This Row],[Equation]]="O&M"), (_xlfn.T.INV.2T((1-IF(ISNUMBER(confdINTV),confdINTV,NA())),INDEX(Coeff[ssiz],MATCH(Model[[#This Row],[Equation]],Coeff[Equation],0)))*INDEX(Coeff[stde],MATCH(Model[[#This Row],[Equation]],Coeff[Equation],0))*(1 + MMULT(MMULT(TRANSPOSE(INDEX(Model[#This Row],,MATCH(_xlfn._xlws.FILTER(Coeff[Variable],Coeff[Equation]=Model[[#This Row],[Equation]]),Model[#Headers],0))),INDEX(XXINV!$C$2:$O$296,MATCH(Model[[#This Row],[Equation]],XXINV!$A$2:$A$296,0),1):INDEX(XXINV!$C$2:$O$296,MATCH(Model[[#This Row],[Equation]],XXINV!$A$2:$A$296,0)+SUM(1*(Coeff[Equation]=Model[[#This Row],[Equation]]))-1,SUM(1*(Coeff[Equation]=Model[[#This Row],[Equation]])))),(INDEX(Model[#This Row],,MATCH(_xlfn._xlws.FILTER(Coeff[Variable],Coeff[Equation]=Model[[#This Row],[Equation]]),Model[#Headers],0)))))),NA()) -> 0.4729471164 | O6: =INDEX(Coeff[scal],MATCH(Model[[#This Row],[Equation]],Coeff[Equation],0))*EXP(Model[[#This Row],[fitCapEx]])/1000 -> 50.5061181 | P6: =INDEX(Coeff[scal],MATCH(Model[[#This Row],[Equation]],Coeff[Equation],0))*EXP(Model[[#This Row],[fitCapEx]]-Model[[#This Row],[fiterrCapEx]])/1000 -> 31.47354536 | Q6: =INDEX(Coeff[scal],MATCH(Model[[#This Row],[Equation]],Coeff[Equation],0))*EXP(Model[[#This Row],[fitCapEx]]+Model[[#This Row],[fiterrCapEx]])/1000 -> 81.04800196 | R6: =SUMPRODUCT(_xlfn._xlws.FILTER(Coeff[Estimate],Coeff[Equation]="O&M"),INDEX(Model[#This Row],,MATCH(_xlfn._xlws.FILTER(Coeff[Variable],Coeff[Equation]="O&M"),Model[#Headers],0))) -> 6.479396722 | S6: =(_xlfn.T.INV.2T((1-IF(ISNUMBER(confdINTV),confdINTV,NA())),INDEX(Coeff[ssiz],MATCH("O&M",Coeff[Equation],0)))*INDEX(Coeff[stde],MATCH("O&M",Coeff[Equation],0))*(1 + MMULT(MMULT(TRANSPOSE(INDEX(Model[#This Row],,MATCH(_xlfn._xlws.FILTER(Coeff[Variable],Coeff[Equation]="O&M"),Model[#Headers],0))),INDEX(XXINV!$C$2:$O$296,MATCH("O&M",XXINV!$A$2:$A$296,0),1):INDEX(XXINV!$C$2:$O$296,SUM(1*(Coeff[Equation]="O&M"))+MATCH("O&M",XXINV!$A$2:$A$296,0)-1,SUM(1*(Coeff[Equation]="O&M")))),(INDEX(Model[#This Row],,MATCH(_xlfn._xlws.FILTER(Coeff[Variable],Coeff[Equation]="O&M"),Model[#Headers],0)))))) -> 0.5918786798 | T6: =INDEX(Coeff[scal],MATCH("O&M",Coeff[Equation],0))*EXP(Model[[#This Row],[fitOMEx]])/1000 -> 0.7873207714 | U6: =INDEX(Coeff[scal],MATCH("O&M",Coeff[Equation],0))*EXP(Model[[#This Row],[fitOMEx]]-Model[[#This Row],[fiterrOMEx]])/1000 -> 0.4356142366 | V6: =INDEX(Coeff[scal],MATCH("O&M",Coeff[Equation],0))*EXP(Model[[#This Row],[fitOMEx]]+Model[[#This Row],[fiterrOMEx]])/1000 -> 1.422988381 | W6: =INDEX('Coeff'!$S$4:$S$10,MATCH(Model[[#This Row],[Type]],'Coeff'!$R$4:$R$10,0)) -> NPD3 | X6: =3.28084*35.3147*1000*Model[[#This Row],[Capacity]]/(0.9*9.81*Model[[#This Row],[Head]]) -> 13877.83092 | Y6: =IF(Model[[#This Row],[Capacity]]<=1,1,0) -> 0 | Z6: =IF(AND(Model[[#This Row],[Capacity]]>1,Model[[#This Row],[Capacity]]<=10),1,0) -> 1 | AA6: =IF(AND(Model[[#This Row],[Capacity]]>10,Model[[#This Row],[Capacity]]<=30),1,0) -> 0 | AB6: =IF(AND(Model[[#This Row],[Capacity]]>30,Model[[#This Row],[Capacity]]<=100),1,0) -> 0 | AC6: =IF(AND(Model[[#This Row],[Capacity]]>100,Model[[#This Row],[Capacity]]<=500),1,0) -> 0 | AD6: =IF(Model[[#This Row],[Added_Capacity]]<=1,1,0) -> 1 | AE6: =IF(AND(Model[[#This Row],[Added_Capacity]]>1,Model[[#This Row],[Added_Capacity]]<=10),1,0) -> 0 | AF6: =IF(AND(Model[[#This Row],[Added_Capacity]]>10,Model[[#This Row],[Added_Capacity]]<=30),1,0) -> 0 | AG6: =IF(Model[[#This Row],[Head]]<=30,1,0) -> 1 | AH6: =IF(AND(Model[[#This Row],[Head]]>30,Model[[#This Row],[Head]]<=60),1,0) -> 0 | AI6: =IF(AND(Model[[#This Row],[Head]]>60,Model[[#This Row],[Head]]<=100),1,0) -> 0 | AJ6: =2021-Model[[#This Row],[Year]]+1 -> 1 | AK6: =IF(AND(ROUND(Model[[#This Row],[tyr]]/20,0)>2,ROUND(Model[[#This Row],[tyr]]/20,0)<3),1,0) -> 0 | AL6: =IF(ROUND(Model[[#This Row],[tyr]]/20,0)>=3,1,0) -> 0 | AM6: =1 -> 1 | AN6: =LN(Model[[#This Row],[Capacity]]) -> 2.302585093 | AO6: =LN(Model[[#This Row],[Added_Capacity]]) -> 0 | AP6: =LN(Model[[#This Row],[Head]]) -> 2.246649461 | AQ6: =LN(Model[[#This Row],[Eflow]]) -> 9.538047948 | AR6: =LN(Model[[#This Row],[tyr]]) -> 0 | AS6: 0 | AT6: 0 | AU6: =Model[[#This Row],[Cap_Factor]] -> 0.5 | AV6: =IF(Model[[#This Row],[capFactor]]>0,LN(Model[[#This Row],[capFactor]]),0) -> -0.6931471806 | AW6: =Model[[#This Row],[Plant_Age]] -> 0 | AX6: =IF(AND(Model[[#This Row],[capFactor]],Model[[#This Row],[age]]),LN(Model[[#This Row],[capFactor]]*Model[[#This Row],[age]])^2,0) -> 0
A7: =INDEX(InputsResults[Project Name],ROW()-ROW($A$3)) -> Site 4 | B7: =INDEX(InputsResults[Project Type],ROW()-ROW($A$3)) -> Non-Powered Dam (NPD) | C7: =INDEX(InputsResults[Plant Capacity (MW)],ROW()-ROW($A$3)) -> 100 | D7: =INDEX(InputsResults[Added_Capacity],ROW()-ROW($A$3)) -> 1 | E7: =INDEX(InputsResults[Head (ft)],ROW()-ROW($A$3)) -> 18.169 | F7: =INDEX(InputsResults[Stage],ROW()-ROW($A$3)) -> Engineering | G7: 2021 | H7: =IF(Model[[#This Row],[Stage]]="Construction",1,0) -> 0 | I7: =IF(Model[[#This Row],[Stage]]="Engineering",1,0) -> 1 | J7: =INDEX(InputsResults[Plant Age (Years)],ROW()-ROW($A$3)) -> 0 | K7: =INDEX(InputsResults[Capacity Factor (Rate)],ROW()-ROW($A$3)) -> 0.5 | L7: 0 | M7: =IF(NOT(Model[[#This Row],[Equation]]="O&M"), SUMPRODUCT(_xlfn._xlws.FILTER(Coeff[Estimate],Coeff[Equation]=Model[[#This Row],[Equation]]),INDEX(Model[#This Row],,MATCH(_xlfn._xlws.FILTER(Coeff[Variable],Coeff[Equation]=Model[[#This Row],[Equation]]),Model[#Headers],0))),NA()) -> 12.71849111 | N7: =IF(NOT(Model[[#This Row],[Equation]]="O&M"), (_xlfn.T.INV.2T((1-IF(ISNUMBER(confdINTV),confdINTV,NA())),INDEX(Coeff[ssiz],MATCH(Model[[#This Row],[Equation]],Coeff[Equation],0)))*INDEX(Coeff[stde],MATCH(Model[[#This Row],[Equation]],Coeff[Equation],0))*(1 + MMULT(MMULT(TRANSPOSE(INDEX(Model[#This Row],,MATCH(_xlfn._xlws.FILTER(Coeff[Variable],Coeff[Equation]=Model[[#This Row],[Equation]]),Model[#Headers],0))),INDEX(XXINV!$C$2:$O$296,MATCH(Model[[#This Row],[Equation]],XXINV!$A$2:$A$296,0),1):INDEX(XXINV!$C$2:$O$296,MATCH(Model[[#This Row],[Equation]],XXINV!$A$2:$A$296,0)+SUM(1*(Coeff[Equation]=Model[[#This Row],[Equation]]))-1,SUM(1*(Coeff[Equation]=Model[[#This Row],[Equation]])))),(INDEX(Model[#This Row],,MATCH(_xlfn._xlws.FILTER(Coeff[Variable],Coeff[Equation]=Model[[#This Row],[Equation]]),Model[#Headers],0)))))),NA()) -> 0.4755354745 | O7: =INDEX(Coeff[scal],MATCH(Model[[#This Row],[Equation]],Coeff[Equation],0))*EXP(Model[[#This Row],[fitCapEx]])/1000 -> 422.5075135 | P7: =INDEX(Coeff[scal],MATCH(Model[[#This Row],[Equation]],Coeff[Equation],0))*EXP(Model[[#This Row],[fitCapEx]]-Model[[#This Row],[fiterrCapEx]])/1000 -> 262.6104501 | Q7: =INDEX(Coeff[scal],MATCH(Model[[#This Row],[Equation]],Coeff[Equation],0))*EXP(Model[[#This Row],[fitCapEx]]+Model[[#This Row],[fiterrCapEx]])/1000 -> 679.761978 | R7: =SUMPRODUCT(_xlfn._xlws.FILTER(Coeff[Estimate],Coeff[Equation]="O&M"),INDEX(Model[#This Row],,MATCH(_xlfn._xlws.FILTER(Coeff[Variable],Coeff[Equation]="O&M"),Model[#Headers],0))) -> 7.636334825 | S7: =(_xlfn.T.INV.2T((1-IF(ISNUMBER(confdINTV),confdINTV,NA())),INDEX(Coeff[ssiz],MATCH("O&M",Coeff[Equation],0)))*INDEX(Coeff[stde],MATCH("O&M",Coeff[Equation],0))*(1 + MMULT(MMULT(TRANSPOSE(INDEX(Model[#This Row],,MATCH(_xlfn._xlws.FILTER(Coeff[Variable],Coeff[Equation]="O&M"),Model[#Headers],0))),INDEX(XXINV!$C$2:$O$296,MATCH("O&M",XXINV!$A$2:$A$296,0),1):INDEX(XXINV!$C$2:$O$296,SUM(1*(Coeff[Equation]="O&M"))+MATCH("O&M",XXINV!$A$2:$A$296,0)-1,SUM(1*(Coeff[Equation]="O&M")))),(INDEX(Model[#This Row],,MATCH(_xlfn._xlws.FILTER(Coeff[Variable],Coeff[Equation]="O&M"),Model[#Headers],0)))))) -> 0.5830337938 | T7: =INDEX(Coeff[scal],MATCH("O&M",Coeff[Equation],0))*EXP(Model[[#This Row],[fitOMEx]])/1000 -> 2.503822532 | U7: =INDEX(Coeff[scal],MATCH("O&M",Coeff[Equation],0))*EXP(Model[[#This Row],[fitOMEx]]-Model[[#This Row],[fiterrOMEx]])/1000 -> 1.397639557 | V7: =INDEX(Coeff[scal],MATCH("O&M",Coeff[Equation],0))*EXP(Model[[#This Row],[fitOMEx]]+Model[[#This Row],[fiterrOMEx]])/1000 -> 4.48551076 | W7: =INDEX('Coeff'!$S$4:$S$10,MATCH(Model[[#This Row],[Type]],'Coeff'!$R$4:$R$10,0)) -> NPD3 | X7: =3.28084*35.3147*1000*Model[[#This Row],[Capacity]]/(0.9*9.81*Model[[#This Row],[Head]]) -> 72226.74293 | Y7: =IF(Model[[#This Row],[Capacity]]<=1,1,0) -> 0 | Z7: =IF(AND(Model[[#This Row],[Capacity]]>1,Model[[#This Row],[Capacity]]<=10),1,0) -> 0 | AA7: =IF(AND(Model[[#This Row],[Capacity]]>10,Model[[#This Row],[Capacity]]<=30),1,0) -> 0 | AB7: =IF(AND(Model[[#This Row],[Capacity]]>30,Model[[#This Row],[Capacity]]<=100),1,0) -> 1 | AC7: =IF(AND(Model[[#This Row],[Capacity]]>100,Model[[#This Row],[Capacity]]<=500),1,0) -> 0 | AD7: =IF(Model[[#This Row],[Added_Capacity]]<=1,1,0) -> 1 | AE7: =IF(AND(Model[[#This Row],[Added_Capacity]]>1,Model[[#This Row],[Added_Capacity]]<=10),1,0) -> 0 | AF7: =IF(AND(Model[[#This Row],[Added_Capacity]]>10,Model[[#This Row],[Added_Capacity]]<=30),1,0) -> 0 | AG7: =IF(Model[[#This Row],[Head]]<=30,1,0) -> 1 | AH7: =IF(AND(Model[[#This Row],[Head]]>30,Model[[#This Row],[Head]]<=60),1,0) -> 0 | AI7: =IF(AND(Model[[#This Row],[Head]]>60,Model[[#This Row],[Head]]<=100),1,0) -> 0 | AJ7: =2021-Model[[#This Row],[Year]]+1 -> 1 | AK7: =IF(AND(ROUND(Model[[#This Row],[tyr]]/20,0)>2,ROUND(Model[[#This Row],[tyr]]/20,0)<3),1,0) -> 0 | AL7: =IF(ROUND(Model[[#This Row],[tyr]]/20,0)>=3,1,0) -> 0 | AM7: =1 -> 1 | AN7: =LN(Model[[#This Row],[Capacity]]) -> 4.605170186 | AO7: =LN(Model[[#This Row],[Added_Capacity]]) -> 0 | AP7: =LN(Model[[#This Row],[Head]]) -> 2.899716845 | AQ7: =LN(Model[[#This Row],[Eflow]]) -> 11.18756566 | AR7: =LN(Model[[#This Row],[tyr]]) -> 0 | AS7: 0 | AT7: 0 | AU7: =Model[[#This Row],[Cap_Factor]] -> 0.5 | AV7: =IF(Model[[#This Row],[capFactor]]>0,LN(Model[[#This Row],[capFactor]]),0) -> -0.6931471806 | AW7: =Model[[#This Row],[Plant_Age]] -> 0 | AX7: =IF(AND(Model[[#This Row],[capFactor]],Model[[#This Row],[age]]),LN(Model[[#This Row],[capFactor]]*Model[[#This Row],[age]])^2,0) -> 0
